﻿Authority,Department,Spending Area,Expense Type,Posting Date,Reference,Amount,Supplier
OXFORDSHIRE CC,ENVIRONMENT AND ECONOMY,MEMBERS' BAR,CATERING PROVISIONS,29/04/2019,000008510096995,70.00,SAINSBURYS 0600
OXFORDSHIRE CC,ENVIRONMENT AND ECONOMY,SCH&SOC CARE TRANSP,PAYMENTS TO HEALTH AUTHORITIES,29/04/2019,000008510097119,622.80,WINDMILL SPECIAL NEEDS
OXFORDSHIRE CC,"CHILDRENS, YOUNG PEOPLE AND FAMILIES",ATV ADOPTION WOODLEY,HIRE OF ACCOMMODATION AND FACILITIES,29/04/2019,000008510096791,115.00,PREMIER INN
OXFORDSHIRE CC,"CHILDRENS, YOUNG PEOPLE AND FAMILIES",ATV ADOPTION WOODLEY,HIRE OF ACCOMMODATION AND FACILITIES,29/04/2019,000008510096793,84.00,PREMIER INN
OXFORDSHIRE CC,"CHILDRENS, YOUNG PEOPLE AND FAMILIES","	RIVERSIDE CENTRE",HARDWARE AND CROCKERY,29/04/2019,000008510097287,5.98,SCREWFIX BICESTER
OXFORDSHIRE CC,"CHILDRENS, YOUNG PEOPLE AND FAMILIES","	RIVERSIDE CENTRE",CATERING PROVISIONS,29/04/2019,000008510097289,1.20,TESCO STORES 4480
OXFORDSHIRE CC,"CHILDRENS, YOUNG PEOPLE AND FAMILIES","	RIVERSIDE CENTRE",MATERIALS,29/04/2019,000008510096877,5.20,SMITH AND LOW
OXFORDSHIRE CC,"CHILDRENS, YOUNG PEOPLE AND FAMILIES","	RIVERSIDE CENTRE",PAYMENTS TO VOLUNTARY BODIES,29/04/2019,000008510096879,400.00,THE INSTITUTE FOR OUTD
OXFORDSHIRE CC,"CHILDRENS, YOUNG PEOPLE AND FAMILIES","	RIVERSIDE CENTRE",PAYMENTS TO VOLUNTARY BODIES,29/04/2019,000008510096881,50.00,THE INSTITUTE FOR OUTD
OXFORDSHIRE CC,"CHILDRENS, YOUNG PEOPLE AND FAMILIES","	ANTI-BULLYING",CATERING PROVISIONS,29/04/2019,000008510097083,120.00,SP   NCBWEBSHOP
OXFORDSHIRE CC,"CHILDRENS, YOUNG PEOPLE AND FAMILIES","	MUSIC UNALLOCABLE",POSTAGE AND DELIVERY,29/04/2019,000008510096935,4.00,POST OFFICE COUNTER
OXFORDSHIRE CC,CORPORATE CORE,"	PERSONNEL","PUBLICITY, PROMOTIONS AND ADVERTISEMENT",29/04/2019,000008510096927,90.00,FACEBK CDGASK6H72
OXFORDSHIRE CC,CORPORATE CORE,"	PERSONNEL","PUBLICITY, PROMOTIONS AND ADVERTISEMENT",29/04/2019,000008510096929,125.00,FACEBK BLLYSK6H72
OXFORDSHIRE CC,CORPORATE CORE,"	PERSONNEL",PAYMENTS TO TRANSPORT OPERATORS,29/04/2019,000008510097171,32.15,TRAINLINE
OXFORDSHIRE CC,ENVIRONMENT AND ECONOMY,"	FM RECHARGES",EDUCATIONAL AND VOCATIONAL TRAINING ,29/04/2019,000008510096847,"1,638.00",OXFORD ENERGY ACADEMY
OXFORDSHIRE CC,CORPORATE CORE,,"SUPPLIES, STATIONERY AND MATERIALS",29/04/2019,000008510097261,27.48,LYRECO UK LTD
OXFORDSHIRE CC,ENVIRONMENT AND ECONOMY,HARD FM,HARDWARE AND CROCKERY,29/04/2019,000008510096849,79.99,SCREWFIX WITNEY
OXFORDSHIRE CC,ENVIRONMENT AND ECONOMY,HARD FM,EQUIPMENT,29/04/2019,000008510096851,18.48,NEWEY & EYRE
OXFORDSHIRE CC,ENVIRONMENT AND ECONOMY,HARD FM,HARDWARE AND CROCKERY,29/04/2019,000008510096853,49.48,WICKES BANBURY
OXFORDSHIRE CC,CORPORATE CORE,OPERATIONS,EQUIPMENT,29/04/2019,000008510096983,4.89,AMZNMKTPLACE
OXFORDSHIRE CC,CORPORATE CORE,OPERATIONS,EQUIPMENT,29/04/2019,000008510096985,60.44,AMAZON.CO.UK MZ3K86Y74
OXFORDSHIRE CC,CORPORATE CORE,OPERATIONS,EQUIPMENT,29/04/2019,000008510096987,15.98,AMZNMKTPLACE
OXFORDSHIRE CC,ENVIRONMENT AND ECONOMY,MUSEUM CAFE,MATERIALS,29/04/2019,000008510097077,46.32,HARMONY EPOS SOLUTIONS
OXFORDSHIRE CC,ENVIRONMENT AND ECONOMY,"	LEP","PUBLICITY, PROMOTIONS AND ADVERTISEMENT",29/04/2019,000008510096833,35.00,SURVEYMONKEY
OXFORDSHIRE CC,ENVIRONMENT AND ECONOMY,"	LEP",STAFF SUBSISTENCE,29/04/2019,000008510096835,316.44,COPTHORNE HOTEL MA
OXFORDSHIRE CC,ENVIRONMENT AND ECONOMY,"	BUSINESS SYST STAFF",PAYMENT TO GOVERNMENT DEPARTMENTS,29/04/2019,000008510097177,16.80,TNA DISCOVERY ORDERS
OXFORDSHIRE CC,SOCIAL AND COMMUNITY SERVICES,"	PUBLIC HEALTH GENERA",PAYMENTS TO TRANSPORT OPERATORS,29/04/2019,000008510097225,78.65,TRAINLINE.COM
OXFORDSHIRE CC,CORPORATE CORE,ICT OPERATIONS & MAI,PAYMENTS TO TRANSPORT OPERATORS,29/04/2019,000008510097235,23.15,WWW.GWR.COM
OXFORDSHIRE CC,CORPORATE CORE,ICT OPERATIONS & MAI,PAYMENTS TO TRANSPORT OPERATORS,29/04/2019,000008510097237,81.70,WWW.GWR.COM
OXFORDSHIRE CC,"CHILDRENS, YOUNG PEOPLE AND FAMILIES",ICT INFORMATION,IT SOFTWARE,29/04/2019,000008510096855,91.13,FS  KANBANFLOW
OXFORDSHIRE CC,ENVIRONMENT AND ECONOMY,"	COUNTY PRINT FINSHRS",SUBSCRIPTIONS,29/04/2019,000008510096825,130.60,HIGHSTREETVOUCHERS
OXFORDSHIRE CC,SOCIAL AND COMMUNITY SERVICES,CSS - BANBURY,MATERIALS,29/04/2019,000008510097161,3.50,AMZNMKTPLACE AMAZON.CO
OXFORDSHIRE CC,SOCIAL AND COMMUNITY SERVICES,CSS - BANBURY,MATERIALS,29/04/2019,000008510097163,21.98,AMZN MKTP UK MZ09Z5R24
OXFORDSHIRE CC,SOCIAL AND COMMUNITY SERVICES,CSS - BANBURY,MATERIALS,29/04/2019,000008510097165,13.77,DOLLSHOUSEEMPORIUM
OXFORDSHIRE CC,SOCIAL AND COMMUNITY SERVICES,CSS BICESTER,CATERING PROVISIONS,29/04/2019,000008510096869,27.26,ALDI 49 775
OXFORDSHIRE CC,SOCIAL AND COMMUNITY SERVICES,CSS BICESTER,CATERING PROVISIONS,29/04/2019,000008510096827,2.10,ICELAND
OXFORDSHIRE CC,"CHILDRENS, YOUNG PEOPLE AND FAMILIES",CSS WALLINGFORD,LAUNDRY AND DRY CLEANING,29/04/2019,000008510096817,10.00,TIMPSON LTD
OXFORDSHIRE CC,"CHILDRENS, YOUNG PEOPLE AND FAMILIES",CSS WALLINGFORD,CATERING PROVISIONS,29/04/2019,000008510096819,5.39,TESCO STORE 2413
OXFORDSHIRE CC,SOCIAL AND COMMUNITY SERVICES,"	SHARED LIVES",OTHER EXPENSES,29/04/2019,000008510097241,23.99,BUNCHES
OXFORDSHIRE CC,"CHILDRENS, YOUNG PEOPLE AND FAMILIES","	RESIDENTIAL STRATEGY",CATERING,29/04/2019,000008510096821,11.80,HEAVENLY DESSERTS
OXFORDSHIRE CC,SOCIAL AND COMMUNITY SERVICES,RESIDENTIAL STRATEGY,CATERING PROVISIONS,29/04/2019,000008510096865,1.85,SAINSBURYS 0632
OXFORDSHIRE CC,SOCIAL AND COMMUNITY SERVICES,RESIDENTIAL STRATEGY,CATERING PROVISIONS,29/04/2019,000008510096867,1.00,CO-OPERATIVE FOOD
OXFORDSHIRE CC,"CHILDRENS, YOUNG PEOPLE AND FAMILIES","	RESIDENTIAL STRATEGY",CATERING PROVISIONS,29/04/2019,000008510096823,3.00,TESCO STORES 5966
OXFORDSHIRE CC,"CHILDRENS, YOUNG PEOPLE AND FAMILIES",EYNSHAM,CATERING,29/04/2019,000008510097303,96.78,TESCO STORES 2008
OXFORDSHIRE CC,"CHILDRENS, YOUNG PEOPLE AND FAMILIES",EYNSHAM,CATERING PROVISIONS,29/04/2019,000008510096911,8.50,CO-OPERATIVE FOOD
OXFORDSHIRE CC,"CHILDRENS, YOUNG PEOPLE AND FAMILIES",EYNSHAM,DAY ACTIVITIES,29/04/2019,000008510096799,25.50,ADVENTURE GOLF (OXFORD
OXFORDSHIRE CC,"CHILDRENS, YOUNG PEOPLE AND FAMILIES",EYNSHAM,CATERING,29/04/2019,000008510096801,1.00,SAINSBURYS SACAT 0631
OXFORDSHIRE CC,"CHILDRENS, YOUNG PEOPLE AND FAMILIES",EYNSHAM,CATERING,29/04/2019,000008510096803,3.00,SAINSBURYS SACAT 0632
OXFORDSHIRE CC,"CHILDRENS, YOUNG PEOPLE AND FAMILIES",EYNSHAM,CATERING PROVISIONS,29/04/2019,000008510096781,13.89,CO-OPERATIVE FOOD
OXFORDSHIRE CC,"CHILDRENS, YOUNG PEOPLE AND FAMILIES",EYNSHAM,CATERING,29/04/2019,000008510096795,6.47,CO-OPERATIVE FOOD
OXFORDSHIRE CC,"CHILDRENS, YOUNG PEOPLE AND FAMILIES",EYNSHAM,CATERING,29/04/2019,000008510096797,2.80,CO-OPERATIVE FOOD
OXFORDSHIRE CC,SOCIAL AND COMMUNITY SERVICES,WITNEY MOVE ON HOME,CATERING PROVISIONS,29/04/2019,000008510096931,31.15,SAINSBURYS 0632
OXFORDSHIRE CC,"CHILDRENS, YOUNG PEOPLE AND FAMILIES",WITNEY,CATERING PROVISIONS,29/04/2019,000008510096805,20.45,ALDI 41 775
OXFORDSHIRE CC,"CHILDRENS, YOUNG PEOPLE AND FAMILIES",WITNEY,CATERING PROVISIONS,29/04/2019,000008510096807,21.02,SAINSBURYS 0632
OXFORDSHIRE CC,"CHILDRENS, YOUNG PEOPLE AND FAMILIES",WITNEY,CATERING PROVISIONS,29/04/2019,000008510096829,45.15,SAINSBURYS TO YOU 0632
OXFORDSHIRE CC,"CHILDRENS, YOUNG PEOPLE AND FAMILIES",WITNEY,CATERING PROVISIONS,29/04/2019,000008510096831,44.50,SAINSBURYS TO YOU 0632
OXFORDSHIRE CC,SOCIAL AND COMMUNITY SERVICES,DIDCOT MOVE-ON HOME,CATERING PROVISIONS,29/04/2019,000008510096941,85.13,SAINSBURYS 2067
OXFORDSHIRE CC,SOCIAL AND COMMUNITY SERVICES,DIDCOT MOVE-ON HOME,CATERING PROVISIONS,29/04/2019,000008510096873,10.10,SAINSBURYS 0600
OXFORDSHIRE CC,SOCIAL AND COMMUNITY SERVICES,DIDCOT MOVE-ON HOME,CATERING PROVISIONS,29/04/2019,000008510096875,43.55,ASDA STORE 4442
OXFORDSHIRE CC,"CHILDRENS, YOUNG PEOPLE AND FAMILIES",DIDCOT MOVE-ON HOME,CATERING PROVISIONS,29/04/2019,000008510097189,17.12,TESCO STORE 2413
OXFORDSHIRE CC,"CHILDRENS, YOUNG PEOPLE AND FAMILIES",DIDCOT MOVE-ON HOME,CATERING PROVISIONS,29/04/2019,000008510097191,10.00,SAINSBURYS SACAT 2067
OXFORDSHIRE CC,"CHILDRENS, YOUNG PEOPLE AND FAMILIES",DIDCOT MOVE-ON HOME,CATERING PROVISIONS,29/04/2019,000008510097193,1.10,SAINSBURYS SACAT 2067
OXFORDSHIRE CC,"CHILDRENS, YOUNG PEOPLE AND FAMILIES","	MALTFIELD HOUSE",OTHER TRANSPORT ARRANGEMENTS,29/04/2019,000008510096915,495.80,THE OXFORDSHIRE TAXI C
OXFORDSHIRE CC,"CHILDRENS, YOUNG PEOPLE AND FAMILIES","	MALTFIELD HOUSE",HOSPITALITY EXPENSES,29/04/2019,000008510097137,18.35,JS SPORTS BAR
OXFORDSHIRE CC,"CHILDRENS, YOUNG PEOPLE AND FAMILIES",THAME E&A HOME,CATERING PROVISIONS,29/04/2019,000008510096919,2.75,SAINSBURYS SACAT 2067
OXFORDSHIRE CC,"CHILDRENS, YOUNG PEOPLE AND FAMILIES",THAME E&A HOME,CATERING,29/04/2019,000008510096921,14.95,KASPAS DIDCOT
OXFORDSHIRE CC,"CHILDRENS, YOUNG PEOPLE AND FAMILIES",THAME E&A HOME,MATERIALS,29/04/2019,000008510096923,3.00,POUNDLAND LTD
OXFORDSHIRE CC,"CHILDRENS, YOUNG PEOPLE AND FAMILIES",THAME E&A HOME,CATERING,29/04/2019,000008510096925,4.15,GREGGS PLC
OXFORDSHIRE CC,"CHILDRENS, YOUNG PEOPLE AND FAMILIES",THAME E&A HOME,VEHICLE FUEL,29/04/2019,000008510096895,13.90,THAME BP SF CONNECT
OXFORDSHIRE CC,"CHILDRENS, YOUNG PEOPLE AND FAMILIES",THAME E&A HOME,VEHICLE FUEL,29/04/2019,000008510096897,16.14,THAME BP SF CONNECT
OXFORDSHIRE CC,"CHILDRENS, YOUNG PEOPLE AND FAMILIES",THAME E&A HOME,MATERIALS,29/04/2019,000008510096913,15.00,WLY COMPLETESAVE.CO.UK
OXFORDSHIRE CC,"CHILDRENS, YOUNG PEOPLE AND FAMILIES",THAME E&A HOME,MATERIALS,29/04/2019,000008510096859,7.99,AMAZON PRIME MZ6UJ7Y84
OXFORDSHIRE CC,"CHILDRENS, YOUNG PEOPLE AND FAMILIES",THAME E&A HOME,VEHICLE FUEL,29/04/2019,000008510096871,2.58,THAME BP SF CONNECT
OXFORDSHIRE CC,"CHILDRENS, YOUNG PEOPLE AND FAMILIES",THAME E&A HOME,CATERING PROVISIONS,29/04/2019,000008510096891,15.55,SAINSBURYS 2096
OXFORDSHIRE CC,"CHILDRENS, YOUNG PEOPLE AND FAMILIES",THAME E&A HOME,MATERIALS,29/04/2019,000008510096893,4.48,B&M RETAIL
OXFORDSHIRE CC,"CHILDRENS, YOUNG PEOPLE AND FAMILIES",THAME E&A HOME,VEHICLE FUEL,29/04/2019,000008510097049,7.05,THAME BP SF CONNECT
OXFORDSHIRE CC,"CHILDRENS, YOUNG PEOPLE AND FAMILIES",THAME E&A HOME,MATERIALS,29/04/2019,000008510096857,53.95,WWW.ARGOS.CO.UK
OXFORDSHIRE CC,"CHILDRENS, YOUNG PEOPLE AND FAMILIES","	40 THE MOORS",CATERING PROVISIONS,29/04/2019,000008510097227,76.60,SAINSBURYS (2243)
OXFORDSHIRE CC,"CHILDRENS, YOUNG PEOPLE AND FAMILIES","	40 THE MOORS",CATERING PROVISIONS,29/04/2019,000008510097229,49.00,SAINSBURYS (2243)
OXFORDSHIRE CC,"CHILDRENS, YOUNG PEOPLE AND FAMILIES","	40 THE MOORS",CATERING,29/04/2019,000008510097257,19.99,WWW.DOMINOS.CO.UK
OXFORDSHIRE CC,"CHILDRENS, YOUNG PEOPLE AND FAMILIES","	40 THE MOORS",ENTERTAINMENT EXPENSES,29/04/2019,000008510097259,16.00,TICKETCO
OXFORDSHIRE CC,"CHILDRENS, YOUNG PEOPLE AND FAMILIES","	40 THE MOORS",CATERING,29/04/2019,000008510096945,9.38,BURGER KING
OXFORDSHIRE CC,"CHILDRENS, YOUNG PEOPLE AND FAMILIES","	40 THE MOORS",CATERING PROVISIONS,29/04/2019,000008510096947,2.29,CO-OPERATIVE FOOD
OXFORDSHIRE CC,"CHILDRENS, YOUNG PEOPLE AND FAMILIES","	40 THE MOORS",OTHER EXPENSES,29/04/2019,000008510096949,3.99,ARGOS KIDLINGTON INSID
OXFORDSHIRE CC,"CHILDRENS, YOUNG PEOPLE AND FAMILIES","	40 THE MOORS",ENTERTAINMENT EXPENSES,29/04/2019,000008510097155,16.00,TJ S
OXFORDSHIRE CC,"CHILDRENS, YOUNG PEOPLE AND FAMILIES","	40 THE MOORS",ENTERTAINMENT EXPENSES,29/04/2019,000008510097157,5.85,TJ S
OXFORDSHIRE CC,"CHILDRENS, YOUNG PEOPLE AND FAMILIES","	40 THE MOORS",MATERIALS,29/04/2019,000008510097159,29.93,WWW.ARGOS.CO.UK
OXFORDSHIRE CC,"CHILDRENS, YOUNG PEOPLE AND FAMILIES","	40 THE MOORS",MATERIALS,29/04/2019,000008510097075,16.81,AMAZON.CO.UK MZ17M9YJ4
OXFORDSHIRE CC,"CHILDRENS, YOUNG PEOPLE AND FAMILIES",KINGFISHER,CATERING PROVISIONS,29/04/2019,000008510097097,13.11,WELCOME BREAK
OXFORDSHIRE CC,"CHILDRENS, YOUNG PEOPLE AND FAMILIES",KINGFISHER,CATERING,29/04/2019,000008510097099,6.90,MCDONALDS
OXFORDSHIRE CC,"CHILDRENS, YOUNG PEOPLE AND FAMILIES",KINGFISHER,VEHICLE FUEL,29/04/2019,000008510097101,6.58,BP MILTON HEIGHTS S/SE
OXFORDSHIRE CC,"CHILDRENS, YOUNG PEOPLE AND FAMILIES",KINGFISHER,CATERING,29/04/2019,000008510097195,18.90,KASPAS DIDCOT
OXFORDSHIRE CC,"CHILDRENS, YOUNG PEOPLE AND FAMILIES",C&F - TF CONTRIB,CATERING PROVISIONS,29/04/2019,000008510097295,16.80,TESCO STORE 2990
OXFORDSHIRE CC,"CHILDRENS, YOUNG PEOPLE AND FAMILIES",C&F - TF CONTRIB,IT SOFTWARE,29/04/2019,000008510097297,215.00,TLAM LIMITED
OXFORDSHIRE CC,"CHILDRENS, YOUNG PEOPLE AND FAMILIES",C&F - TF CONTRIB,IT SOFTWARE,29/04/2019,000008510097299,300.00,TLAM LIMITED
OXFORDSHIRE CC,"CHILDRENS, YOUNG PEOPLE AND FAMILIES",C&F - TF CONTRIB,PAYMENTS TO TRANSPORT OPERATORS,29/04/2019,000008510097301,13.60,WWW.GWR.COM
OXFORDSHIRE CC,SOCIAL AND COMMUNITY SERVICES,EMERGENCY DUTY TEAM,HIRE OF ACCOMMODATION AND FACILITIES,29/04/2019,000008510097277,158.00,OXFORD ABINGDON HOTEL
OXFORDSHIRE CC,"CHILDRENS, YOUNG PEOPLE AND FAMILIES","	FAM SUPP CITY 1",OTHER TRANSPORT ARRANGEMENTS,29/04/2019,000008510097169,153.00,OXFORD BUS CO
OXFORDSHIRE CC,"CHILDRENS, YOUNG PEOPLE AND FAMILIES","	FAMILY SUPPORT CITY3",OTHER TRANSPORT ARRANGEMENTS,29/04/2019,000008510097135,78.05,TRAINLINE
OXFORDSHIRE CC,"CHILDRENS, YOUNG PEOPLE AND FAMILIES","	LOOKED AFTER NORTH",MATERIALS,29/04/2019,000008510097255,-106.92,WWW.ARGOS.CO.UK
OXFORDSHIRE CC,"CHILDRENS, YOUNG PEOPLE AND FAMILIES","	LOOKED AFTER NORTH",MATERIALS,29/04/2019,000008510097251,106.92,WWW.ARGOS.CO.UK
OXFORDSHIRE CC,"CHILDRENS, YOUNG PEOPLE AND FAMILIES","	LOOKED AFTER NORTH",MATERIALS,29/04/2019,000008510097253,106.92,WWW.ARGOS.CO.UK
OXFORDSHIRE CC,"CHILDRENS, YOUNG PEOPLE AND FAMILIES","	LOOKED AFTER CITY 1",OTHER TRANSPORT ARRANGEMENTS,29/04/2019,000008510097223,5.00,DART-CHARGE
OXFORDSHIRE CC,"CHILDRENS, YOUNG PEOPLE AND FAMILIES","	LOOKED AFTER CITY 1",PAYMENTS TO TRANSPORT OPERATORS,29/04/2019,000008510096943,8.39,TRAINLINE.COM
OXFORDSHIRE CC,"CHILDRENS, YOUNG PEOPLE AND FAMILIES","	LOOKED AFTER CITY 1",VEHICLE FUEL,29/04/2019,000008510096845,40.01,BP THINFORD NORTH
OXFORDSHIRE CC,"CHILDRENS, YOUNG PEOPLE AND FAMILIES","	LOOKED AFTER CITY 1",HIRE OF ACCOMMODATION AND FACILITIES,29/04/2019,000008510096843,65.00,KEY INNS LTD
OXFORDSHIRE CC,"CHILDRENS, YOUNG PEOPLE AND FAMILIES","	LOOKED AFTER CITY 2",OTHER TRANSPORT ARRANGEMENTS,29/04/2019,000008510097219,3.20,GWR OXFORD SST
OXFORDSHIRE CC,"CHILDRENS, YOUNG PEOPLE AND FAMILIES","	LOOKED AFTER CITY 2",OTHER TRANSPORT ARRANGEMENTS,29/04/2019,000008510097221,44.65,NORTHAMPTON SST
OXFORDSHIRE CC,"CHILDRENS, YOUNG PEOPLE AND FAMILIES","	LEAVING CARE NORTH",PAYMENTS TO TRANSPORT OPERATORS,29/04/2019,000008510097095,71.12,TRAINLINE.COM
OXFORDSHIRE CC,"CHILDRENS, YOUNG PEOPLE AND FAMILIES","	LEAVING CARE NORTH",MATERIALS,29/04/2019,000008510097271,114.05,J D SPORTS 681
OXFORDSHIRE CC,"CHILDRENS, YOUNG PEOPLE AND FAMILIES","	LEAVING CARE NORTH",SUBSCRIPTIONS,29/04/2019,000008510097273,17.99,THE GYM LTD
OXFORDSHIRE CC,"CHILDRENS, YOUNG PEOPLE AND FAMILIES","	LEAVING CARE NORTH",CLOTHING AND UNIFORMS,29/04/2019,000008510096863,40.00,PRIMARK 440
OXFORDSHIRE CC,"CHILDRENS, YOUNG PEOPLE AND FAMILIES","	LEAVING CARE NORTH",IT SERVICES,29/04/2019,000008510097217,11.00,PLYMOUTH CITY/INET
OXFORDSHIRE CC,"CHILDRENS, YOUNG PEOPLE AND FAMILIES","	LEAVING CARE SOUTH",CLOTHING AND UNIFORMS,29/04/2019,000008510097233,5.00,WWW.SIMPLYBE.CO.UK
OXFORDSHIRE CC,CORPORATE CORE,PERFORMNCE&INFO SC,POSTAGE AND DELIVERY,29/04/2019,000008510097045,"1,111.10",ROYAL MAIL GROUP
OXFORDSHIRE CC,CORPORATE CORE,PERFORMNCE&INFO SC,POSTAGE AND DELIVERY,29/04/2019,000008510097047,137.44,ROYAL MAIL GROUP
OXFORDSHIRE CC,SOCIAL AND COMMUNITY SERVICES,"	OPERATIONAL COSTS",CATERING,29/04/2019,000008510097175,9.25,ART CAFE
OXFORDSHIRE CC,CORPORATE CORE,"	COMMUNICATIONS","PUBLICITY, PROMOTIONS AND ADVERTISEMENT",30/04/2019,000008517393613,500.00,FACEBK  D9FQZKS9Z2
OXFORDSHIRE CC,CORPORATE CORE,"	COMMUNICATIONS",MATERIALS,30/04/2019,000008517393615,-7.99,AMAZON PRIME
OXFORDSHIRE CC,"CHILDRENS, YOUNG PEOPLE AND FAMILIES",EET SERVICE,MATERIALS,30/04/2019,000008517393405,39.88,MAILCHIMP    MONTHLY
OXFORDSHIRE CC,"CHILDRENS, YOUNG PEOPLE AND FAMILIES","	C&I ADVISORY CENTRAL",MATERIALS,30/04/2019,000008517393459,20.77,AMAZON.CO.UK MN3ZQ2OJ4
OXFORDSHIRE CC,"CHILDRENS, YOUNG PEOPLE AND FAMILIES","	MUSIC UNALLOCABLE",CAR LEASING - PRIVATE RENTALS,30/04/2019,000008517393335,89.10,EURODRIVE
OXFORDSHIRE CC,CORPORATE CORE,"	PERSONNEL",PAYMENTS TO TRANSPORT OPERATORS,30/04/2019,000008517393493,55.90,TRAINLINE
OXFORDSHIRE CC,CORPORATE CORE,CENTRAL BUYING TEAM,PAYMENTS TO TRANSPORT OPERATORS,30/04/2019,000008517393545,171.00,WWW.GWR.COM
OXFORDSHIRE CC,CORPORATE CORE,CENTRAL BUYING TEAM,OTHER TRANSPORT ARRANGEMENTS,30/04/2019,000008517393547,12.00,NEC CAR PARKS
OXFORDSHIRE CC,CORPORATE CORE,INCOME TEAM,EDUCATIONAL AND VOCATIONAL TRAINING ,30/04/2019,000008517393583,66.00,OXFORDSHIRE CC MOTO1
OXFORDSHIRE CC,CORPORATE CORE,HEALTH & SAFETY,PAYMENTS TO TRANSPORT OPERATORS,30/04/2019,000008517393379,159.70,WWW.GWR.COM
OXFORDSHIRE CC,"CHILDRENS, YOUNG PEOPLE AND FAMILIES",UNION STREET FFS,CATERING PROVISIONS,30/04/2019,000008517393563,3.00,TESCO STORE 2990
OXFORDSHIRE CC,ENVIRONMENT AND ECONOMY,HARD FM,HARDWARE AND CROCKERY,30/04/2019,000008517393199,96.28,C BREWER & SONS LT
OXFORDSHIRE CC,ENVIRONMENT AND ECONOMY,HARD FM,MATERIALS,30/04/2019,000008517393201,37.98,TOOLSTATION LTD
OXFORDSHIRE CC,ENVIRONMENT AND ECONOMY,HARD FM,HARDWARE AND CROCKERY,30/04/2019,000008517393203,8.48,SCREWFIX BICESTER
OXFORDSHIRE CC,ENVIRONMENT AND ECONOMY,HARD FM,GENERAL MAINTENANCE,30/04/2019,000008517393205,11.81, WOLSELEY UK
OXFORDSHIRE CC,ENVIRONMENT AND ECONOMY,HARD FM,EQUIPMENT,30/04/2019,000008517393207,29.60,ZIP HEATERS (UK) L
OXFORDSHIRE CC,ENVIRONMENT AND ECONOMY,HARD FM,HARDWARE AND CROCKERY,30/04/2019,000008517393209,17.84,BUILDBASE - OXFORD
OXFORDSHIRE CC,ENVIRONMENT AND ECONOMY,HARD FM,HARDWARE AND CROCKERY,30/04/2019,000008517393189,16.19,CITY PLUMBING
OXFORDSHIRE CC,ENVIRONMENT AND ECONOMY,HARD FM,HARDWARE AND CROCKERY,30/04/2019,000008517393191,91.95,SCREWFIX ABINGDON
OXFORDSHIRE CC,ENVIRONMENT AND ECONOMY,HARD FM,HARDWARE AND CROCKERY,30/04/2019,000008517393193,13.99,SCREWFIX OXFORD
OXFORDSHIRE CC,ENVIRONMENT AND ECONOMY,HARD FM,HARDWARE AND CROCKERY,30/04/2019,000008517393195,29.99,SCREWFIX WITNEY
OXFORDSHIRE CC,ENVIRONMENT AND ECONOMY,HARD FM,HARDWARE AND CROCKERY,30/04/2019,000008517393197,113.28,BUILDBASE - OXFORD
OXFORDSHIRE CC,SOCIAL AND COMMUNITY SERVICES,"	LEARNING & ACCESS",MATERIALS,30/04/2019,000008517393293,27.70,AMZNMKTPLACE AMAZON.CO
OXFORDSHIRE CC,SOCIAL AND COMMUNITY SERVICES,"	CENTRAL LIBRARY",MATERIALS,30/04/2019,000008517393415,3.99,ROBERT DYAS HOLDNG LTD
OXFORDSHIRE CC,ENVIRONMENT AND ECONOMY,"	TVERC",PAYMENT TO GOVERNMENT DEPARTMENTS,30/04/2019,000008517393219,6.00,LAND REGISTRY
OXFORDSHIRE CC,SOCIAL AND COMMUNITY SERVICES,DIDOCT LIBRARY,"SUPPLIES, STATIONERY AND MATERIALS",30/04/2019,000008517393507,2.99,AMAZON.CO.UK MN0QP3O94
OXFORDSHIRE CC,SOCIAL AND COMMUNITY SERVICES,DIDOCT LIBRARY,"SUPPLIES, STATIONERY AND MATERIALS",30/04/2019,000008517393509,18.45,AMZNMKTPLACE
OXFORDSHIRE CC,SOCIAL AND COMMUNITY SERVICES,DIDOCT LIBRARY,"SUPPLIES, STATIONERY AND MATERIALS",30/04/2019,000008517393511,9.18,AMZNMKTPLACE
OXFORDSHIRE CC,ENVIRONMENT AND ECONOMY,"	MUSEUM RETAIL","SUPPLIES, STATIONERY AND MATERIALS",30/04/2019,000008517393403,201.96,CARRIER BAG SHOP
OXFORDSHIRE CC,ENVIRONMENT AND ECONOMY,WASTE REDUCTION GEN,"PUBLICITY, PROMOTIONS AND ADVERTISEMENT",30/04/2019,000008517393221,25.00,PAYPAL  NAPPY SHED
OXFORDSHIRE CC,ENVIRONMENT AND ECONOMY,"	E&I STAFF",ENTERTAINMENT EXPENSES,30/04/2019,000008517393489,313.65,OXFORD CASTLE UNLOCKED
OXFORDSHIRE CC,ENVIRONMENT AND ECONOMY,"	E&I STAFF",ENTERTAINMENT EXPENSES,30/04/2019,000008517393491,120.00,OXFORD CASTLE UNLOCKED
OXFORDSHIRE CC,ENVIRONMENT AND ECONOMY,"	MINERALS & WASTE",PAYMENTS TO TRANSPORT OPERATORS,30/04/2019,000008517393329,46.20,WWW.GWR.COM
OXFORDSHIRE CC,ENVIRONMENT AND ECONOMY,"	ROW MAINT",EQUIPMENT,30/04/2019,000008517393167,171.90,THAMES VALLEY SAW SERV
OXFORDSHIRE CC,ENVIRONMENT AND ECONOMY,ELEC NPR ST LTG,MATERIALS,30/04/2019,000008517393131,25.98,ROBERT DYAS HOLDNG LTD
OXFORDSHIRE CC,CORPORATE CORE,REGISTRAR,"SUPPLIES, STATIONERY AND MATERIALS",30/04/2019,000008517393237,-11.00,OXFORDSHIRE CC MOTO1
OXFORDSHIRE CC,CORPORATE CORE,REGISTRAR,"SUPPLIES, STATIONERY AND MATERIALS",30/04/2019,000008517393235,11.00,OXFORDSHIRE CC PDQ1
OXFORDSHIRE CC,CORPORATE CORE,"	LEGAL SERVICES",LEGAL COSTS,30/04/2019,000008517393393,11.00,OXFORDSHIRE CC MOTO1
OXFORDSHIRE CC,SOCIAL AND COMMUNITY SERVICES,CSS - BANBURY,CATERING PROVISIONS,30/04/2019,000008517393111,49.69,SAINSBURYS TO YOU 0642
OXFORDSHIRE CC,SOCIAL AND COMMUNITY SERVICES,CSS BICESTER,CATERING PROVISIONS,30/04/2019,000008517393123,50.85,SAINSBURYS (2243)
OXFORDSHIRE CC,SOCIAL AND COMMUNITY SERVICES,CSS - OXFORD,MATERIALS,30/04/2019,000008517393187,87.90,ALDI STORES 775-142
OXFORDSHIRE CC,SOCIAL AND COMMUNITY SERVICES,CSS WALLINGFORD,CATERING PROVISIONS,30/04/2019,000008517393247,20.48,WAITROSE 675
OXFORDSHIRE CC,SOCIAL AND COMMUNITY SERVICES,CSS WITNEY,MATERIALS,30/04/2019,000008517393447,9.33,AMAZON.CO.UK MN4KV1C14
OXFORDSHIRE CC,SOCIAL AND COMMUNITY SERVICES,CSS WITNEY,"BOOKS, DVDS AND CDS",30/04/2019,000008517393449,22.55,AMZN MKTP UK MN1KH0CT4
OXFORDSHIRE CC,SOCIAL AND COMMUNITY SERVICES,CSS WITNEY,CATERING PROVISIONS,30/04/2019,000008517393451,109.71,TESCO STORES 2008
OXFORDSHIRE CC,SOCIAL AND COMMUNITY SERVICES,CSS WANTAGE,CATERING PROVISIONS,30/04/2019,000008517393453,62.65,THE OLD FARM SHOP
OXFORDSHIRE CC,SOCIAL AND COMMUNITY SERVICES,CSS WANTAGE,CATERING PROVISIONS,30/04/2019,000008517393455,18.40,SAINSBURYS SACAT 2244
OXFORDSHIRE CC,SOCIAL AND COMMUNITY SERVICES,CSS WANTAGE,MATERIALS,30/04/2019,000008517393457,8.00,REEDS
OXFORDSHIRE CC,"CHILDRENS, YOUNG PEOPLE AND FAMILIES",EYNSHAM,OTHER EXPENSES,30/04/2019,000008517393617,8.00,HOBBYCRAFT
OXFORDSHIRE CC,"CHILDRENS, YOUNG PEOPLE AND FAMILIES",EYNSHAM,FURNITURE,30/04/2019,000008517393619,40.00,DUNELM LTD
OXFORDSHIRE CC,"CHILDRENS, YOUNG PEOPLE AND FAMILIES",EYNSHAM,OTHER EXPENSES,30/04/2019,000008517393621,4.49,WAITROSE 581
OXFORDSHIRE CC,"CHILDRENS, YOUNG PEOPLE AND FAMILIES",EYNSHAM,CATERING,30/04/2019,000008517393141,2.95,COSTA COFFEE
OXFORDSHIRE CC,"CHILDRENS, YOUNG PEOPLE AND FAMILIES",WITNEY,CATERING PROVISIONS,30/04/2019,000008517393171,-1.50,SAINSBURYS TO YOU 0632
OXFORDSHIRE CC,"CHILDRENS, YOUNG PEOPLE AND FAMILIES",DIDCOT MOVE-ON HOME,CATERING PROVISIONS,30/04/2019,000008517393285,5.08,TESCO STORE 2413
OXFORDSHIRE CC,"CHILDRENS, YOUNG PEOPLE AND FAMILIES","	MALTFIELD HOUSE",CATERING PROVISIONS,30/04/2019,000008517393437,24.80,TESCO STORE 2994
OXFORDSHIRE CC,"CHILDRENS, YOUNG PEOPLE AND FAMILIES",THAME E&A HOME,CATERING PROVISIONS,30/04/2019,000008517393399,132.75,SAINSBURYS TO YOU 0600
OXFORDSHIRE CC,"CHILDRENS, YOUNG PEOPLE AND FAMILIES",THAME E&A HOME,DRUGS AND MEDICAL SUPPLIES,30/04/2019,000008517393113,3.79,SUPERDRUG STORES PLC
OXFORDSHIRE CC,"CHILDRENS, YOUNG PEOPLE AND FAMILIES",THAME E&A HOME,MATERIALS,30/04/2019,000008517393115,.99,CARD FACTORY
OXFORDSHIRE CC,"CHILDRENS, YOUNG PEOPLE AND FAMILIES",THAME E&A HOME,MATERIALS,30/04/2019,000008517393117,4.00,THEWORKS.CO.UK
OXFORDSHIRE CC,"CHILDRENS, YOUNG PEOPLE AND FAMILIES","	40 THE MOORS",MATERIALS,30/04/2019,000008517393487,7.99,AMAZON PRIME MN4HD5OJ4
OXFORDSHIRE CC,"CHILDRENS, YOUNG PEOPLE AND FAMILIES","	40 THE MOORS",CLEANING MATERIALS,30/04/2019,000008517393525,13.99,AMZNMKTPLACE AMAZON.CO
OXFORDSHIRE CC,"CHILDRENS, YOUNG PEOPLE AND FAMILIES","	40 THE MOORS",CATERING,30/04/2019,000008517393527,31.20,EASTERN KITCHEN
OXFORDSHIRE CC,"CHILDRENS, YOUNG PEOPLE AND FAMILIES","	40 THE MOORS",CATERING PROVISIONS,30/04/2019,000008517393529,7.00,TESCO STORE 2788
OXFORDSHIRE CC,"CHILDRENS, YOUNG PEOPLE AND FAMILIES","	40 THE MOORS",CATERING PROVISIONS,30/04/2019,000008517393439,98.83,SAINSBURYS (2243)
OXFORDSHIRE CC,"CHILDRENS, YOUNG PEOPLE AND FAMILIES","	40 THE MOORS",OTHER TRANSPORT ARRANGEMENTS,30/04/2019,000008517393299,7.00,WESTGATE OXFORD CAR PA
OXFORDSHIRE CC,"CHILDRENS, YOUNG PEOPLE AND FAMILIES",HOUSE PROJECT,MATERIALS,30/04/2019,000008517393295,102.95,WWW.ARGOS.CO.UK
OXFORDSHIRE CC,"CHILDRENS, YOUNG PEOPLE AND FAMILIES",DEPUTY DIRECTOR &MAN,PAYMENTS TO TRANSPORT OPERATORS,30/04/2019,000008517393561,54.10,GWR OXFORD TO
OXFORDSHIRE CC,SOCIAL AND COMMUNITY SERVICES,ICS ADMIN,PAYMENTS TO TRANSPORT OPERATORS,30/04/2019,000008517393331,13.00,GWR OXFORD TO
OXFORDSHIRE CC,"CHILDRENS, YOUNG PEOPLE AND FAMILIES",KINGFISHER,DAY ACTIVITIES,30/04/2019,000008517393287,42.70,NANDOS DIDCOT
OXFORDSHIRE CC,"CHILDRENS, YOUNG PEOPLE AND FAMILIES",KINGFISHER,MATERIALS,30/04/2019,000008517393289,36.98,B & M RETAIL
OXFORDSHIRE CC,"CHILDRENS, YOUNG PEOPLE AND FAMILIES",CNTL ERLY HELP-BBLEY,CATERING PROVISIONS,30/04/2019,000008517393565,17.33,ALDI STORES 775-142
OXFORDSHIRE CC,SOCIAL AND COMMUNITY SERVICES,"	MTFC",CATERING PROVISIONS,30/04/2019,000008517393421,5.67,SAINSBURYS SACAT 2244
OXFORDSHIRE CC,SOCIAL AND COMMUNITY SERVICES,"	MTFC",CATERING PROVISIONS,30/04/2019,000008517393423,2.50,SAINSBURYS 2244
OXFORDSHIRE CC,"CHILDRENS, YOUNG PEOPLE AND FAMILIES","	YOUNG CARERS WORKER",OTHER TRANSPORT ARRANGEMENTS,30/04/2019,000008517393471,2.00,REDBRIDGE PARK AND RID
OXFORDSHIRE CC,"CHILDRENS, YOUNG PEOPLE AND FAMILIES","	FAMILY SUPPORT CITY3",CATERING,30/04/2019,000008517393145,6.35,CAFE LOCO TRADING
OXFORDSHIRE CC,"CHILDRENS, YOUNG PEOPLE AND FAMILIES","	FAMILY SUPPORT CITY3",OTHER TRANSPORT ARRANGEMENTS,30/04/2019,000008517393147,7.00,WESTGATE OXFORD CAR PA
OXFORDSHIRE CC,"CHILDRENS, YOUNG PEOPLE AND FAMILIES","	FAMILY SUPPORT S'TH2",FURNITURE,30/04/2019,000008517393133,324.45,TAPI CARPETS AND FLOOR
OXFORDSHIRE CC,"CHILDRENS, YOUNG PEOPLE AND FAMILIES","	LOOKED AFTER NORTH",CATERING PROVISIONS,30/04/2019,000008517393535,2.00,WM MORRISONS STORE
OXFORDSHIRE CC,"CHILDRENS, YOUNG PEOPLE AND FAMILIES","	LOOKED AFTER SOUTH",OTHER TRANSPORT ARRANGEMENTS,30/04/2019,000008517393555,4.00,3C_ ECP - BRITANNIA IN
OXFORDSHIRE CC,SOCIAL AND COMMUNITY SERVICES,LOOKED AFTER SOUTH,VEHICLE FUEL,30/04/2019,000008517393135,50.22,MARLBOROUGH RD 395
OXFORDSHIRE CC,"CHILDRENS, YOUNG PEOPLE AND FAMILIES","	LOOKED AFTER CITY 2",VEHICLE FUEL,30/04/2019,000008517393409,71.67,SHELL BEACONSFIELD
OXFORDSHIRE CC,"CHILDRENS, YOUNG PEOPLE AND FAMILIES","	LOOKED AFTER CITY 2",CATERING,30/04/2019,000008517393407,3.35,STARBUCKS ASHFORD
OXFORDSHIRE CC,"CHILDRENS, YOUNG PEOPLE AND FAMILIES","	LOOKED AFTER CITY 2",PAYMENTS TO TRANSPORT OPERATORS,30/04/2019,000008517393351,96.60,GWR DIDCOT PKWY TO
OXFORDSHIRE CC,"CHILDRENS, YOUNG PEOPLE AND FAMILIES","	LOOKED AFTER CITY 2",OTHER TRANSPORT ARRANGEMENTS,30/04/2019,000008517393353,6.40,APCOA CONNECT - FGW
OXFORDSHIRE CC,"CHILDRENS, YOUNG PEOPLE AND FAMILIES","	LEAVING CARE NORTH",CATERING,30/04/2019,000008517393549,3.75,COSTA TEMPLAR SQUARE O
OXFORDSHIRE CC,"CHILDRENS, YOUNG PEOPLE AND FAMILIES","	LEAVING CARE NORTH",OTHER TRANSPORT ARRANGEMENTS,30/04/2019,000008517393551,1.00,CAR PARK CHARGES
OXFORDSHIRE CC,"CHILDRENS, YOUNG PEOPLE AND FAMILIES","	LEAVING CARE NORTH",MATERIALS,30/04/2019,000008517393553,90.00,J D SPORTS 681
OXFORDSHIRE CC,"CHILDRENS, YOUNG PEOPLE AND FAMILIES","	LEAVING CARE NORTH",EDUCATIONAL AND VOCATIONAL TRAINING ,30/04/2019,000008517393519,11.00,OXFORDSHIRE CC MOTO1
OXFORDSHIRE CC,"CHILDRENS, YOUNG PEOPLE AND FAMILIES","	LEAVING CARE NORTH",OTHER TRANSPORT ARRANGEMENTS,30/04/2019,000008517393433,1.60,NCP PARK PASS
OXFORDSHIRE CC,"CHILDRENS, YOUNG PEOPLE AND FAMILIES","	LEAVING CARE NORTH",MATERIALS,30/04/2019,000008517393435,70.05,J D SPORTS 681
OXFORDSHIRE CC,"CHILDRENS, YOUNG PEOPLE AND FAMILIES","	LEAVING CARE CITY 2",OTHER EXPENSES,30/04/2019,000008517393349,14.99,TESCO STORE 2994
OXFORDSHIRE CC,SOCIAL AND COMMUNITY SERVICES,SAFEGUARDING-OPERATIONAL MANAGERS,PAYMENTS TO TRANSPORT OPERATORS,30/04/2019,000008517393225,13.80,WWW.GWR.COM
OXFORDSHIRE CC,SOCIAL AND COMMUNITY SERVICES,SAFEGUARDING-OPERATIONAL MANAGERS,PAYMENTS TO TRANSPORT OPERATORS,30/04/2019,000008517393227,15.80,WWW.GWR.COM
OXFORDSHIRE CC,CORPORATE CORE,"	CC TRAINING",TRAINING RELATED EXPENDITURE,01/05/2019,000008521252223,70.50,WWW.GWR.COM
OXFORDSHIRE CC,CORPORATE CORE,"	COMMUNICATIONS","PUBLICITY, PROMOTIONS AND ADVERTISEMENT",01/05/2019,000008521252435,1.96,FACEBK  AV8S2LN9Z2
OXFORDSHIRE CC,"CHILDRENS, YOUNG PEOPLE AND FAMILIES","	RIVERSIDE CENTRE",CATERING,01/05/2019,000008521252063,3.60,BARRINGTON FILLING
OXFORDSHIRE CC,"CHILDRENS, YOUNG PEOPLE AND FAMILIES","	RIVERSIDE CENTRE",VEHICLE FUEL,01/05/2019,000008521252061,95.85,BARRINGTON FILLING
OXFORDSHIRE CC,"CHILDRENS, YOUNG PEOPLE AND FAMILIES","	MUSIC UNALLOCABLE",OTHER TRANSPORT ARRANGEMENTS,01/05/2019,000008521252353,3.50,WESTGATE OXFORD CAR PA
OXFORDSHIRE CC,"CHILDRENS, YOUNG PEOPLE AND FAMILIES","	MARLBOROUGH",DISABILITY AIDS AND EQUIPMENT,01/05/2019,000008521252265,279.99,AMZN MKTP UK MN2WM1FA4
OXFORDSHIRE CC,CORPORATE CORE,INSURANCE TEAM,STAFF SUBSISTENCE,01/05/2019,000008521252189,62.30,WWW.GWR.COM
OXFORDSHIRE CC,ENTERPRISEVC,,CAR LEASING - PRIVATE RENTALS,01/05/2019,000008521252397,31.66,ENTERPRISE RENT-A-CAR
OXFORDSHIRE CC,ENTERPRISEVC,,CAR LEASING - PRIVATE RENTALS,01/05/2019,000008521252389,83.83,ENTERPRISE RENT-A-CAR
OXFORDSHIRE CC,ENVIRONMENT AND ECONOMY,COUNTY LIBRARY,HARDWARE AND CROCKERY,01/05/2019,000008521252041,33.85,CITY PLUMBING
OXFORDSHIRE CC,ENVIRONMENT AND ECONOMY,HARD FM,MATERIALS,01/05/2019,000008521252029,39.36,TOOLSTATION
OXFORDSHIRE CC,ENVIRONMENT AND ECONOMY,HARD FM,HARDWARE AND CROCKERY,01/05/2019,000008521252027,36.89,C BREWER & SONS LT
OXFORDSHIRE CC,ENVIRONMENT AND ECONOMY,HARD FM,FURNITURE,01/05/2019,000008521252025,154.00,YOU NEED BLINDS
OXFORDSHIRE CC,ENVIRONMENT AND ECONOMY,HARD FM,GENERAL MAINTENANCE,01/05/2019,000008521252031,61.04, WOLSELEY UK
OXFORDSHIRE CC,ENVIRONMENT AND ECONOMY,HARD FM,GENERAL MAINTENANCE,01/05/2019,000008521252033,48.60, WOLSELEY UK
OXFORDSHIRE CC,ENVIRONMENT AND ECONOMY,HARD FM,HARDWARE AND CROCKERY,01/05/2019,000008521252039,43.38,JEWSON LTD
OXFORDSHIRE CC,ENVIRONMENT AND ECONOMY,HARD FM,HARDWARE AND CROCKERY,01/05/2019,000008521252037,22.32,TRAVIS PERKINS
OXFORDSHIRE CC,CORPORATE CORE,,"SUPPLIES, STATIONERY AND MATERIALS",01/05/2019,000008521252371,84.60,LYRECO UK LTD
OXFORDSHIRE CC,SOCIAL AND COMMUNITY SERVICES,DIDOCT LIBRARY,"SUPPLIES, STATIONERY AND MATERIALS",01/05/2019,000008521252347,2.99,AMAZON.CO.UK MN3084OJ4
OXFORDSHIRE CC,SOCIAL AND COMMUNITY SERVICES,DIDOCT LIBRARY,"SUPPLIES, STATIONERY AND MATERIALS",01/05/2019,000008521252349,17.49,AMZNMKTPLACE
OXFORDSHIRE CC,SOCIAL AND COMMUNITY SERVICES,DIDOCT LIBRARY,MATERIALS,01/05/2019,000008521252345,5.45,AMAZON.CO.UK MN0L50F74
OXFORDSHIRE CC,SOCIAL AND COMMUNITY SERVICES,DIDOCT LIBRARY,"SUPPLIES, STATIONERY AND MATERIALS",01/05/2019,000008521252351,18.75,AMZNMKTPLACE
OXFORDSHIRE CC,ENVIRONMENT AND ECONOMY,LIB ICT SUPPRT&MAINT,MATERIALS,01/05/2019,000008521252319,46.20,A & P CHAMBERS LTD
OXFORDSHIRE CC,CORPORATE CORE,LIBRARY COLLECTIONS,"NEWSPAPERS, PERIODICALS AND PUBLICATIONS",01/05/2019,000008521252161,47.62,GUARDIAN NEWS & MEDIA
OXFORDSHIRE CC,CORPORATE CORE,LIBRARY COLLECTIONS,"NEWSPAPERS, PERIODICALS AND PUBLICATIONS",01/05/2019,000008521252159,47.62,GUARDIAN NEWS & MEDIA
OXFORDSHIRE CC,CORPORATE CORE,LIBRARY COLLECTIONS,"NEWSPAPERS, PERIODICALS AND PUBLICATIONS",01/05/2019,000008521252147,47.62,GUARDIAN NEWS & MEDIA
OXFORDSHIRE CC,CORPORATE CORE,LIBRARY COLLECTIONS,"NEWSPAPERS, PERIODICALS AND PUBLICATIONS",01/05/2019,000008521252149,47.62,GUARDIAN NEWS & MEDIA
OXFORDSHIRE CC,CORPORATE CORE,LIBRARY COLLECTIONS,"NEWSPAPERS, PERIODICALS AND PUBLICATIONS",01/05/2019,000008521252153,47.62,GUARDIAN NEWS & MEDIA
OXFORDSHIRE CC,CORPORATE CORE,LIBRARY COLLECTIONS,"NEWSPAPERS, PERIODICALS AND PUBLICATIONS",01/05/2019,000008521252151,47.62,GUARDIAN NEWS & MEDIA
OXFORDSHIRE CC,CORPORATE CORE,LIBRARY COLLECTIONS,"NEWSPAPERS, PERIODICALS AND PUBLICATIONS",01/05/2019,000008521252155,47.62,GUARDIAN NEWS & MEDIA
OXFORDSHIRE CC,CORPORATE CORE,LIBRARY COLLECTIONS,"NEWSPAPERS, PERIODICALS AND PUBLICATIONS",01/05/2019,000008521252157,47.62,GUARDIAN NEWS & MEDIA
OXFORDSHIRE CC,ENVIRONMENT AND ECONOMY,"	OXFORDSHIRE MUSEUM",MATERIALS,01/05/2019,000008521252227,9.45,AMZNMKTPLACE
OXFORDSHIRE CC,ENVIRONMENT AND ECONOMY,WASTE REDUCTION GEN,"PUBLICITY, PROMOTIONS AND ADVERTISEMENT",01/05/2019,000008521252047,75.00,FACEBK GAWGHKEKD2
OXFORDSHIRE CC,ENVIRONMENT AND ECONOMY,"	LEP",OTHER TRANSPORT ARRANGEMENTS,01/05/2019,000008521252263,6.30,APCOA CONNECT - FGW
OXFORDSHIRE CC,ENVIRONMENT AND ECONOMY,"	MINERALS & WASTE",PAYMENTS TO TRANSPORT OPERATORS,01/05/2019,000008521252183,21.20,GWR OXFORD TO
OXFORDSHIRE CC,ENVIRONMENT AND ECONOMY,"	BRIDGES GENERAL",MATERIALS,01/05/2019,000008521252191,20.97,ARGOS BANBURY INSI
OXFORDSHIRE CC,ENVIRONMENT AND ECONOMY,"	NAT TRAILS GENERAL",OTHER TRANSPORT ARRANGEMENTS,01/05/2019,000008521252007,1.20,RINGGO PARKING 9
OXFORDSHIRE CC,CORPORATE CORE,ICT OPERATIONS & MAI,PAYMENTS TO TRANSPORT OPERATORS,01/05/2019,000008521252359,73.30,WWW.GWR.COM
OXFORDSHIRE CC,SOCIAL AND COMMUNITY SERVICES,CSS - BANBURY,MATERIALS,01/05/2019,000008521252317,20.76,HOME BARGAINS BANBURY
OXFORDSHIRE CC,SOCIAL AND COMMUNITY SERVICES,CSS - BANBURY,CATERING PROVISIONS,01/05/2019,000008521251981,24.00,TESCO STORE 2064
OXFORDSHIRE CC,SOCIAL AND COMMUNITY SERVICES,CSS - BANBURY,MATERIALS,01/05/2019,000008521252315,5.00,HOBBYCRAFT
OXFORDSHIRE CC,SOCIAL AND COMMUNITY SERVICES,CSS BICESTER,MATERIALS,01/05/2019,000008521251983,3.75,WILKO RETAIL LIMIT
OXFORDSHIRE CC,SOCIAL AND COMMUNITY SERVICES,CSS - OXFORD,CATERING PROVISIONS,01/05/2019,000008521252053,7.61,ALDI STORES 775-142
OXFORDSHIRE CC,SOCIAL AND COMMUNITY SERVICES,CSS - OXFORD,CATERING PROVISIONS,01/05/2019,000008521252051,26.31,ALDI STORES 775-142
OXFORDSHIRE CC,SOCIAL AND COMMUNITY SERVICES,CSS - OXFORD,CATERING PROVISIONS,01/05/2019,000008521252049,5.00,TESCO STORE 2994
OXFORDSHIRE CC,SOCIAL AND COMMUNITY SERVICES,CSS WALLINGFORD,CATERING PROVISIONS,01/05/2019,000008521252079,8.25,WAITROSE 675
OXFORDSHIRE CC,SOCIAL AND COMMUNITY SERVICES,CSS WALLINGFORD,CATERING PROVISIONS,01/05/2019,000008521252077,27.28,LIDL GB WALLINGFORD
OXFORDSHIRE CC,SOCIAL AND COMMUNITY SERVICES,CSS WALLINGFORD,MATERIALS,01/05/2019,000008521252075,39.50,KERI THE FLORIST
OXFORDSHIRE CC,SOCIAL AND COMMUNITY SERVICES,CSS WANTAGE,HARDWARE AND CROCKERY,01/05/2019,000008521251995,23.97,CHARLTON PARK GDN
OXFORDSHIRE CC,"CHILDRENS, YOUNG PEOPLE AND FAMILIES",EYNSHAM,CATERING,01/05/2019,000008521252437,110.86,TESCO STORES 2008
OXFORDSHIRE CC,ENTERPRISEVC,,CAR LEASING - PRIVATE RENTALS,01/05/2019,000008521252401,49.78,ENTERPRISE RENT-A-CAR
OXFORDSHIRE CC,ENTERPRISEVC,,CAR LEASING - PRIVATE RENTALS,01/05/2019,000008521252381,49.78,ENTERPRISE RENT-A-CAR
OXFORDSHIRE CC,ENTERPRISEVC,,CAR LEASING - PRIVATE RENTALS,01/05/2019,000008521252399,49.78,ENTERPRISE RENT-A-CAR
OXFORDSHIRE CC,SOCIAL AND COMMUNITY SERVICES,WITNEY MOVE ON HOME,CATERING PROVISIONS,01/05/2019,000008521252125,9.50,SAINSBURYS 0632
OXFORDSHIRE CC,SOCIAL AND COMMUNITY SERVICES,WITNEY MOVE ON HOME,CATERING PROVISIONS,01/05/2019,000008521252123,23.35,SAINSBURYS 0632
OXFORDSHIRE CC,"CHILDRENS, YOUNG PEOPLE AND FAMILIES",WITNEY,CATERING,01/05/2019,000008521252011,13.29,NARROWS
OXFORDSHIRE CC,"CHILDRENS, YOUNG PEOPLE AND FAMILIES",WITNEY,CATERING,01/05/2019,000008521252133,23.40,JPL
OXFORDSHIRE CC,"CHILDRENS, YOUNG PEOPLE AND FAMILIES",DIDCOT MOVE-ON HOME,CATERING PROVISIONS,01/05/2019,000008521252325,12.84,SAINSBURYS 2067
OXFORDSHIRE CC,"CHILDRENS, YOUNG PEOPLE AND FAMILIES",THAME E&A HOME,CATERING PROVISIONS,01/05/2019,000008521251985,33.20,SAINSBURYS TO YOU 0600
OXFORDSHIRE CC,"CHILDRENS, YOUNG PEOPLE AND FAMILIES",THAME E&A HOME,MATERIALS,01/05/2019,000008521251997,268.99,CURRYS ONLINE
OXFORDSHIRE CC,"CHILDRENS, YOUNG PEOPLE AND FAMILIES",THAME E&A HOME,CATERING PROVISIONS,01/05/2019,000008521252001,19.80,SAINSBURYS SACAT 2096
OXFORDSHIRE CC,"CHILDRENS, YOUNG PEOPLE AND FAMILIES",THAME E&A HOME,VEHICLE FUEL,01/05/2019,000008521252035,2.00,THAME BP SF CONNECT
OXFORDSHIRE CC,"CHILDRENS, YOUNG PEOPLE AND FAMILIES",THAME E&A HOME,MATERIALS,01/05/2019,000008521252059,101.92,WWW.ARGOS.CO.UK
OXFORDSHIRE CC,"CHILDRENS, YOUNG PEOPLE AND FAMILIES",THAME E&A HOME,OTHER TRANSPORT ARRANGEMENTS,01/05/2019,000008521252057,6.80,OCC THORNILLFAST
OXFORDSHIRE CC,"CHILDRENS, YOUNG PEOPLE AND FAMILIES","	40 THE MOORS",HOSPITALITY EXPENSES,01/05/2019,000008521252307,24.25,JS SPORTS BAR
OXFORDSHIRE CC,"CHILDRENS, YOUNG PEOPLE AND FAMILIES","	40 THE MOORS",CATERING,01/05/2019,000008521252309,11.32,MCDONALDS
OXFORDSHIRE CC,"CHILDRENS, YOUNG PEOPLE AND FAMILIES","	40 THE MOORS",MATERIALS,01/05/2019,000008521252311,100.00,J D SPORTS
OXFORDSHIRE CC,"CHILDRENS, YOUNG PEOPLE AND FAMILIES","	40 THE MOORS",CATERING,01/05/2019,000008521252165,40.13,FRANKIE & BENNYS 5389
OXFORDSHIRE CC,"CHILDRENS, YOUNG PEOPLE AND FAMILIES","	40 THE MOORS",ENTERTAINMENT EXPENSES,01/05/2019,000008521252163,27.17,VUE CINEMAS
OXFORDSHIRE CC,"CHILDRENS, YOUNG PEOPLE AND FAMILIES","	FOSTER CARE RECRUIT","PUBLICITY, PROMOTIONS AND ADVERTISEMENT",01/05/2019,000008521252203,100.00,FACEBK  SAR9NLA7L2
OXFORDSHIRE CC,"CHILDRENS, YOUNG PEOPLE AND FAMILIES","	DISABILITIES TEAM-N","BOOKS, DVDS AND CDS",01/05/2019,000008521252145,17.48,AMZN MKTP UK MN4PK84V4
OXFORDSHIRE CC,"CHILDRENS, YOUNG PEOPLE AND FAMILIES",KINGFISHER,CATERING,01/05/2019,000008521252247,6.90,MCDONALDS
OXFORDSHIRE CC,"CHILDRENS, YOUNG PEOPLE AND FAMILIES",CNTL EARLY HELP-RHIL,CATERING PROVISIONS,01/05/2019,000008521252221,2.05,CO-OPERATIVE FOOD
OXFORDSHIRE CC,"CHILDRENS, YOUNG PEOPLE AND FAMILIES",CNTL ERLY HELP-BBLEY,CATERING PROVISIONS,01/05/2019,000008521252411,9.40,TESCO STORE 2990
OXFORDSHIRE CC,"CHILDRENS, YOUNG PEOPLE AND FAMILIES",CNTL ERLY HELP-BBLEY,CATERING PROVISIONS,01/05/2019,000008521252355,12.84,NISA DELTEYS
OXFORDSHIRE CC,"CHILDRENS, YOUNG PEOPLE AND FAMILIES",CNTL ERLY HELP-BBLEY,CATERING PROVISIONS,01/05/2019,000008521252129,8.92,LIDL GB OXFORD
OXFORDSHIRE CC,"CHILDRENS, YOUNG PEOPLE AND FAMILIES",CNTL ERLY HELP-BBLEY,MATERIALS,01/05/2019,000008521252131,106.94,WWW.ARGOS.CO.UK
OXFORDSHIRE CC,"CHILDRENS, YOUNG PEOPLE AND FAMILIES",FPT SOUTH/VALE,HIRE OF ACCOMMODATION AND FACILITIES,01/05/2019,000008521252363,84.49,PREMIER INN
OXFORDSHIRE CC,"CHILDRENS, YOUNG PEOPLE AND FAMILIES","	YOUNG CARERS WORKER",OTHER TRANSPORT ARRANGEMENTS,01/05/2019,000008521252289,2.50,UNION STREET CAR PARK
OXFORDSHIRE CC,"CHILDRENS, YOUNG PEOPLE AND FAMILIES","	FAMILY SUPPORT CITY3",OTHER TRANSPORT ARRANGEMENTS,01/05/2019,000008521252287,45.80,TRAINLINE
OXFORDSHIRE CC,"CHILDRENS, YOUNG PEOPLE AND FAMILIES",NORTH FSS- BANBURY,NON-STAFF SUBSISTENCE AND EXPENSES,01/05/2019,000008521252121,55.99,JD SPORTS INTERNET
OXFORDSHIRE CC,ENTERPRISEVC,,CAR LEASING - PRIVATE RENTALS,01/05/2019,000008521252383,188.50,ENTERPRISE RENT-A-CAR
OXFORDSHIRE CC,ENTERPRISEVC,,CAR LEASING - PRIVATE RENTALS,01/05/2019,000008521252391,48.05,ENTERPRISE RENT-A-CAR
OXFORDSHIRE CC,"CHILDRENS, YOUNG PEOPLE AND FAMILIES","	LOOKED AFTER NORTH",OTHER TRANSPORT ARRANGEMENTS,01/05/2019,000008521252377,6.40,M6 TOLL
OXFORDSHIRE CC,ENTERPRISEVC,,CAR LEASING - PRIVATE RENTALS,01/05/2019,000008521252385,30.05,ENTERPRISE RENT-A-CAR
OXFORDSHIRE CC,"CHILDRENS, YOUNG PEOPLE AND FAMILIES","	LOOKED AFTER NORTH",CATERING,01/05/2019,000008521252373,4.78,HOWARD'S RESTAURANT
OXFORDSHIRE CC,"CHILDRENS, YOUNG PEOPLE AND FAMILIES","	LOOKED AFTER NORTH",VEHICLE FUEL,01/05/2019,000008521252375,30.05,TESCO PFS 3920
OXFORDSHIRE CC,"CHILDRENS, YOUNG PEOPLE AND FAMILIES","	LOOKED AFTER NORTH",MATERIALS,01/05/2019,000008521252045,70.49,AMAZON.CO.UK MN9JT4ON4
OXFORDSHIRE CC,"CHILDRENS, YOUNG PEOPLE AND FAMILIES","	LOOKED AFTER CITY 1",PAYMENT TO GOVERNMENT DEPARTMENTS,01/05/2019,000008521252127,54.00,HM PASSPORT OFFICE
OXFORDSHIRE CC,ENTERPRISEVC,,CAR LEASING - PRIVATE RENTALS,01/05/2019,000008521252403,62.08,ENTERPRISE RENT-A-CAR
OXFORDSHIRE CC,ENTERPRISEVC,,CAR LEASING - PRIVATE RENTALS,01/05/2019,000008521252393,26.38,ENTERPRISE RENT-A-CAR
OXFORDSHIRE CC,"CHILDRENS, YOUNG PEOPLE AND FAMILIES","	LOOKED AFTER SOUTH",CATERING,01/05/2019,000008521252409,8.08,BURGER KING
OXFORDSHIRE CC,"CHILDRENS, YOUNG PEOPLE AND FAMILIES","	LOOKED AFTER SOUTH",OTHER TRANSPORT ARRANGEMENTS,01/05/2019,000008521252009,51.00,WWW.THEKEY.CO.UK
OXFORDSHIRE CC,"CHILDRENS, YOUNG PEOPLE AND FAMILIES","	LOOKED AFTER SOUTH",CATERING,01/05/2019,000008521252369,2.89,MCDONALDS
OXFORDSHIRE CC,ENTERPRISEVC,,CAR LEASING - PRIVATE RENTALS,01/05/2019,000008521252387,91.07,ENTERPRISE RENT-A-CAR
OXFORDSHIRE CC,"CHILDRENS, YOUNG PEOPLE AND FAMILIES","	LOOKED AFTER CITY 2",OTHER TRANSPORT ARRANGEMENTS,01/05/2019,000008521252201,4.00,WORCESTER STREET CAR P
OXFORDSHIRE CC,"CHILDRENS, YOUNG PEOPLE AND FAMILIES","	LOOKED AFTER CITY 2",CATERING,01/05/2019,000008521252229,4.05,STARBUCKS COFFEE
OXFORDSHIRE CC,"CHILDRENS, YOUNG PEOPLE AND FAMILIES","	LEAVING CARE NORTH",CLOTHING AND UNIFORMS,01/05/2019,000008521252243,28.10,MATALAN
OXFORDSHIRE CC,"CHILDRENS, YOUNG PEOPLE AND FAMILIES","	LEAVING CARE NORTH",MATERIALS,01/05/2019,000008521252245,21.04,SPORTSDIRECT 436
OXFORDSHIRE CC,"CHILDRENS, YOUNG PEOPLE AND FAMILIES","	LEAVING CARE NORTH",CATERING,01/05/2019,000008521252405,8.00,SAN REMO CATERING @ CU
OXFORDSHIRE CC,"CHILDRENS, YOUNG PEOPLE AND FAMILIES","	LEAVING CARE NORTH",CATERING,01/05/2019,000008521252407,5.50,SAN REMO CATERING @ CU
OXFORDSHIRE CC,"CHILDRENS, YOUNG PEOPLE AND FAMILIES","	LEAVING CARE CITY 2",OTHER EXPENSES,01/05/2019,000008521252199,14.99,TESCO STORE 2994
OXFORDSHIRE CC,"CHILDRENS, YOUNG PEOPLE AND FAMILIES","	MANAGEMENT & ADMIN",GAS,01/05/2019,000008521252275,348.55,ALLSTAR BUSINESS SOLUT
OXFORDSHIRE CC,"CHILDRENS, YOUNG PEOPLE AND FAMILIES","	MANAGEMENT & ADMIN","BOOKS, DVDS AND CDS",01/05/2019,000008521252337,14.48,AMZN MKTP UK MN1N43OT4
OXFORDSHIRE CC,"CHILDRENS, YOUNG PEOPLE AND FAMILIES","	MANAGEMENT & ADMIN","BOOKS, DVDS AND CDS",01/05/2019,000008521252339,18.99,AMZN MKTP UK MN42F7OJ4
OXFORDSHIRE CC,CORPORATE CORE,SNR LEADERSHIP TEAM,PAYMENTS TO TRANSPORT OPERATORS,01/05/2019,000008521252429,63.30,WWW.GWR.COM
OXFORDSHIRE CC,ENTERPRISEVC,,CAR LEASING - PRIVATE RENTALS,01/05/2019,000008521252395,43.18,ENTERPRISE RENT-A-CAR
OXFORDSHIRE CC,ENVIRONMENT AND ECONOMY,SCH&SOC CARE TRANSP,MATERIALS,02/05/2019,000008526621731,34.99,ARGOS RETAIL GROUP
OXFORDSHIRE CC,CORPORATE CORE,"	COMMUNICATIONS",MATERIALS,02/05/2019,000008526621861,408.13,LINKEDIN 4622781953 LN
OXFORDSHIRE CC,CORPORATE CORE,"	COMMUNICATIONS",IT SOFTWARE,02/05/2019,000008526621863,104.28,FS  KANBANFLOW
OXFORDSHIRE CC,CORPORATE CORE,"	COMMUNICATIONS",PHOTOCOPYING,02/05/2019,000008526621865,20.00,ISTOCK.COM
OXFORDSHIRE CC,ENVIRONMENT AND ECONOMY,"	WORK EXPERIENCE",IT SERVICES,02/05/2019,000008526621517,4.06,GOOGLE  GSUITE_OXFORDS
OXFORDSHIRE CC,ENVIRONMENT AND ECONOMY,"	CITY DEAL SKILLS",STAFF SUBSISTENCE,02/05/2019,000008526621519,116.10,JURYS INN OXFORD HOTEL
OXFORDSHIRE CC,"CHILDRENS, YOUNG PEOPLE AND FAMILIES","	RIVERSIDE CENTRE",CATERING PROVISIONS,02/05/2019,000008526621705,22.30,TESCO STORES 4377
OXFORDSHIRE CC,"CHILDRENS, YOUNG PEOPLE AND FAMILIES",0-5 STDS & PROGRESS,PAYMENTS TO VOLUNTARY BODIES,02/05/2019,000008526621777,-35.00,WP-THE BRITISH ASS
OXFORDSHIRE CC,"CHILDRENS, YOUNG PEOPLE AND FAMILIES","	MUSIC UNALLOCABLE","BOOKS, DVDS AND CDS",02/05/2019,000008526621799,.79,ITUNES.COM/BILL
OXFORDSHIRE CC,"CHILDRENS, YOUNG PEOPLE AND FAMILIES","	MUSIC UNALLOCABLE","BOOKS, DVDS AND CDS",02/05/2019,000008526621677,18.45,PRESTO MUSIC
OXFORDSHIRE CC,CORPORATE CORE,"	PERSONNEL","PUBLICITY, PROMOTIONS AND ADVERTISEMENT",02/05/2019,000008526621615,200.00,FACEBK 3F7W5KNH72
OXFORDSHIRE CC,CORPORATE CORE,CENTRAL BUYING TEAM,VEHICLE FUEL,02/05/2019,000008526621837,20.00,TESCO PFS 3700
OXFORDSHIRE CC,SOCIAL AND COMMUNITY SERVICES,CORP PROC SERVICE,PAYMENTS TO TRANSPORT OPERATORS,02/05/2019,000008526621681,17.40,WARWICK PWAY SSTP
OXFORDSHIRE CC,CORPORATE CORE,INCOME TEAM,REGISTRATION AND INSPECTION FEES,02/05/2019,000008526621851,10.00,WWW.GOV.UK
OXFORDSHIRE CC,ENVIRONMENT AND ECONOMY,COUNTY LIBRARY,GENERAL MAINTENANCE,02/05/2019,000008526621561,35.69, WOLSELEY UK
OXFORDSHIRE CC,ENVIRONMENT AND ECONOMY,COUNTY LIBRARY,GENERAL MAINTENANCE,02/05/2019,000008526621563,8.38, WOLSELEY UK
OXFORDSHIRE CC,ENVIRONMENT AND ECONOMY,COUNTY LIBRARY,HARDWARE AND CROCKERY,02/05/2019,000008526621565,8.07,CITY PLUMBING
OXFORDSHIRE CC,ENVIRONMENT AND ECONOMY,HARD FM,GENERAL MAINTENANCE,02/05/2019,000008526621533,31.15, WOLSELEY UK
OXFORDSHIRE CC,ENVIRONMENT AND ECONOMY,HARD FM,EQUIPMENT,02/05/2019,000008526621535,74.40,SI PUMPS LIMITED
OXFORDSHIRE CC,ENVIRONMENT AND ECONOMY,HARD FM,HARDWARE AND CROCKERY,02/05/2019,000008526621537,8.95,WICKES BANBURY
OXFORDSHIRE CC,ENVIRONMENT AND ECONOMY,HARD FM,EQUIPMENT,02/05/2019,000008526621539,32.82,ASPHALTIC ROOFING
OXFORDSHIRE CC,ENVIRONMENT AND ECONOMY,HARD FM,CLOTHING AND UNIFORMS,02/05/2019,000008526621541,38.00,SQ  SOUTH EAST WORKWEA
OXFORDSHIRE CC,ENVIRONMENT AND ECONOMY,HARD FM,HARDWARE AND CROCKERY,02/05/2019,000008526621543,44.98,SCREWFIX BANBURY
OXFORDSHIRE CC,ENVIRONMENT AND ECONOMY,HARD FM,HARDWARE AND CROCKERY,02/05/2019,000008526621545,31.17,CITY PLUMBING
OXFORDSHIRE CC,ENVIRONMENT AND ECONOMY,HARD FM,HARDWARE AND CROCKERY,02/05/2019,000008526621547,43.61,BUILDBASE - OXFORD
OXFORDSHIRE CC,ENVIRONMENT AND ECONOMY,HARD FM,EQUIPMENT,02/05/2019,000008526621549,63.87,WILTS ELECTRICAL
OXFORDSHIRE CC,ENVIRONMENT AND ECONOMY,HARD FM,GENERAL MAINTENANCE,02/05/2019,000008526621551,29.39, WOLSELEY UK
OXFORDSHIRE CC,ENVIRONMENT AND ECONOMY,HARD FM,HARDWARE AND CROCKERY,02/05/2019,000008526621557,19.44,OXON FASTENING SYSTEMS
OXFORDSHIRE CC,SOCIAL AND COMMUNITY SERVICES,BICESTER LIBRARY,MATERIALS,02/05/2019,000008526621839,8.00,B&M RETAIL
OXFORDSHIRE CC,ENVIRONMENT AND ECONOMY,"	TVERC",IT SOFTWARE,02/05/2019,000008526621789,7.96,COGNITO-PRO
OXFORDSHIRE CC,ENVIRONMENT AND ECONOMY,"	TVERC",PAYMENT TO GOVERNMENT DEPARTMENTS,02/05/2019,000008526621791,6.00,LAND REGISTRY
OXFORDSHIRE CC,ENVIRONMENT AND ECONOMY,"	TVERC",PAYMENT TO GOVERNMENT DEPARTMENTS,02/05/2019,000008526621793,6.00,LAND REGISTRY
OXFORDSHIRE CC,ENVIRONMENT AND ECONOMY,"	TVERC",IT SERVICES,02/05/2019,000008526621795,60.00,SUB 6 LTD
OXFORDSHIRE CC,CORPORATE CORE,OPERATIONS,EQUIPMENT,02/05/2019,000008526621669,-7.99,AMZ RANKIE-DIRECT
OXFORDSHIRE CC,CORPORATE CORE,"	LEGAL SERVICES",LEGAL COSTS,02/05/2019,000008526621703,11.00,OXFORDSHIRE CC MOTO1
OXFORDSHIRE CC,"CHILDRENS, YOUNG PEOPLE AND FAMILIES",ICT INFORMATION,IT SOFTWARE,02/05/2019,000008526621553,77.28,GOOGLE  CLOUD_01D722-8
OXFORDSHIRE CC,SOCIAL AND COMMUNITY SERVICES,CSS - BANBURY,MATERIALS,02/05/2019,000008526621759,289.61,LBS WORLDWIDE LTD
OXFORDSHIRE CC,SOCIAL AND COMMUNITY SERVICES,CSS - BANBURY,MATERIALS,02/05/2019,000008526621761,389.91,BALL COLEGRAVE GBP
OXFORDSHIRE CC,SOCIAL AND COMMUNITY SERVICES,CSS - DIDCOT,MATERIALS,02/05/2019,000008526621505,15.98,CHARLTON PARK GDN
OXFORDSHIRE CC,SOCIAL AND COMMUNITY SERVICES,CSS - OXFORD,CATERING PROVISIONS,02/05/2019,000008526621573,9.20,TESCO STORE 2990
OXFORDSHIRE CC,"CHILDRENS, YOUNG PEOPLE AND FAMILIES",CSS WALLINGFORD,TECHNICAL AND PROFESSIONAL CONSULTANT F,02/05/2019,000008526621509,240.00,OXFORD AERIALS LTD
OXFORDSHIRE CC,"CHILDRENS, YOUNG PEOPLE AND FAMILIES",EYNSHAM,MATERIALS,02/05/2019,000008526621499,-63.98,AMZ THE LIGHT FACTORY
OXFORDSHIRE CC,"CHILDRENS, YOUNG PEOPLE AND FAMILIES",EYNSHAM,CATERING,02/05/2019,000008526621605,50.30,OXY ORIENTAL
OXFORDSHIRE CC,"CHILDRENS, YOUNG PEOPLE AND FAMILIES",WITNEY,CATERING PROVISIONS,02/05/2019,000008526621501,22.75,SAINSBURYS 0632
OXFORDSHIRE CC,"CHILDRENS, YOUNG PEOPLE AND FAMILIES",WITNEY,CATERING PROVISIONS,02/05/2019,000008526621503,3.70,SAINSBURYS 0632
OXFORDSHIRE CC,"CHILDRENS, YOUNG PEOPLE AND FAMILIES",DIDCOT MOVE-ON HOME,CATERING PROVISIONS,02/05/2019,000008526621617,5.90,TESCO STORE 2413
OXFORDSHIRE CC,"CHILDRENS, YOUNG PEOPLE AND FAMILIES",DIDCOT MOVE-ON HOME,CATERING PROVISIONS,02/05/2019,000008526621619,45.60,SAINSBURYS SACAT 2067
OXFORDSHIRE CC,SOCIAL AND COMMUNITY SERVICES,DIDCOT MOVE-ON HOME,CATERING PROVISIONS,02/05/2019,000008526621591,5.45,CO-OP FOOD
OXFORDSHIRE CC,"CHILDRENS, YOUNG PEOPLE AND FAMILIES",DIDCOT MOVE-ON HOME,CATERING PROVISIONS,02/05/2019,000008526621773,17.90,SAINSBURYS 2067
OXFORDSHIRE CC,"CHILDRENS, YOUNG PEOPLE AND FAMILIES","	MALTFIELD HOUSE",CATERING PROVISIONS,02/05/2019,000008526621727,2.40,SAINSBURYS SACAT 0730
OXFORDSHIRE CC,"CHILDRENS, YOUNG PEOPLE AND FAMILIES",THAME E&A HOME,CATERING PROVISIONS,02/05/2019,000008526621475,5.10,WAITROSE 206
OXFORDSHIRE CC,"CHILDRENS, YOUNG PEOPLE AND FAMILIES",THAME E&A HOME,ENTERTAINMENT EXPENSES,02/05/2019,000008526621613,23.07,HOLLYWOOD BOWL
OXFORDSHIRE CC,"CHILDRENS, YOUNG PEOPLE AND FAMILIES",THAME E&A HOME,DRUGS AND MEDICAL SUPPLIES,02/05/2019,000008526621513,4.69,"BOOTS,THAME"
OXFORDSHIRE CC,"CHILDRENS, YOUNG PEOPLE AND FAMILIES",THAME E&A HOME,OTHER TRANSPORT ARRANGEMENTS,02/05/2019,000008526621515,15.10,APCOA CONNECT - FGW
OXFORDSHIRE CC,"CHILDRENS, YOUNG PEOPLE AND FAMILIES",THAME E&A HOME,"BOOKS, DVDS AND CDS",02/05/2019,000008526621555,9.49,AMZN MKTP UK MN4WY54F4
OXFORDSHIRE CC,"CHILDRENS, YOUNG PEOPLE AND FAMILIES",THAME E&A HOME,CATERING,02/05/2019,000008526621457,5.70,COSTA COFFEE 43037200
OXFORDSHIRE CC,"CHILDRENS, YOUNG PEOPLE AND FAMILIES",THAME E&A HOME,MATERIALS,02/05/2019,000008526621459,29.93,WWW.ARGOS.CO.UK
OXFORDSHIRE CC,"CHILDRENS, YOUNG PEOPLE AND FAMILIES",THAME E&A HOME,CATERING,02/05/2019,000008526621577,12.75,LEAGUE OF FRNDS OF J R
OXFORDSHIRE CC,"CHILDRENS, YOUNG PEOPLE AND FAMILIES",THAME E&A HOME,MATERIALS,02/05/2019,000008526621579,16.04,WH SMITH TRAVEL
OXFORDSHIRE CC,"CHILDRENS, YOUNG PEOPLE AND FAMILIES","	40 THE MOORS",FURNITURE,02/05/2019,000008526621709,7.99,ARGOS KIDLINGTON INSID
OXFORDSHIRE CC,"CHILDRENS, YOUNG PEOPLE AND FAMILIES","	40 THE MOORS",CATERING,02/05/2019,000008526621765,1.78,TESCO STORE 2788
OXFORDSHIRE CC,"CHILDRENS, YOUNG PEOPLE AND FAMILIES","	40 THE MOORS",CATERING,02/05/2019,000008526621767,3.00,SAINSBURYS SACAT 0631
OXFORDSHIRE CC,"CHILDRENS, YOUNG PEOPLE AND FAMILIES",ARE,OTHER TRANSPORT ARRANGEMENTS,02/05/2019,000008526621833,44.30,GWR DIDCOT PKWY TO
OXFORDSHIRE CC,"CHILDRENS, YOUNG PEOPLE AND FAMILIES",DEPUTY DIRECTOR &MAN,PAYMENTS TO TRANSPORT OPERATORS,02/05/2019,000008526621841,30.10,GWR OXFORD TO
OXFORDSHIRE CC,"CHILDRENS, YOUNG PEOPLE AND FAMILIES",KINGFISHER,CATERING,02/05/2019,000008526621725,6.70,MCDONALDS
OXFORDSHIRE CC,"CHILDRENS, YOUNG PEOPLE AND FAMILIES",CNTL ERLY HELP-BBLEY,CATERING PROVISIONS,02/05/2019,000008526621843,5.50,TESCO STORE 2990
OXFORDSHIRE CC,"CHILDRENS, YOUNG PEOPLE AND FAMILIES",C&F - TF CONTRIB,OTHER TRANSPORT ARRANGEMENTS,02/05/2019,000008526621857,24.00,WWW.THEKEY.CO.UK
OXFORDSHIRE CC,"CHILDRENS, YOUNG PEOPLE AND FAMILIES","	FPT NORTH",PAYMENTS TO TRANSPORT OPERATORS,02/05/2019,000008526621683,25.10,BICESTER NORTH STATION
OXFORDSHIRE CC,"CHILDRENS, YOUNG PEOPLE AND FAMILIES","	FAM SUPP CITY 1",MATERIALS,02/05/2019,000008526621763,184.00,CURRYS ONLINE
OXFORDSHIRE CC,"CHILDRENS, YOUNG PEOPLE AND FAMILIES",NTH FAM SUPRT-BCSTR,HIRE OF ACCOMMODATION AND FACILITIES,02/05/2019,000008526621855,88.00,B.COM 116496-3LXUJ EUR
OXFORDSHIRE CC,"CHILDRENS, YOUNG PEOPLE AND FAMILIES","	FAMILY SUPPORT S'TH2",CLIENT LODGINGS AND ACCOMMODATION,02/05/2019,000008526621467,70.00,THE GEORGE HOTEL
OXFORDSHIRE CC,"CHILDRENS, YOUNG PEOPLE AND FAMILIES","	LOOKED AFTER NORTH",PAYMENTS TO TRANSPORT OPERATORS,02/05/2019,000008526621813,75.00,GWR BRISTOL TM GATE
OXFORDSHIRE CC,"CHILDRENS, YOUNG PEOPLE AND FAMILIES","	LOOKED AFTER NORTH",MATERIALS,02/05/2019,000008526621815,1.39,FUNKY PIGEON
OXFORDSHIRE CC,"CHILDRENS, YOUNG PEOPLE AND FAMILIES","	LOOKED AFTER NORTH",OTHER TRANSPORT ARRANGEMENTS,02/05/2019,000008526621817,3.10,APCOA CONNECT - FGW
OXFORDSHIRE CC,"CHILDRENS, YOUNG PEOPLE AND FAMILIES","	LOOKED AFTER NORTH",CATERING,02/05/2019,000008526621829,8.04,LE PAIN QUOTIDIEN
OXFORDSHIRE CC,SOCIAL AND COMMUNITY SERVICES,LOOKED AFTER NORTH,OTHER TRANSPORT ARRANGEMENTS,02/05/2019,000008526621493,1.20,CHERWELL DC CAR PARK
OXFORDSHIRE CC,"CHILDRENS, YOUNG PEOPLE AND FAMILIES","	LOOKED AFTER NORTH",OTHER TRANSPORT ARRANGEMENTS,02/05/2019,000008526621831,3.00,WESTGATE OXFORD CAR PA
OXFORDSHIRE CC,"CHILDRENS, YOUNG PEOPLE AND FAMILIES","	LOOKED AFTER NORTH",OTHER TRANSPORT ARRANGEMENTS,02/05/2019,000008526621569,2.00,HORIZON FARNBOROUGH
OXFORDSHIRE CC,"CHILDRENS, YOUNG PEOPLE AND FAMILIES","	LOOKED AFTER NORTH",VEHICLE FUEL,02/05/2019,000008526621571,22.00,ESSO BICESTER SERVICES
OXFORDSHIRE CC,"CHILDRENS, YOUNG PEOPLE AND FAMILIES","	LOOKED AFTER SOUTH",PAYMENTS TO TRANSPORT OPERATORS,02/05/2019,000008526621495,44.20,WWW.GWR.COM
OXFORDSHIRE CC,SOCIAL AND COMMUNITY SERVICES,LOOKED AFTER SOUTH,VEHICLE FUEL,02/05/2019,000008526621471,51.47,TESCO PFS 3932
OXFORDSHIRE CC,SOCIAL AND COMMUNITY SERVICES,LOOKED AFTER SOUTH,CATERING,02/05/2019,000008526621473,8.07,MCDONALDS
OXFORDSHIRE CC,"CHILDRENS, YOUNG PEOPLE AND FAMILIES","	SM QUALITY ASSURANCE",MATERIALS,02/05/2019,000008526621603,17.58,AMZNMKTPLACE
OXFORDSHIRE CC,"CHILDRENS, YOUNG PEOPLE AND FAMILIES","	SM QUALITY ASSURANCE",PAYMENTS TO TRANSPORT OPERATORS,02/05/2019,000008526621521,73.00,TRAINLINE
OXFORDSHIRE CC,"CHILDRENS, YOUNG PEOPLE AND FAMILIES","	LEAVING CARE NORTH",PAYMENT TO GOVERNMENT DEPARTMENTS,02/05/2019,000008526621801,75.00,2MAA009153538 TD E-PMT
OXFORDSHIRE CC,"CHILDRENS, YOUNG PEOPLE AND FAMILIES","	LEAVING CARE NORTH",PAYMENT TO GOVERNMENT DEPARTMENTS,02/05/2019,000008526621803,34.00,DVLA DRIVER ONLINE
OXFORDSHIRE CC,"CHILDRENS, YOUNG PEOPLE AND FAMILIES","	LEAVING CARE NORTH",CATERING,02/05/2019,000008526621721,2.20,CAFE LOCO TRADING
OXFORDSHIRE CC,"CHILDRENS, YOUNG PEOPLE AND FAMILIES","	LEAVING CARE NORTH",PAYMENTS TO TRANSPORT OPERATORS,02/05/2019,000008526621723,3.10,OXFORD PARKWAY
OXFORDSHIRE CC,"CHILDRENS, YOUNG PEOPLE AND FAMILIES","	LEAVING CARE SOUTH",FURNITURE,02/05/2019,000008526621807,"1,283.00",DREAMS LTD
OXFORDSHIRE CC,SOCIAL AND COMMUNITY SERVICES,"	MENTAL CAPACITY",OTHER TRAINING COURSES AND QUALIFICATION,02/05/2019,000008526621819,72.00,PAYPAL  STTHOMASTRA
OXFORDSHIRE CC,SOCIAL AND COMMUNITY SERVICES,ADULTS AT RISK,HIRE OF ACCOMMODATION AND FACILITIES,02/05/2019,000008526621567,227.37,B.COM 115979-RKASX OXF
OXFORDSHIRE CC,SOCIAL AND COMMUNITY SERVICES,"	VISUAL IMP. TEAM",CATERING,02/05/2019,000008526621667,97.20,SANDWICH EXPRESS
OXFORDSHIRE CC,SOCIAL AND COMMUNITY SERVICES,"	LEADERSHIP TEAM",OTHER TRANSPORT ARRANGEMENTS,02/05/2019,000008526621783,34.73,HEART OF ENGLAND DISTR
OXFORDSHIRE CC,SOCIAL AND COMMUNITY SERVICES,UASC 16&17,OTHER TRANSPORT ARRANGEMENTS,02/05/2019,000008526621581,26.00,STAGECOACH OXFORD
OXFORDSHIRE CC,SOCIAL AND COMMUNITY SERVICES,UASC 16&17,PAYMENTS TO TRANSPORT OPERATORS,02/05/2019,000008526621583,7.90,NEW SOUTHERN RAILW
OXFORDSHIRE CC,SOCIAL AND COMMUNITY SERVICES,UASC 16&17,PAYMENTS TO TRANSPORT OPERATORS,02/05/2019,000008526621585,12.00,NEW SOUTHERN RAILW
OXFORDSHIRE CC,SOCIAL AND COMMUNITY SERVICES,UASC 16&17,CATERING PROVISIONS,02/05/2019,000008526621587,2.00,WAITROSE 477
OXFORDSHIRE CC,SOCIAL AND COMMUNITY SERVICES,UASC 16&17,CATERING,02/05/2019,000008526621589,6.69,MCDONALDS
OXFORDSHIRE CC,"CHILDRENS, YOUNG PEOPLE AND FAMILIES","	MANAGEMENT & ADMIN",PAYMENTS TO VOLUNTARY BODIES,02/05/2019,000008526621511,110.00,PAYPAL  OCVA
OXFORDSHIRE CC,CORPORATE CORE,MOTOR FLEET,MOTOR IF FEES,02/05/2019,000008526621821,42.00,SIDNEY H HOOPER & COMP
OXFORDSHIRE CC,CORPORATE CORE,OTHER,INSUR AD HOLD ACC-E,02/05/2019,000008526621823,822.00,INFOPRO DIGITAL SERVIC
OXFORDSHIRE CC,CORPORATE CORE,,"SUPPLIES, STATIONERY AND MATERIALS",03/05/2019,000008532471577,202.14,LYRECO UK LTD
OXFORDSHIRE CC,"CHILDRENS, YOUNG PEOPLE AND FAMILIES",ATV ADOPTION WOODLEY,POSTAGE AND DELIVERY,03/05/2019,000008532471177,1.50,ROYAL MAIL CHARGES
OXFORDSHIRE CC,"CHILDRENS, YOUNG PEOPLE AND FAMILIES",SWINDON,POSTAGE AND DELIVERY,03/05/2019,000008532471293,330.00,ROYAL MAIL GROUP
OXFORDSHIRE CC,"CHILDRENS, YOUNG PEOPLE AND FAMILIES","	RIVERSIDE CENTRE",CATERING PROVISIONS,03/05/2019,000008532471285,14.77,SAINSBURYS SACAT 0600
OXFORDSHIRE CC,"CHILDRENS, YOUNG PEOPLE AND FAMILIES","	RIVERSIDE CENTRE",HARDWARE AND CROCKERY,03/05/2019,000008532471593,242.90,SCREWFIX DIRECT
OXFORDSHIRE CC,"CHILDRENS, YOUNG PEOPLE AND FAMILIES",C&I NON PUBLIC FUND,OTHER PREMISES RELATED COSTS,03/05/2019,000008532471511,54.00,PAYPAL  LRFETHEYES
OXFORDSHIRE CC,"CHILDRENS, YOUNG PEOPLE AND FAMILIES","	AAC EQUIPMENT",PURCHASE OF IT EQUIPMENT,03/05/2019,000008532471467,119.79,AMZN MKTP UK MN4UD9Z14
OXFORDSHIRE CC,CORPORATE CORE,,"SUPPLIES, STATIONERY AND MATERIALS",03/05/2019,000008532471579,4.66,LYRECO UK LTD
OXFORDSHIRE CC,CORPORATE CORE,,"SUPPLIES, STATIONERY AND MATERIALS",03/05/2019,000008532471581,60.71,LYRECO UK LTD
OXFORDSHIRE CC,ENVIRONMENT AND ECONOMY,HOLDING CODE FOR REA,HARDWARE AND CROCKERY,03/05/2019,000008532471183,372.00,BUILDBASE - OXFORD
OXFORDSHIRE CC,ENVIRONMENT AND ECONOMY,"	FM RECHARGES",MATERIALS,03/05/2019,000008532471235,"1,380.00",EVERYTHING BRANDED
OXFORDSHIRE CC,ENVIRONMENT AND ECONOMY,"	COUNTY HALL",MATERIALS,03/05/2019,000008532471353,29.90,AMZNMKTPLACE
OXFORDSHIRE CC,ENVIRONMENT AND ECONOMY,"	COUNTY HALL",MATERIALS,03/05/2019,000008532471355,13.98,AMZNMKTPLACE
OXFORDSHIRE CC,ENVIRONMENT AND ECONOMY,HARD FM,HARDWARE AND CROCKERY,03/05/2019,000008532471237,13.57,SCREWFIX ABINGDON
OXFORDSHIRE CC,ENVIRONMENT AND ECONOMY,HARD FM,EQUIPMENT,03/05/2019,000008532471239,35.28,W F SENATE
OXFORDSHIRE CC,ENVIRONMENT AND ECONOMY,HARD FM,HARDWARE AND CROCKERY,03/05/2019,000008532471241,81.94,BUILDBASE - OXFORD
OXFORDSHIRE CC,ENVIRONMENT AND ECONOMY,HARD FM,HARDWARE AND CROCKERY,03/05/2019,000008532471243,151.69,HOWDENS - OXFORD D879
OXFORDSHIRE CC,ENVIRONMENT AND ECONOMY,HARD FM,HARDWARE AND CROCKERY,03/05/2019,000008532471245,112.10,CITY PLUMBING
OXFORDSHIRE CC,ENVIRONMENT AND ECONOMY,HARD FM,HARDWARE AND CROCKERY,03/05/2019,000008532471247,39.10,CITY PLUMBING
OXFORDSHIRE CC,ENVIRONMENT AND ECONOMY,HARD FM,HARDWARE AND CROCKERY,03/05/2019,000008532471249,51.99,SCREWFIX OXFORD
OXFORDSHIRE CC,ENVIRONMENT AND ECONOMY,HARD FM,HARDWARE AND CROCKERY,03/05/2019,000008532471251,79.98,SCREWFIX OXFORD
OXFORDSHIRE CC,ENVIRONMENT AND ECONOMY,HARD FM,HARDWARE AND CROCKERY,03/05/2019,000008532471257,34.80,THE FENCING CENTRE
OXFORDSHIRE CC,CORPORATE CORE,SCHOOLS FM,CATERING PROVISIONS,03/05/2019,000008532471287,37.43,TESCO STORE 2413
OXFORDSHIRE CC,CORPORATE CORE,HISTORY SERVICE,FURNITURE,03/05/2019,000008532471381,17.48,AMZNMKTPLACE
OXFORDSHIRE CC,CORPORATE CORE,HISTORY SERVICE,"BOOKS, DVDS AND CDS",03/05/2019,000008532471383,58.98,AMAZON.CO.UK MN9885L54
OXFORDSHIRE CC,ENVIRONMENT AND ECONOMY,"	LIBRARY PROJECTS",MATERIALS,03/05/2019,000008532471507,30.99,AMZNMKTPLACE
OXFORDSHIRE CC,CORPORATE CORE,LIBRARY COLLECTIONS,"NEWSPAPERS, PERIODICALS AND PUBLICATIONS",03/05/2019,000008532471325,47.62,GUARDIAN NEWS & MEDIA
OXFORDSHIRE CC,ENVIRONMENT AND ECONOMY,MUSEUM CAFE,EQUIPMENT,03/05/2019,000008532471417,87.49,AMZN MKTP UK MN8XW0LE4
OXFORDSHIRE CC,ENVIRONMENT AND ECONOMY,"	LEP","PUBLICITY, PROMOTIONS AND ADVERTISEMENT",03/05/2019,000008532471207,32.90,GOOGLE  GSUITE_
OXFORDSHIRE CC,ENVIRONMENT AND ECONOMY,"	LEP",RECRUTIMENT EXPENSES (EXCL. ADVERTISING),03/05/2019,000008532471461,845.43,WORKABLE
OXFORDSHIRE CC,CORPORATE CORE,"	LEGAL SERVICES",LEGAL COSTS,03/05/2019,000008532471397,"2,700.00",3PB MSL
OXFORDSHIRE CC,ENVIRONMENT AND ECONOMY,"	COUNTY PRINT FINSHRS",GAS,03/05/2019,000008532471195,232.32,ALLSTAR BUSINESS SOLUT
OXFORDSHIRE CC,SOCIAL AND COMMUNITY SERVICES,CSS - ABINGDON,MATERIALS,03/05/2019,000008532471231,31.34,LEWIS BAKER RETAIL LTD
OXFORDSHIRE CC,SOCIAL AND COMMUNITY SERVICES,CSS - ABINGDON,MATERIALS,03/05/2019,000008532471233,25.00,POUNDLAND LTD 1366
OXFORDSHIRE CC,SOCIAL AND COMMUNITY SERVICES,CSS BICESTER,POSTAGE AND DELIVERY,03/05/2019,000008532471201,40.00,THE POST OFFICE
OXFORDSHIRE CC,SOCIAL AND COMMUNITY SERVICES,CSS - DIDCOT,CATERING PROVISIONS,03/05/2019,000008532471145,81.57,THE OLD FARM SHOP
OXFORDSHIRE CC,SOCIAL AND COMMUNITY SERVICES,CSS - DIDCOT,LICENCES,03/05/2019,000008532471147,203.69,CVLE / MPLC
OXFORDSHIRE CC,SOCIAL AND COMMUNITY SERVICES,CSS - OXFORD,MATERIALS,03/05/2019,000008532471351,49.90,FREELANCE FABRICS
OXFORDSHIRE CC,SOCIAL AND COMMUNITY SERVICES,CSS WALLINGFORD,PAYMENTS TO VOLUNTARY BODIES,03/05/2019,000008532471301,4.00,HELEN & DOUGLAS HOUSE
OXFORDSHIRE CC,SOCIAL AND COMMUNITY SERVICES,CSS WITNEY,MATERIALS,03/05/2019,000008532471465,2.78,AMZNMKTPLACE
OXFORDSHIRE CC,ENVIRONMENT AND ECONOMY,"	FLEET OPERATIONS","NEWSPAPERS, PERIODICALS AND PUBLICATIONS",03/05/2019,000008532471487,318.00,WWW.FTA.CO.UK
OXFORDSHIRE CC,"CHILDRENS, YOUNG PEOPLE AND FAMILIES","	RESIDENTIAL STRATEGY",CATERING,03/05/2019,000008532471187,7.58,SUBWAY
OXFORDSHIRE CC,"CHILDRENS, YOUNG PEOPLE AND FAMILIES","	RESIDENTIAL STRATEGY",CATERING,03/05/2019,000008532471189,30.60,HONGXIN
OXFORDSHIRE CC,"CHILDRENS, YOUNG PEOPLE AND FAMILIES","	RESIDENTIAL STRATEGY",CATERING PROVISIONS,03/05/2019,000008532471193,1.10,TESCO STORES 4338
OXFORDSHIRE CC,"CHILDRENS, YOUNG PEOPLE AND FAMILIES",WITNEY,CATERING PROVISIONS,03/05/2019,000008532471179,6.82,ALDI STORES 775-142
OXFORDSHIRE CC,"CHILDRENS, YOUNG PEOPLE AND FAMILIES",DIDCOT MOVE-ON HOME,CATERING PROVISIONS,03/05/2019,000008532471513,32.50,TESCO STORE 2413
OXFORDSHIRE CC,"CHILDRENS, YOUNG PEOPLE AND FAMILIES",THAME E&A HOME,MATERIALS,03/05/2019,000008532471197,15.20,M & S SIMPLY FOOD
OXFORDSHIRE CC,"CHILDRENS, YOUNG PEOPLE AND FAMILIES",THAME E&A HOME,MATERIALS,03/05/2019,000008532471203,4.97,AMZNMKTPLACE AMAZON.CO
OXFORDSHIRE CC,"CHILDRENS, YOUNG PEOPLE AND FAMILIES",THAME E&A HOME,"BOOKS, DVDS AND CDS",03/05/2019,000008532471253,6.80,AMZN MKTP UK MN8O34LM4
OXFORDSHIRE CC,"CHILDRENS, YOUNG PEOPLE AND FAMILIES",THAME E&A HOME,OTHER TRANSPORT ARRANGEMENTS,03/05/2019,000008532471255,7.00,WESTGATE OXFORD CAR PA
OXFORDSHIRE CC,"CHILDRENS, YOUNG PEOPLE AND FAMILIES",THAME E&A HOME,TELEPHONE - EQUIPMENT,03/05/2019,000008532471399,40.00,PREZZO EGIFT
OXFORDSHIRE CC,"CHILDRENS, YOUNG PEOPLE AND FAMILIES",THAME E&A HOME,CATERING,03/05/2019,000008532471401,18.40,SUBWAY
OXFORDSHIRE CC,"CHILDRENS, YOUNG PEOPLE AND FAMILIES",THAME E&A HOME,MATERIALS,03/05/2019,000008532471153,51.00,WWW.HAMLEYS.COM
OXFORDSHIRE CC,"CHILDRENS, YOUNG PEOPLE AND FAMILIES",THAME E&A HOME,MATERIALS,03/05/2019,000008532471161,30.03,AMAZON.CO.UK MN7GM3LN4
OXFORDSHIRE CC,"CHILDRENS, YOUNG PEOPLE AND FAMILIES",THAME E&A HOME,ENTERTAINMENT EXPENSES,03/05/2019,000008532471319,37.32,HOLLYWOOD BOWL
OXFORDSHIRE CC,"CHILDRENS, YOUNG PEOPLE AND FAMILIES","	40 THE MOORS",OTHER EXPENSES,03/05/2019,000008532471327,1.99,AMZNMKTPLACE
OXFORDSHIRE CC,"CHILDRENS, YOUNG PEOPLE AND FAMILIES","	40 THE MOORS",OTHER EXPENSES,03/05/2019,000008532471329,10.98,AMZNMKTPLACE AMAZON.CO
OXFORDSHIRE CC,"CHILDRENS, YOUNG PEOPLE AND FAMILIES","	40 THE MOORS",OTHER TRANSPORT ARRANGEMENTS,03/05/2019,000008532471505,15.00,IZ  ROYAL CARS 375
OXFORDSHIRE CC,"CHILDRENS, YOUNG PEOPLE AND FAMILIES","	40 THE MOORS",OTHER EXPENSES,03/05/2019,000008532471547,11.70,JS SPORTS BAR
OXFORDSHIRE CC,"CHILDRENS, YOUNG PEOPLE AND FAMILIES","	40 THE MOORS",OTHER EXPENSES,03/05/2019,000008532471549,26.15,SUMUP   001
OXFORDSHIRE CC,"CHILDRENS, YOUNG PEOPLE AND FAMILIES","	40 THE MOORS",OTHER EXPENSES,03/05/2019,000008532471551,26.80,SUMUP   001
OXFORDSHIRE CC,"CHILDRENS, YOUNG PEOPLE AND FAMILIES",KINGFISHER,CATERING,03/05/2019,000008532471451,5.35,COSTA COFFEE 43036780
OXFORDSHIRE CC,"CHILDRENS, YOUNG PEOPLE AND FAMILIES",NTH EARLY HELP-BCSTR,"SUPPLIES, STATIONERY AND MATERIALS",03/05/2019,000008532471149,33.45,AMZN MKTP UK MN8NC5LZ4
OXFORDSHIRE CC,"CHILDRENS, YOUNG PEOPLE AND FAMILIES",C&F - TF CONTRIB,PAYMENTS TO TRANSPORT OPERATORS,03/05/2019,000008532471601,80.55,WWW.GWR.COM
OXFORDSHIRE CC,"CHILDRENS, YOUNG PEOPLE AND FAMILIES",C&F - TF CONTRIB,PAYMENTS TO TRANSPORT OPERATORS,03/05/2019,000008532471603,17.20,WWW.GWR.COM
OXFORDSHIRE CC,"CHILDRENS, YOUNG PEOPLE AND FAMILIES",FPT SOUTH/VALE,HIRE OF ACCOMMODATION AND FACILITIES,03/05/2019,000008532471553,67.50,PREMIER INN
OXFORDSHIRE CC,SOCIAL AND COMMUNITY SERVICES,"	MTFC",CATERING PROVISIONS,03/05/2019,000008532471423,3.60,SAINSBURYS 0642
OXFORDSHIRE CC,ENTERPRISEVC,OTFC TEAM,HOSPITALITY EXPENSES,03/05/2019,000008532471305,5.95,THE WATERMEAD INN
OXFORDSHIRE CC,"CHILDRENS, YOUNG PEOPLE AND FAMILIES",NORTH FSS- BANBURY,REGISTRATION AND INSPECTION FEES,03/05/2019,000008532471317,6.60,PAYPAL  ROYAL MAIL
OXFORDSHIRE CC,"CHILDRENS, YOUNG PEOPLE AND FAMILIES",NTH FAM SUPRT-BCSTR,PAYMENTS TO TRANSPORT OPERATORS,03/05/2019,000008532471151,9.50,WWW.GWR.COM
OXFORDSHIRE CC,"CHILDRENS, YOUNG PEOPLE AND FAMILIES","	FAMILY SUPPORT S'TH2",DAY ACTIVITIES,03/05/2019,000008532471157,442.50,WWW.PAULTONSPARK.CO.UK
OXFORDSHIRE CC,"CHILDRENS, YOUNG PEOPLE AND FAMILIES","	LOOKED AFTER NORTH",FURNITURE,03/05/2019,000008532471583,5.74,DUNELM LTD
OXFORDSHIRE CC,"CHILDRENS, YOUNG PEOPLE AND FAMILIES","	LOOKED AFTER NORTH",MATERIALS,03/05/2019,000008532471303,12.95,ARGOS RETAIL GROUP
OXFORDSHIRE CC,"CHILDRENS, YOUNG PEOPLE AND FAMILIES","	LOOKED AFTER CITY 1",CATERING,03/05/2019,000008532471225,3.80,COSTA @ TESCO
OXFORDSHIRE CC,"CHILDRENS, YOUNG PEOPLE AND FAMILIES","	LOOKED AFTER CITY 1",MATERIALS,03/05/2019,000008532471229,14.40,AMAZON.CO.UK MN86C6ZU4
OXFORDSHIRE CC,"CHILDRENS, YOUNG PEOPLE AND FAMILIES","	LOOKED AFTER CITY 1",MATERIALS,03/05/2019,000008532471499,139.99,ROBERT DYAS HOLDNG LTD
OXFORDSHIRE CC,SOCIAL AND COMMUNITY SERVICES,LOOKED AFTER SOUTH,OTHER TRANSPORT ARRANGEMENTS,03/05/2019,000008532471159,3.00,OXPENS CAR PARK
OXFORDSHIRE CC,"CHILDRENS, YOUNG PEOPLE AND FAMILIES","	LOOKED AFTER CITY 2",OTHER TRANSPORT ARRANGEMENTS,03/05/2019,000008532471363,3.50,WESTGATE OXFORD CAR PA
OXFORDSHIRE CC,"CHILDRENS, YOUNG PEOPLE AND FAMILIES","	LOOKED AFTER CITY 2",CATERING,03/05/2019,000008532471407,3.80,STARBUCKS COFFEE
OXFORDSHIRE CC,"CHILDRENS, YOUNG PEOPLE AND FAMILIES","	LOOKED AFTER CITY 2",OTHER TRANSPORT ARRANGEMENTS,03/05/2019,000008532471533,343.70,GWR DIDCOT PKWY TO
OXFORDSHIRE CC,"CHILDRENS, YOUNG PEOPLE AND FAMILIES","	LOOKED AFTER CITY 2",OTHER TRANSPORT ARRANGEMENTS,03/05/2019,000008532471535,6.80,GWR OXFORD SST
OXFORDSHIRE CC,"CHILDRENS, YOUNG PEOPLE AND FAMILIES","	LOOKED AFTER CITY 2",OTHER EXPENSES,03/05/2019,000008532471537,13.50,ASDA STORE 4442
OXFORDSHIRE CC,"CHILDRENS, YOUNG PEOPLE AND FAMILIES","	LEAVING CARE CITY 1",OTHER EXPENSES,03/05/2019,000008532471269,5.89,OXFORD PEARTREE KFC
OXFORDSHIRE CC,"CHILDRENS, YOUNG PEOPLE AND FAMILIES","	LEAVING CARE CITY 1",OTHER EXPENSES,03/05/2019,000008532471271,.99,OXFORD PEARTREE KFC
OXFORDSHIRE CC,"CHILDRENS, YOUNG PEOPLE AND FAMILIES","	LEAVING CARE SOUTH",PAYMENT TO GOVERNMENT DEPARTMENTS,03/05/2019,000008532471539,104.00,NHSBSA PPC
OXFORDSHIRE CC,"CHILDRENS, YOUNG PEOPLE AND FAMILIES","	LEAVING CARE SOUTH",CATERING,03/05/2019,000008532471541,4.27,MCDONALDS
OXFORDSHIRE CC,"CHILDRENS, YOUNG PEOPLE AND FAMILIES","	LEAVING CARE SOUTH",OTHER EXPENSES,03/05/2019,000008532471295,262.40,ALLPAY  ST MUNGOS
OXFORDSHIRE CC,"CHILDRENS, YOUNG PEOPLE AND FAMILIES","	LEAVING CARE CITY 2",OTHER EXPENSES,03/05/2019,000008532471357,374.00,CURRYS OXFORD 2401
OXFORDSHIRE CC,"CHILDRENS, YOUNG PEOPLE AND FAMILIES","	LEAVING CARE CITY 2",OTHER EXPENSES,03/05/2019,000008532471361,55.73,ARGOS LTD
OXFORDSHIRE CC,"CHILDRENS, YOUNG PEOPLE AND FAMILIES","	LEAVING CARE CITY 2",CATERING PROVISIONS,03/05/2019,000008532471405,30.00,SAINSBURYS SACAT 2067
OXFORDSHIRE CC,"CHILDRENS, YOUNG PEOPLE AND FAMILIES","	LEAVING CARE CITY 2",OTHER TRANSPORT ARRANGEMENTS,03/05/2019,000008532471411,10.80,GWR DIDCOT PKWY TO
OXFORDSHIRE CC,"CHILDRENS, YOUNG PEOPLE AND FAMILIES","	LEAVING CARE CITY 2",MATERIALS,03/05/2019,000008532471415,249.00,CURRYS SUPERSTORE2460
OXFORDSHIRE CC,CORPORATE CORE,"	COMMUNICATIONS",MATERIALS,06/05/2019,000008538728409,174.35,MAILCHIMP    MONTHLY
OXFORDSHIRE CC,"CHILDRENS, YOUNG PEOPLE AND FAMILIES",STEP INTO TRAINING,"SUPPLIES, STATIONERY AND MATERIALS",06/05/2019,000008538728169,39.99,AMZNMKTPLACE
OXFORDSHIRE CC,"CHILDRENS, YOUNG PEOPLE AND FAMILIES",STEP INTO TRAINING,"SUPPLIES, STATIONERY AND MATERIALS",06/05/2019,000008538728177,91.96,AMZN MKTP UK MN9LL83W4
OXFORDSHIRE CC,"CHILDRENS, YOUNG PEOPLE AND FAMILIES",STEP INTO TRAINING,"SUPPLIES, STATIONERY AND MATERIALS",06/05/2019,000008538728181,47.79,AMAZON.CO.UK MN09553Z4
OXFORDSHIRE CC,"CHILDRENS, YOUNG PEOPLE AND FAMILIES","	DIRECTOR'S OFFICE",PAYMENTS TO TRANSPORT OPERATORS,06/05/2019,000008538728333,-65.70,WWW.GWR.COM
OXFORDSHIRE CC,"CHILDRENS, YOUNG PEOPLE AND FAMILIES","	RIVERSIDE CENTRE",HARDWARE AND CROCKERY,06/05/2019,000008538728389,30.96,SCREWFIX OXFORD
OXFORDSHIRE CC,"CHILDRENS, YOUNG PEOPLE AND FAMILIES",0-5 STDS & PROGRESS,"SUPPLIES, STATIONERY AND MATERIALS",06/05/2019,000008538728173,17.08,AMZNMKTPLACE
OXFORDSHIRE CC,"CHILDRENS, YOUNG PEOPLE AND FAMILIES","	MUSIC UNALLOCABLE",STATIONERY,06/05/2019,000008538727821,22.50,WWW.PRIMATEL.CO.UK
OXFORDSHIRE CC,"CHILDRENS, YOUNG PEOPLE AND FAMILIES","	SEN/ICT EQUIPMENT",IT SERVICES,06/05/2019,000008538728019,42.44,WIRIS (MATHTYPE)
OXFORDSHIRE CC,CORPORATE CORE,"	PERSONNEL","PUBLICITY, PROMOTIONS AND ADVERTISEMENT",06/05/2019,000008538727739,300.00,FACEBK EZ6SGKJH72
OXFORDSHIRE CC,ENVIRONMENT AND ECONOMY,CENTRAL TEAM OCS,ENTERTAINMENT EXPENSES,06/05/2019,000008538728297,98.27,VISIT HERNING
OXFORDSHIRE CC,ENVIRONMENT AND ECONOMY,CENTRAL TEAM OCS,ENTERTAINMENT EXPENSES,06/05/2019,000008538728301,47.36,VISIT HERNING
OXFORDSHIRE CC,CORPORATE CORE,INCOME TEAM,EDUCATIONAL AND VOCATIONAL TRAINING ,06/05/2019,000008538728385,-33.00,OXFORDSHIRE CC MOTO1
OXFORDSHIRE CC,ENVIRONMENT AND ECONOMY,HARD FM,EQUIPMENT,06/05/2019,000008538727593,40.03,WILTS ELECTRICAL
OXFORDSHIRE CC,ENVIRONMENT AND ECONOMY,HARD FM,HARDWARE AND CROCKERY,06/05/2019,000008538727595,24.08,BUILDBASE - OXFORD
OXFORDSHIRE CC,"CHILDRENS, YOUNG PEOPLE AND FAMILIES",KIDLINGTON LIBRARY,EQUIPMENT,06/05/2019,000008538728237,89.85,AMZNMKTPLACE AMAZON.CO
OXFORDSHIRE CC,ENVIRONMENT AND ECONOMY,"	TVERC",HIRE OF ACCOMMODATION AND FACILITIES,06/05/2019,000008538728217,43.88,AIRBNB   HMAB5KYDEP
OXFORDSHIRE CC,SOCIAL AND COMMUNITY SERVICES,DIDOCT LIBRARY,"SUPPLIES, STATIONERY AND MATERIALS",06/05/2019,000008538728229,87.00,IMPACT
OXFORDSHIRE CC,ENVIRONMENT AND ECONOMY,LIBRARY SYSTEMS TEAM,PAYMENTS TO TRANSPORT OPERATORS,06/05/2019,000008538728063,148.00,WWW.GWR.COM
OXFORDSHIRE CC,ENVIRONMENT AND ECONOMY,HOME LIBRARY SERVICE,MATERIALS,06/05/2019,000008538728061,26.28,AMAZON.CO.UK MN2HM9ZB4
OXFORDSHIRE CC,ENVIRONMENT AND ECONOMY,MUSEUM CAFE,EQUIPMENT,06/05/2019,000008538727907,12.91,AMZN MKTP UK MN7TR0N54
OXFORDSHIRE CC,ENVIRONMENT AND ECONOMY,S38 INSPECT & OTHER,"SUPPLIES, STATIONERY AND MATERIALS",06/05/2019,000008538727755,7.00,EB  CUTTING POLLUTION
OXFORDSHIRE CC,ENVIRONMENT AND ECONOMY,"	NAT TRAILS GENERAL",VEHICLE FUEL,06/05/2019,000008538727529,238.15,ALLSTAR BUSINESS SOLUT
OXFORDSHIRE CC,COMMUNITY SAFETY,ON ST PARK OXFD SPA,CATERING PROVISIONS,06/05/2019,000008538727741,7.32,CO-OPERATIVE FOOD
OXFORDSHIRE CC,CORPORATE CORE,"	LEGAL SERVICES",LEGAL COSTS,06/05/2019,000008538727899,11.00,OXFORDSHIRE CC MOTO1
OXFORDSHIRE CC,SOCIAL AND COMMUNITY SERVICES,"	OXF. EMPLOYMENT SERV",POSTAGE AND DELIVERY,06/05/2019,000008538728011,88.30,POST OFFICE COUNTER
OXFORDSHIRE CC,SOCIAL AND COMMUNITY SERVICES,CSS - DIDCOT,CATERING,06/05/2019,000008538727517,29.75,CHURCHILLS
OXFORDSHIRE CC,SOCIAL AND COMMUNITY SERVICES,CSS - OXFORD,MATERIALS,06/05/2019,000008538727583,7.99,AMZNMKTPLACE
OXFORDSHIRE CC,SOCIAL AND COMMUNITY SERVICES,CSS - OXFORD,HARDWARE AND CROCKERY,06/05/2019,000008538727613,15.98,FROSTS AT MILLETS
OXFORDSHIRE CC,"CHILDRENS, YOUNG PEOPLE AND FAMILIES",CSS WALLINGFORD,CATERING PROVISIONS,06/05/2019,000008538727533,10.90,WAITROSE 675
OXFORDSHIRE CC,"CHILDRENS, YOUNG PEOPLE AND FAMILIES","	RESIDENTIAL STRATEGY",CATERING,06/05/2019,000008538727535,16.06,KFC-SWINDON LEISURE
OXFORDSHIRE CC,"CHILDRENS, YOUNG PEOPLE AND FAMILIES","	RESIDENTIAL STRATEGY",CATERING,06/05/2019,000008538727493,6.48,KFC-SWINDON LEISURE
OXFORDSHIRE CC,"CHILDRENS, YOUNG PEOPLE AND FAMILIES","	RESIDENTIAL STRATEGY",ENTERTAINMENT EXPENSES,06/05/2019,000008538727495,19.00,ROVES FARM
OXFORDSHIRE CC,"CHILDRENS, YOUNG PEOPLE AND FAMILIES","	RESIDENTIAL STRATEGY",CATERING,06/05/2019,000008538727497,29.40,HONGXIN
OXFORDSHIRE CC,"CHILDRENS, YOUNG PEOPLE AND FAMILIES",EYNSHAM,CATERING,06/05/2019,000008538728413,164.45,TESCO STORES 2008
OXFORDSHIRE CC,"CHILDRENS, YOUNG PEOPLE AND FAMILIES",EYNSHAM,CATERING,06/05/2019,000008538728285,10.95,MILLETS FARM RESTAURA
OXFORDSHIRE CC,"CHILDRENS, YOUNG PEOPLE AND FAMILIES",EYNSHAM,DRUGS AND MEDICAL SUPPLIES,06/05/2019,000008538727505,.99,LLOYDS PHARMACY
OXFORDSHIRE CC,"CHILDRENS, YOUNG PEOPLE AND FAMILIES",EYNSHAM,CATERING PROVISIONS,06/05/2019,000008538728065,1.00,CO-OPERATIVE FOOD
OXFORDSHIRE CC,"CHILDRENS, YOUNG PEOPLE AND FAMILIES",EYNSHAM,SUBSCRIPTIONS,06/05/2019,000008538728067,6.00,OXFORD GOLF CENTRE
OXFORDSHIRE CC,"CHILDRENS, YOUNG PEOPLE AND FAMILIES",EYNSHAM,SUBSCRIPTIONS,06/05/2019,000008538728069,6.00,OXFORD GOLF CENTRE
OXFORDSHIRE CC,"CHILDRENS, YOUNG PEOPLE AND FAMILIES",EYNSHAM,CATERING PROVISIONS,06/05/2019,000008538727695,21.60,SAINSBURYS 0632
OXFORDSHIRE CC,"CHILDRENS, YOUNG PEOPLE AND FAMILIES",WITNEY,CATERING PROVISIONS,06/05/2019,000008538728279,72.66,SAINSBURYS SACAT 0632
OXFORDSHIRE CC,"CHILDRENS, YOUNG PEOPLE AND FAMILIES",WITNEY,CATERING PROVISIONS,06/05/2019,000008538728281,24.10,SAINSBURYS SACAT 0632
OXFORDSHIRE CC,"CHILDRENS, YOUNG PEOPLE AND FAMILIES",WITNEY,ENTERTAINMENT EXPENSES,06/05/2019,000008538728289,19.00,WWW.MILLETSFARMCENTRE.
OXFORDSHIRE CC,"CHILDRENS, YOUNG PEOPLE AND FAMILIES",WITNEY,CATERING PROVISIONS,06/05/2019,000008538727671,14.30,SAINSBURYS SACAT 0632
OXFORDSHIRE CC,"CHILDRENS, YOUNG PEOPLE AND FAMILIES",WITNEY,CATERING PROVISIONS,06/05/2019,000008538727675,4.00,SAINSBURYS SACAT 0632
OXFORDSHIRE CC,"CHILDRENS, YOUNG PEOPLE AND FAMILIES",DIDCOT MOVE-ON HOME,ENTERTAINMENT EXPENSES,06/05/2019,000008538728141,11.40,CINEWORLD DID CP
OXFORDSHIRE CC,"CHILDRENS, YOUNG PEOPLE AND FAMILIES",DIDCOT MOVE-ON HOME,CATERING PROVISIONS,06/05/2019,000008538728143,5.80,SAINSBURYS SACAT 2067
OXFORDSHIRE CC,"CHILDRENS, YOUNG PEOPLE AND FAMILIES",DIDCOT MOVE-ON HOME,MATERIALS,06/05/2019,000008538728147,16.00,B & M RETAIL
OXFORDSHIRE CC,"CHILDRENS, YOUNG PEOPLE AND FAMILIES",DIDCOT MOVE-ON HOME,CATERING PROVISIONS,06/05/2019,000008538728149,4.52,SAINSBURYS SACAT 2067
OXFORDSHIRE CC,"CHILDRENS, YOUNG PEOPLE AND FAMILIES",DIDCOT MOVE-ON HOME,CATERING PROVISIONS,06/05/2019,000008538728155,15.22,SAINSBURYS SACAT 2067
OXFORDSHIRE CC,"CHILDRENS, YOUNG PEOPLE AND FAMILIES","	MALTFIELD HOUSE",HOSPITALITY EXPENSES,06/05/2019,000008538727511,16.75,JS SPORTS BAR
OXFORDSHIRE CC,"CHILDRENS, YOUNG PEOPLE AND FAMILIES","	MALTFIELD HOUSE",HOSPITALITY EXPENSES,06/05/2019,000008538727513,7.05,JS SPORTS BAR
OXFORDSHIRE CC,"CHILDRENS, YOUNG PEOPLE AND FAMILIES","	MALTFIELD HOUSE",CATERING PROVISIONS,06/05/2019,000008538727973,20.00,SAINSBURYS
OXFORDSHIRE CC,"CHILDRENS, YOUNG PEOPLE AND FAMILIES","	MALTFIELD HOUSE",OTHER TRANSPORT ARRANGEMENTS,06/05/2019,000008538727975,4.50,OCC ON-STREET PARKING
OXFORDSHIRE CC,"CHILDRENS, YOUNG PEOPLE AND FAMILIES","	MALTFIELD HOUSE",CATERING,06/05/2019,000008538727985,58.05,FIVE GUYS
OXFORDSHIRE CC,"CHILDRENS, YOUNG PEOPLE AND FAMILIES","	MALTFIELD HOUSE",CATERING,06/05/2019,000008538727991,13.90,NANDOS GEORGE STREET
OXFORDSHIRE CC,"CHILDRENS, YOUNG PEOPLE AND FAMILIES","	MALTFIELD HOUSE",HIRED AND CONTRACTED,06/05/2019,000008538727705,"1,000.00",KEEN THINKING LTD
OXFORDSHIRE CC,"CHILDRENS, YOUNG PEOPLE AND FAMILIES","	MALTFIELD HOUSE",HIRED AND CONTRACTED,06/05/2019,000008538727707,"1,000.00",KEEN THINKING LTD
OXFORDSHIRE CC,"CHILDRENS, YOUNG PEOPLE AND FAMILIES","	MALTFIELD HOUSE",HIRED AND CONTRACTED,06/05/2019,000008538727713,149.73,KEEN THINKING LTD
OXFORDSHIRE CC,"CHILDRENS, YOUNG PEOPLE AND FAMILIES","	MALTFIELD HOUSE",HIRED AND CONTRACTED,06/05/2019,000008538727725,138.00,KEEN THINKING LTD
OXFORDSHIRE CC,"CHILDRENS, YOUNG PEOPLE AND FAMILIES",THAME E&A HOME,CATERING PROVISIONS,06/05/2019,000008538727527,15.32,TESCO STORE 2994
OXFORDSHIRE CC,"CHILDRENS, YOUNG PEOPLE AND FAMILIES",THAME E&A HOME,SUBSCRIPTIONS,06/05/2019,000008538727415,6.75,OXFORD ICE RINK
OXFORDSHIRE CC,"CHILDRENS, YOUNG PEOPLE AND FAMILIES",THAME E&A HOME,OTHER TRANSPORT ARRANGEMENTS,06/05/2019,000008538727419,5.00,OXPENS CAR PARK
OXFORDSHIRE CC,"CHILDRENS, YOUNG PEOPLE AND FAMILIES",THAME E&A HOME,CATERING PROVISIONS,06/05/2019,000008538727421,10.05,TESCO STORES 4377
OXFORDSHIRE CC,"CHILDRENS, YOUNG PEOPLE AND FAMILIES",THAME E&A HOME,"BOOKS, DVDS AND CDS",06/05/2019,000008538727599,16.98,AMZN MKTP UK MN8ZZ4NJ4
OXFORDSHIRE CC,"CHILDRENS, YOUNG PEOPLE AND FAMILIES",THAME E&A HOME,CATERING,06/05/2019,000008538727625,98.10,OXY ORIENTAL
OXFORDSHIRE CC,"CHILDRENS, YOUNG PEOPLE AND FAMILIES",THAME E&A HOME,SUBSCRIPTIONS,06/05/2019,000008538727629,16.70,OXFORD ICE RINK
OXFORDSHIRE CC,"CHILDRENS, YOUNG PEOPLE AND FAMILIES","	40 THE MOORS",OTHER EXPENSES,06/05/2019,000008538728269,7.00,KIRTLINGTON GOLF COURS
OXFORDSHIRE CC,"CHILDRENS, YOUNG PEOPLE AND FAMILIES","	40 THE MOORS",OTHER EXPENSES,06/05/2019,000008538728271,3.50,KIRTLINGTON GOLF COURS
OXFORDSHIRE CC,"CHILDRENS, YOUNG PEOPLE AND FAMILIES","	40 THE MOORS",OTHER EXPENSES,06/05/2019,000008538728273,10.70,SUMUP   TAXI SERVICE R
OXFORDSHIRE CC,"CHILDRENS, YOUNG PEOPLE AND FAMILIES","	40 THE MOORS",ENTERTAINMENT EXPENSES,06/05/2019,000008538727977,20.00,HOLLYWOOD BOWL
OXFORDSHIRE CC,"CHILDRENS, YOUNG PEOPLE AND FAMILIES","	40 THE MOORS",CATERING,06/05/2019,000008538727989,23.85,NANDOS GEORGE STREET
OXFORDSHIRE CC,"CHILDRENS, YOUNG PEOPLE AND FAMILIES","	40 THE MOORS",CATERING PROVISIONS,06/05/2019,000008538728055,222.26,SAINSBURYS (2243)
OXFORDSHIRE CC,"CHILDRENS, YOUNG PEOPLE AND FAMILIES",HOUSE PROJECT,OTHER TRANSPORT ARRANGEMENTS,06/05/2019,000008538727651,4.30,STGCOACH/CTYLINK
OXFORDSHIRE CC,"CHILDRENS, YOUNG PEOPLE AND FAMILIES",HOUSE PROJECT,PAYMENTS TO TRANSPORT OPERATORS,06/05/2019,000008538727653,55.30,GWR DIDCOT PKWY TO
OXFORDSHIRE CC,"CHILDRENS, YOUNG PEOPLE AND FAMILIES",HOUSE PROJECT,PAYMENTS TO TRANSPORT OPERATORS,06/05/2019,000008538727655,147.90,GWR OXFORD SST
OXFORDSHIRE CC,"CHILDRENS, YOUNG PEOPLE AND FAMILIES",HOUSE PROJECT,PAYMENTS TO TRANSPORT OPERATORS,06/05/2019,000008538727657,6.70,GWR OXFORD SST
OXFORDSHIRE CC,"CHILDRENS, YOUNG PEOPLE AND FAMILIES",HOUSE PROJECT,CATERING,06/05/2019,000008538727659,35.99,WWW.DOMINOS.CO.UK
OXFORDSHIRE CC,"CHILDRENS, YOUNG PEOPLE AND FAMILIES",UASC POST 18,OTHER EXPENSES,06/05/2019,000008538728245,2.00,COSTA COFFEE
OXFORDSHIRE CC,"CHILDRENS, YOUNG PEOPLE AND FAMILIES",KINGFISHER,CATERING PROVISIONS,06/05/2019,000008538728089,13.45,SAINSBURYS SAC2305SAC
OXFORDSHIRE CC,"CHILDRENS, YOUNG PEOPLE AND FAMILIES",KINGFISHER,CATERING PROVISIONS,06/05/2019,000008538728091,4.00,SAINSBURYS SAC2305SAC
OXFORDSHIRE CC,"CHILDRENS, YOUNG PEOPLE AND FAMILIES",KINGFISHER,CATERING PROVISIONS,06/05/2019,000008538728093,45.00,ASDA STORE 4442
OXFORDSHIRE CC,"CHILDRENS, YOUNG PEOPLE AND FAMILIES",NTH EARLY HELP-BCSTR,MATERIALS,06/05/2019,000008538728403,14.70,AMZNMKTPLACE
OXFORDSHIRE CC,"CHILDRENS, YOUNG PEOPLE AND FAMILIES",NTH EARLY HELP-BCSTR,PURCHASE OF ADMIN IT EQUIPMENT,06/05/2019,000008538727403,5.11,AMZNMKTPLACE
OXFORDSHIRE CC,"CHILDRENS, YOUNG PEOPLE AND FAMILIES",NTH EARLY HELP-BCSTR,PURCHASE OF ADMIN IT EQUIPMENT,06/05/2019,000008538727393,7.61,AMZN MKTP UK MN3S42L14
OXFORDSHIRE CC,"CHILDRENS, YOUNG PEOPLE AND FAMILIES",NTH EARLY HELP-BCSTR,PURCHASE OF ADMIN IT EQUIPMENT,06/05/2019,000008538727395,14.70,AMZNMKTPLACE
OXFORDSHIRE CC,"CHILDRENS, YOUNG PEOPLE AND FAMILIES",NTH EARLY HELP-BCSTR,PURCHASE OF ADMIN IT EQUIPMENT,06/05/2019,000008538727397,5.12,AMZNMKTPLACE
OXFORDSHIRE CC,"CHILDRENS, YOUNG PEOPLE AND FAMILIES",NTH EARLY HELP-BCSTR,PURCHASE OF ADMIN IT EQUIPMENT,06/05/2019,000008538727399,5.11,AMZNMKTPLACE
OXFORDSHIRE CC,"CHILDRENS, YOUNG PEOPLE AND FAMILIES",NTH EARLY HELP-BCSTR,MATERIALS,06/05/2019,000008538727825,7.99,AMAZON PRIME MN9T76NV4
OXFORDSHIRE CC,"CHILDRENS, YOUNG PEOPLE AND FAMILIES",CNTL ERLY HELP-BBLEY,CATERING PROVISIONS,06/05/2019,000008538728335,70.00,TESCO STORE 2990
OXFORDSHIRE CC,"CHILDRENS, YOUNG PEOPLE AND FAMILIES","	FPT NORTH",OTHER TRANSPORT ARRANGEMENTS,06/05/2019,000008538727863,5.30,PARKING CHARGE
OXFORDSHIRE CC,SOCIAL AND COMMUNITY SERVICES,EMERGENCY DUTY TEAM,HIRE OF ACCOMMODATION AND FACILITIES,06/05/2019,000008538728327,41.50,TRAVELODGE
OXFORDSHIRE CC,"CHILDRENS, YOUNG PEOPLE AND FAMILIES",FAMILY SUPPORT 2,PAYMENTS TO TRANSPORT OPERATORS,06/05/2019,000008538728323,6.80,WWW.GWR.COM
OXFORDSHIRE CC,"CHILDRENS, YOUNG PEOPLE AND FAMILIES",NORTH FSS- WITNEY,PAYMENTS TO TRANSPORT OPERATORS,06/05/2019,000008538727401,79.40,WWW.GWR.COM
OXFORDSHIRE CC,"CHILDRENS, YOUNG PEOPLE AND FAMILIES","	FAMILY SUPPORT CITY3",OTHER TRANSPORT ARRANGEMENTS,06/05/2019,000008538727467,2.00,ST ANNS SHOPPING
OXFORDSHIRE CC,"CHILDRENS, YOUNG PEOPLE AND FAMILIES","	FAMILY SUPPORT CITY3",OTHER TRANSPORT ARRANGEMENTS,06/05/2019,000008538727469,20.00,WEMBLEY PARK
OXFORDSHIRE CC,"CHILDRENS, YOUNG PEOPLE AND FAMILIES","	FAMILY SUPPORT CITY3",VEHICLE FUEL,06/05/2019,000008538727471,4.09,BP BESSBOROUGH CONNECT
OXFORDSHIRE CC,"CHILDRENS, YOUNG PEOPLE AND FAMILIES","	FAMILY SUPPORT S'TH2",DAY ACTIVITIES,06/05/2019,000008538727435,101.00,AQUA G SALON
OXFORDSHIRE CC,"CHILDRENS, YOUNG PEOPLE AND FAMILIES","	LOOKED AFTER NORTH",MATERIALS,06/05/2019,000008538728315,55.00,GAME RETAIL
OXFORDSHIRE CC,"CHILDRENS, YOUNG PEOPLE AND FAMILIES","	LOOKED AFTER NORTH",IT SERVICES,06/05/2019,000008538727687,66.90,MGP LEBONMARKE 0385342
OXFORDSHIRE CC,"CHILDRENS, YOUNG PEOPLE AND FAMILIES","	LOOKED AFTER SOUTH",CATERING PROVISIONS,06/05/2019,000008538727541,13.00,TESCO STORES 2038
OXFORDSHIRE CC,SOCIAL AND COMMUNITY SERVICES,LOOKED AFTER SOUTH,MATERIALS,06/05/2019,000008538727437,.01,MASONS
OXFORDSHIRE CC,SOCIAL AND COMMUNITY SERVICES,LOOKED AFTER SOUTH,MATERIALS,06/05/2019,000008538727439,1.49,MASONS
OXFORDSHIRE CC,"CHILDRENS, YOUNG PEOPLE AND FAMILIES","	LOOKED AFTER SOUTH",ENTERTAINMENT EXPENSES,06/05/2019,000008538728317,24.18,HOLLYWOOD BOWL
OXFORDSHIRE CC,"CHILDRENS, YOUNG PEOPLE AND FAMILIES","	LOOKED AFTER SOUTH",ENTERTAINMENT EXPENSES,06/05/2019,000008538728319,7.05,HOLLYWOOD BOWL
OXFORDSHIRE CC,"CHILDRENS, YOUNG PEOPLE AND FAMILIES","	LOOKED AFTER CITY 2",PAYMENTS TO TRANSPORT OPERATORS,06/05/2019,000008538727967,12.70,BICESTER VIL SSTP
OXFORDSHIRE CC,"CHILDRENS, YOUNG PEOPLE AND FAMILIES","	LOOKED AFTER CITY 2",MATERIALS,06/05/2019,000008538727871,20.36,FUNKYPIGEON.COM
OXFORDSHIRE CC,"CHILDRENS, YOUNG PEOPLE AND FAMILIES","	LEAVING CARE NORTH",CATERING,06/05/2019,000008538727971,2.90,OLD MILL COFFEE HOUSE
OXFORDSHIRE CC,"CHILDRENS, YOUNG PEOPLE AND FAMILIES","	LEAVING CARE NORTH",MATERIALS,06/05/2019,000008538727601,19.99,AMZNMKTPLACE AMAZON.CO
OXFORDSHIRE CC,"CHILDRENS, YOUNG PEOPLE AND FAMILIES","	LEAVING CARE CITY 1",OTHER EXPENSES,06/05/2019,000008538727645,6.90,COSTA COFFEE 43039930
OXFORDSHIRE CC,"CHILDRENS, YOUNG PEOPLE AND FAMILIES","	LEAVING CARE CITY 1",OTHER EXPENSES,06/05/2019,000008538727643,3.00,SAINSBURYS SACAT 2211
OXFORDSHIRE CC,"CHILDRENS, YOUNG PEOPLE AND FAMILIES","	LEAVING CARE SOUTH",OTHER EXPENSES,06/05/2019,000008538727677,450.00,HMCTS-TV031
OXFORDSHIRE CC,"CHILDRENS, YOUNG PEOPLE AND FAMILIES","	LEAVING CARE CITY 2",REGISTRATION AND INSPECTION FEES,06/05/2019,000008538728247,11.00,WESTSUSSEX.GOV.UK
OXFORDSHIRE CC,"CHILDRENS, YOUNG PEOPLE AND FAMILIES","	LEAVING CARE CITY 2",OTHER EXPENSES,06/05/2019,000008538727861,43.48,AMZNMKTPLACE
OXFORDSHIRE CC,ENTERPRISEVC,OPERATIONAL COSTS,CATERING,06/05/2019,000008538727681,8.10,ART CAFE
OXFORDSHIRE CC,,,,07/05/2019,000008547029627,"-222,170.96",
OXFORDSHIRE CC,"CHILDRENS, YOUNG PEOPLE AND FAMILIES",C&I NON PUBLIC FUND,CATERING PROVISIONS,07/05/2019,000008547029667,135.50,SAINSBURYS 0600
OXFORDSHIRE CC,"CHILDRENS, YOUNG PEOPLE AND FAMILIES","	RESIDENTIAL STRATEGY",CATERING,07/05/2019,000008547029593,12.45,KASPAS DIDCOT
OXFORDSHIRE CC,"CHILDRENS, YOUNG PEOPLE AND FAMILIES","	RESIDENTIAL STRATEGY",CATERING,07/05/2019,000008547029595,12.22,MCDONALDS
OXFORDSHIRE CC,"CHILDRENS, YOUNG PEOPLE AND FAMILIES",EYNSHAM,CATERING,07/05/2019,000008547029591,11.80,CO-OPERATIVE FOOD
OXFORDSHIRE CC,"CHILDRENS, YOUNG PEOPLE AND FAMILIES",WITNEY,CATERING,07/05/2019,000008547029691,34.85,THE WATER MARGIN J&A L
OXFORDSHIRE CC,"CHILDRENS, YOUNG PEOPLE AND FAMILIES",DIDCOT MOVE-ON HOME,CATERING PROVISIONS,07/05/2019,000008547029679,18.95,SAINSBURYS SACAT 2067
OXFORDSHIRE CC,SOCIAL AND COMMUNITY SERVICES,DIDCOT MOVE-ON HOME,CATERING PROVISIONS,07/05/2019,000008547029619,18.05,SAINSBURYS 2067
OXFORDSHIRE CC,"CHILDRENS, YOUNG PEOPLE AND FAMILIES",THAME E&A HOME,CATERING PROVISIONS,07/05/2019,000008547029577,86.25,SAINSBURYS TO YOU 0600
OXFORDSHIRE CC,"CHILDRENS, YOUNG PEOPLE AND FAMILIES",THAME E&A HOME,MATERIALS,07/05/2019,000008547029581,7.99,AMAZON PRIME MN8GE1JT4
OXFORDSHIRE CC,"CHILDRENS, YOUNG PEOPLE AND FAMILIES",THAME E&A HOME,VEHICLE FUEL,07/05/2019,000008547029597,14.65,THAME BP SF CONNECT
OXFORDSHIRE CC,"CHILDRENS, YOUNG PEOPLE AND FAMILIES",THAME E&A HOME,CATERING,07/05/2019,000008547029617,34.20,HEAVENLY DESSERTS
OXFORDSHIRE CC,"CHILDRENS, YOUNG PEOPLE AND FAMILIES","	40 THE MOORS",TELEPHONE - EQUIPMENT,07/05/2019,000008547029665,25.00,EE TOP UP VESTA
OXFORDSHIRE CC,"CHILDRENS, YOUNG PEOPLE AND FAMILIES","	40 THE MOORS",OTHER EXPENSES,07/05/2019,000008547029689,10.80,PP MAHMOODTARI
OXFORDSHIRE CC,"CHILDRENS, YOUNG PEOPLE AND FAMILIES","	40 THE MOORS",CATERING,07/05/2019,000008547029621,7.90,TANDOORI NIGHT
OXFORDSHIRE CC,"CHILDRENS, YOUNG PEOPLE AND FAMILIES","	40 THE MOORS",OTHER TRANSPORT ARRANGEMENTS,07/05/2019,000008547029623,61.00,IZ  ABC TAXI
OXFORDSHIRE CC,"CHILDRENS, YOUNG PEOPLE AND FAMILIES","	40 THE MOORS",OTHER TRANSPORT ARRANGEMENTS,07/05/2019,000008547029625,12.00,IZ  FLAMING HUNGRY
OXFORDSHIRE CC,SOCIAL AND COMMUNITY SERVICES,"	MTFC",CATERING,07/05/2019,000008547029653,6.18,MCDONALDS
OXFORDSHIRE CC,"CHILDRENS, YOUNG PEOPLE AND FAMILIES","	LOOKED AFTER NORTH",MATERIALS,07/05/2019,000008547029695,14.00,PAPERCHASE
OXFORDSHIRE CC,ENVIRONMENT AND ECONOMY,SCH&SOC CARE TRANSP,PAYMENTS TO HEALTH AUTHORITIES,08/05/2019,000008551190349,622.80,WINDMILL SPECIAL NEEDS
OXFORDSHIRE CC,CORPORATE CORE,"	COMMUNICATIONS",MATERIALS,08/05/2019,000008551190549,7.99,AMAZON PRIME MN6OW4TB4
OXFORDSHIRE CC,CORPORATE CORE,"	COMMUNICATIONS",MATERIALS,08/05/2019,000008551190551,500.00,GOOGLE  ADS4896546035
OXFORDSHIRE CC,CORPORATE CORE,"	COMMUNICATIONS","PUBLICITY, PROMOTIONS AND ADVERTISEMENT",08/05/2019,000008551190553,500.00,FACEBK  E2KX4L2AZ2
OXFORDSHIRE CC,"CHILDRENS, YOUNG PEOPLE AND FAMILIES","	DIRECTOR'S OFFICE","SUPPLIES, STATIONERY AND MATERIALS",08/05/2019,000008551190503,354.00,WWW.PUBLICPOLICYEXCHAN
OXFORDSHIRE CC,"CHILDRENS, YOUNG PEOPLE AND FAMILIES","	RIVERSIDE CENTRE",CATERING PROVISIONS,08/05/2019,000008551190157,10.40,SAINSBURYS SACAT 0600
OXFORDSHIRE CC,"CHILDRENS, YOUNG PEOPLE AND FAMILIES","	RIVERSIDE CENTRE",CATERING PROVISIONS,08/05/2019,000008551190155,2.60,TESCO STORES 4377
OXFORDSHIRE CC,"CHILDRENS, YOUNG PEOPLE AND FAMILIES","	RIVERSIDE CENTRE",PAYMENTS TO VOLUNTARY BODIES,08/05/2019,000008551190535,206.00,WWW.OUTDOOR-LEARNING.O
OXFORDSHIRE CC,"CHILDRENS, YOUNG PEOPLE AND FAMILIES","	RIVERSIDE CENTRE",HARDWARE AND CROCKERY,08/05/2019,000008551190537,-242.90,SCREWFIX OXFORD
OXFORDSHIRE CC,"CHILDRENS, YOUNG PEOPLE AND FAMILIES",EET SERVICE,IT SERVICES,08/05/2019,000008551190305,"3,504.98","LIVEPERSON, INC"
OXFORDSHIRE CC,"CHILDRENS, YOUNG PEOPLE AND FAMILIES","	NCS",MATERIALS,08/05/2019,000008551190449,7.99,AMAZON PRIME MN58E6JZ4
OXFORDSHIRE CC,"CHILDRENS, YOUNG PEOPLE AND FAMILIES","	MUSIC UNALLOCABLE","BOOKS, DVDS AND CDS",08/05/2019,000008551190255,210.00,MDS HIRE & COPYRIGHT
OXFORDSHIRE CC,"CHILDRENS, YOUNG PEOPLE AND FAMILIES","	MUSIC UNALLOCABLE",CATERING PROVISIONS,08/05/2019,000008551190263,2.20,SAINSBURYS 0600
OXFORDSHIRE CC,CORPORATE CORE,"	PERSONNEL",PAYMENTS TO TRANSPORT OPERATORS,08/05/2019,000008551190401,77.20,TRAINLINE
OXFORDSHIRE CC,CORPORATE CORE,"	PERSONNEL",PAYMENTS TO TRANSPORT OPERATORS,08/05/2019,000008551190403,39.55,TRAINLINE
OXFORDSHIRE CC,ENTERPRISEVC,,CAR LEASING - PRIVATE RENTALS,08/05/2019,000008551190485,31.66,ENTERPRISE RENT-A-CAR
OXFORDSHIRE CC,ENTERPRISEVC,,CAR LEASING - PRIVATE RENTALS,08/05/2019,000008551190493,134.52,ENTERPRISE RENT-A-CAR
OXFORDSHIRE CC,ENTERPRISEVC,,CAR LEASING - PRIVATE RENTALS,08/05/2019,000008551190479,415.97,ENTERPRISE RENT-A-CAR
OXFORDSHIRE CC,ENTERPRISEVC,,CAR LEASING - PRIVATE RENTALS,08/05/2019,000008551190461,83.83,ENTERPRISE RENT-A-CAR
OXFORDSHIRE CC,ENVIRONMENT AND ECONOMY,COUNTY LIBRARY,GENERAL MAINTENANCE,08/05/2019,000008551190115,25.81, WOLSELEY UK
OXFORDSHIRE CC,CORPORATE CORE,SCHOOLS FM,CATERING PROVISIONS,08/05/2019,000008551190165,22.45,SAINSBURYS SACAT 2067
OXFORDSHIRE CC,SOCIAL AND COMMUNITY SERVICES,"	CENTRAL LIBRARY",MATERIALS,08/05/2019,000008551190309,11.00,EXTRA ELECTRICAL HARD
OXFORDSHIRE CC,ENVIRONMENT AND ECONOMY,"	TVERC",PAYMENTS TO TRANSPORT OPERATORS,08/05/2019,000008551190129,19.18,TRAINLINE
OXFORDSHIRE CC,SOCIAL AND COMMUNITY SERVICES,"	MUSEUMS COLLECTIONS",OTHER SERVICES,08/05/2019,000008551190319,30.30,WWW.BROSCHDIRECT.COM
OXFORDSHIRE CC,CORPORATE CORE,REGISTRAR,PAYMENTS TO TRANSPORT OPERATORS,08/05/2019,000008551190375,86.30,BANBURY STATION T/O
OXFORDSHIRE CC,CORPORATE CORE,"	AUDIT SERVICES",OTHER TRAINING COURSES AND QUALIFICATION,08/05/2019,000008551190265,355.24,THE INST OF INT AUDITO
OXFORDSHIRE CC,CORPORATE CORE,"	AUDIT SERVICES",OTHER TRAINING COURSES AND QUALIFICATION,08/05/2019,000008551190267,355.24,THE INST OF INT AUDITO
OXFORDSHIRE CC,CORPORATE CORE,"	LEGAL SERVICES",SUBSCRIPTIONS,08/05/2019,000008551190293,"2,148.00",TRFSA   THOMSONREUTERS
OXFORDSHIRE CC,SOCIAL AND COMMUNITY SERVICES,CSS - BANBURY,CATERING PROVISIONS,08/05/2019,000008551190039,62.23,SAINSBURYS TO YOU 0642
OXFORDSHIRE CC,SOCIAL AND COMMUNITY SERVICES,CSS BICESTER,CATERING PROVISIONS,08/05/2019,000008551190047,115.30,SAINSBURYS (2243)
OXFORDSHIRE CC,SOCIAL AND COMMUNITY SERVICES,CSS BICESTER,CATERING PROVISIONS,08/05/2019,000008551190049,-18.00,SAINSBURYS (2243)
OXFORDSHIRE CC,SOCIAL AND COMMUNITY SERVICES,CSS - OXFORD,MATERIALS,08/05/2019,000008551190131,33.62,ALDI STORES 775-142
OXFORDSHIRE CC,SOCIAL AND COMMUNITY SERVICES,CSS - OXFORD,CATERING PROVISIONS,08/05/2019,000008551190145,4.73,ALDI STORES 775-142
OXFORDSHIRE CC,SOCIAL AND COMMUNITY SERVICES,CSS - OXFORD,MATERIALS,08/05/2019,000008551190147,20.41,ALDI STORES 775-142
OXFORDSHIRE CC,"CHILDRENS, YOUNG PEOPLE AND FAMILIES",CSS WALLINGFORD,CATERING PROVISIONS,08/05/2019,000008551190095,6.50,WAITROSE 675
OXFORDSHIRE CC,SOCIAL AND COMMUNITY SERVICES,CSS WITNEY,POSTAGE AND DELIVERY,08/05/2019,000008551190343,38.76,THE POST OFFICE
OXFORDSHIRE CC,SOCIAL AND COMMUNITY SERVICES,CSS WITNEY,CATERING PROVISIONS,08/05/2019,000008551190345,149.30,TESCO STORES 2008
OXFORDSHIRE CC,SOCIAL AND COMMUNITY SERVICES,CSS WANTAGE,MATERIALS,08/05/2019,000008551190347,16.00,SAINSBURYS SACAT 2244
OXFORDSHIRE CC,"CHILDRENS, YOUNG PEOPLE AND FAMILIES","	RESIDENTIAL STRATEGY",CATERING,08/05/2019,000008551190079,5.21,MCDONALDS
OXFORDSHIRE CC,"CHILDRENS, YOUNG PEOPLE AND FAMILIES",EYNSHAM,CATERING,08/05/2019,000008551190555,50.32,TESCO STORES 2008
OXFORDSHIRE CC,"CHILDRENS, YOUNG PEOPLE AND FAMILIES",WITNEY,CATERING PROVISIONS,08/05/2019,000008551190219,15.54,SAINSBURYS SACAT 0632
OXFORDSHIRE CC,"CHILDRENS, YOUNG PEOPLE AND FAMILIES",WITNEY,CATERING PROVISIONS,08/05/2019,000008551190221,8.25,SAINSBURYS 0632
OXFORDSHIRE CC,"CHILDRENS, YOUNG PEOPLE AND FAMILIES",WITNEY,CATERING PROVISIONS,08/05/2019,000008551190103,7.40,SAINSBURYS SACAT 0632
OXFORDSHIRE CC,"CHILDRENS, YOUNG PEOPLE AND FAMILIES",WITNEY,MATERIALS,08/05/2019,000008551190167,37.99,ARGOS BICESTER
OXFORDSHIRE CC,"CHILDRENS, YOUNG PEOPLE AND FAMILIES",WITNEY,CATERING,08/05/2019,000008551190431,7.30,STARBUCKS COFFEE
OXFORDSHIRE CC,"CHILDRENS, YOUNG PEOPLE AND FAMILIES",WITNEY,MATERIALS,08/05/2019,000008551190433,13.65,THE ENTERTAINER 92
OXFORDSHIRE CC,"CHILDRENS, YOUNG PEOPLE AND FAMILIES",WITNEY,CATERING PROVISIONS,08/05/2019,000008551190435,2.04,MARKS&SPENCER PLC
OXFORDSHIRE CC,"CHILDRENS, YOUNG PEOPLE AND FAMILIES",WITNEY,MATERIALS,08/05/2019,000008551190437,9.98,WH SMITH
OXFORDSHIRE CC,SOCIAL AND COMMUNITY SERVICES,DIDCOT MOVE-ON HOME,CATERING PROVISIONS,08/05/2019,000008551190225,15.85,SAINSBURYS 2067
OXFORDSHIRE CC,"CHILDRENS, YOUNG PEOPLE AND FAMILIES",DIDCOT MOVE-ON HOME,CATERING PROVISIONS,08/05/2019,000008551190411,6.35,SAINSBURYS SACAT 0600
OXFORDSHIRE CC,"CHILDRENS, YOUNG PEOPLE AND FAMILIES",DIDCOT MOVE-ON HOME,CATERING PROVISIONS,08/05/2019,000008551190413,6.00,SAINSBURYS 0600
OXFORDSHIRE CC,"CHILDRENS, YOUNG PEOPLE AND FAMILIES",DIDCOT MOVE-ON HOME,CATERING PROVISIONS,08/05/2019,000008551190415,4.90,SAINSBURYS SACAT 2067
OXFORDSHIRE CC,"CHILDRENS, YOUNG PEOPLE AND FAMILIES",DIDCOT MOVE-ON HOME,CATERING PROVISIONS,08/05/2019,000008551190417,1.00,SAINSBURYS SACAT 2067
OXFORDSHIRE CC,"CHILDRENS, YOUNG PEOPLE AND FAMILIES",THAME E&A HOME,HIRE OF ACCOMMODATION AND FACILITIES,08/05/2019,000008551190099,6.00,MOLLIES MOTELS LIMITED
OXFORDSHIRE CC,"CHILDRENS, YOUNG PEOPLE AND FAMILIES",THAME E&A HOME,CATERING,08/05/2019,000008551190137,26.75,PIZZA HUT 988
OXFORDSHIRE CC,"CHILDRENS, YOUNG PEOPLE AND FAMILIES",THAME E&A HOME,MATERIALS,08/05/2019,000008551190141,14.00,HELL-FIRE CAVES
OXFORDSHIRE CC,"CHILDRENS, YOUNG PEOPLE AND FAMILIES",THAME E&A HOME,MATERIALS,08/05/2019,000008551190143,13.00,HELL-FIRE CAVES
OXFORDSHIRE CC,"CHILDRENS, YOUNG PEOPLE AND FAMILIES",THAME E&A HOME,CATERING PROVISIONS,08/05/2019,000008551190163,2.05,TESCO STORES 2008
OXFORDSHIRE CC,"CHILDRENS, YOUNG PEOPLE AND FAMILIES",THAME E&A HOME,OTHER TRANSPORT ARRANGEMENTS,08/05/2019,000008551190297,2.50,HEADINGTON CAR PARK
OXFORDSHIRE CC,"CHILDRENS, YOUNG PEOPLE AND FAMILIES",THAME E&A HOME,CATERING,08/05/2019,000008551190299,13.27,DOMINOS
OXFORDSHIRE CC,"CHILDRENS, YOUNG PEOPLE AND FAMILIES","	40 THE MOORS",OTHER TRANSPORT ARRANGEMENTS,08/05/2019,000008551190233,10.50,IZ  OLSI
OXFORDSHIRE CC,"CHILDRENS, YOUNG PEOPLE AND FAMILIES",HOUSE PROJECT,IT SOFTWARE,08/05/2019,000008551190445,100.00,OSARCC
OXFORDSHIRE CC,"CHILDRENS, YOUNG PEOPLE AND FAMILIES",HOUSE PROJECT,IT SOFTWARE,08/05/2019,000008551190447,100.00,OSARCC
OXFORDSHIRE CC,ENTERPRISEVC,,CAR LEASING - PRIVATE RENTALS,08/05/2019,000008551190467,57.77,ENTERPRISE RENT-A-CAR
OXFORDSHIRE CC,"CHILDRENS, YOUNG PEOPLE AND FAMILIES","	DISABILITIES TEAM-C",HIRE OF ACCOMMODATION AND FACILITIES,08/05/2019,000008551190279,75.00,4318298-DV6J6
OXFORDSHIRE CC,"CHILDRENS, YOUNG PEOPLE AND FAMILIES",STH EARLY HELP-ABNDN,FIXTURES & FITTINGS,08/05/2019,000008551190231,429.00,CURRYS ONLINE
OXFORDSHIRE CC,"CHILDRENS, YOUNG PEOPLE AND FAMILIES",CNTL EARLY HELP-RHIL,MATERIALS,08/05/2019,000008551190177,239.00,CURRYS ONLINE
OXFORDSHIRE CC,"CHILDRENS, YOUNG PEOPLE AND FAMILIES",CNTL EARLY HELP-RHIL,MATERIALS,08/05/2019,000008551190179,289.99,WWW.ARGOS.CO.UK
OXFORDSHIRE CC,"CHILDRENS, YOUNG PEOPLE AND FAMILIES",CNTL ERLY HELP-BBLEY,CATERING PROVISIONS,08/05/2019,000008551190505,12.73,TESCO STORE 2990
OXFORDSHIRE CC,"CHILDRENS, YOUNG PEOPLE AND FAMILIES",CNTL ERLY HELP-BBLEY,CATERING PROVISIONS,08/05/2019,000008551190507,18.06,LIDL GB OXFORD
OXFORDSHIRE CC,ENTERPRISEVC,,CAR LEASING - PRIVATE RENTALS,08/05/2019,000008551190489,88.45,ENTERPRISE RENT-A-CAR
OXFORDSHIRE CC,SOCIAL AND COMMUNITY SERVICES,"	MTFC",CATERING PROVISIONS,08/05/2019,000008551190313,2.50,TESCO STORE 2994
OXFORDSHIRE CC,SOCIAL AND COMMUNITY SERVICES,"	MTFC",CATERING PROVISIONS,08/05/2019,000008551190313,5.79,TESCO STORE 2994
OXFORDSHIRE CC,"CHILDRENS, YOUNG PEOPLE AND FAMILIES","	FAM SUPP SOUTH",ENTERTAINMENT EXPENSES,08/05/2019,000008551190181,20.27,AMFBOWLING.CO.UK
OXFORDSHIRE CC,ENTERPRISEVC,,CAR LEASING - PRIVATE RENTALS,08/05/2019,000008551190483,127.21,ENTERPRISE RENT-A-CAR
OXFORDSHIRE CC,"CHILDRENS, YOUNG PEOPLE AND FAMILIES","	FAMILY SUPPORT CITY3",OTHER TRANSPORT ARRANGEMENTS,08/05/2019,000008551190377,124.50,TRAINLINE
OXFORDSHIRE CC,"CHILDRENS, YOUNG PEOPLE AND FAMILIES",NORTH FSS- BANBURY,PAYMENT TO GOVERNMENT DEPARTMENTS,08/05/2019,000008551190215,-7.50,GEN REGISTER OFFICE
OXFORDSHIRE CC,"CHILDRENS, YOUNG PEOPLE AND FAMILIES",NTH FAM SUPRT-BCSTR,PAYMENTS TO TRANSPORT OPERATORS,08/05/2019,000008551190169,48.40,WWW.GWR.COM
OXFORDSHIRE CC,"CHILDRENS, YOUNG PEOPLE AND FAMILIES","	FAMILY SUPPORT S'TH2",MATERIALS,08/05/2019,000008551190229,7.12,AMAZON.CO.UK MN9150T54
OXFORDSHIRE CC,SOCIAL AND COMMUNITY SERVICES,LOOKED AFTER NORTH,OTHER TRANSPORT ARRANGEMENTS,08/05/2019,000008551190075,1.60,NCP PARK PASS
OXFORDSHIRE CC,ENTERPRISEVC,,CAR LEASING - PRIVATE RENTALS,08/05/2019,000008551190463,25.14,ENTERPRISE RENT-A-CAR
OXFORDSHIRE CC,ENTERPRISEVC,,CAR LEASING - PRIVATE RENTALS,08/05/2019,000008551190469,25.14,ENTERPRISE RENT-A-CAR
OXFORDSHIRE CC,ENTERPRISEVC,,CAR LEASING - PRIVATE RENTALS,08/05/2019,000008551190491,62.08,ENTERPRISE RENT-A-CAR
OXFORDSHIRE CC,ENTERPRISEVC,,CAR LEASING - PRIVATE RENTALS,08/05/2019,000008551190495,134.45,ENTERPRISE RENT-A-CAR
OXFORDSHIRE CC,ENTERPRISEVC,,CAR LEASING - PRIVATE RENTALS,08/05/2019,000008551190457,26.38,ENTERPRISE RENT-A-CAR
OXFORDSHIRE CC,"CHILDRENS, YOUNG PEOPLE AND FAMILIES","	LOOKED AFTER CITY 1",EDUCATIONAL AND VOCATIONAL TRAINING ,08/05/2019,000008551190213,22.00,OXFORDSHIRE CC MOTO1
OXFORDSHIRE CC,"CHILDRENS, YOUNG PEOPLE AND FAMILIES","	LOOKED AFTER CITY 1",PAYMENT TO GOVERNMENT DEPARTMENTS,08/05/2019,000008551190217,54.00,HM PASSPORT OFFICE
OXFORDSHIRE CC,ENTERPRISEVC,,CAR LEASING - PRIVATE RENTALS,08/05/2019,000008551190481,125.92,ENTERPRISE RENT-A-CAR
OXFORDSHIRE CC,ENTERPRISEVC,,CAR LEASING - PRIVATE RENTALS,08/05/2019,000008551190465,102.73,ENTERPRISE RENT-A-CAR
OXFORDSHIRE CC,"CHILDRENS, YOUNG PEOPLE AND FAMILIES","	LOOKED AFTER CITY 1",CATERING,08/05/2019,000008551190111,3.75,BOSWELLS CAFE COWLEY
OXFORDSHIRE CC,"CHILDRENS, YOUNG PEOPLE AND FAMILIES","	LOOKED AFTER CITY 1",MATERIALS,08/05/2019,000008551190389,125.98,AMZNMKTPLACE
OXFORDSHIRE CC,ENTERPRISEVC,,CAR LEASING - PRIVATE RENTALS,08/05/2019,000008551190497,52.72,ENTERPRISE RENT-A-CAR
OXFORDSHIRE CC,"CHILDRENS, YOUNG PEOPLE AND FAMILIES","	LOOKED AFTER SOUTH",PAYMENTS TO TRANSPORT OPERATORS,08/05/2019,000008551190499,6.80,WWW.GWR.COM
OXFORDSHIRE CC,ENTERPRISEVC,,CAR LEASING - PRIVATE RENTALS,08/05/2019,000008551190471,43.18,ENTERPRISE RENT-A-CAR
OXFORDSHIRE CC,ENTERPRISEVC,,CAR LEASING - PRIVATE RENTALS,08/05/2019,000008551190473,46.12,ENTERPRISE RENT-A-CAR
OXFORDSHIRE CC,ENTERPRISEVC,,CAR LEASING - PRIVATE RENTALS,08/05/2019,000008551190475,68.71,ENTERPRISE RENT-A-CAR
OXFORDSHIRE CC,ENTERPRISEVC,,CAR LEASING - PRIVATE RENTALS,08/05/2019,000008551190477,52.85,ENTERPRISE RENT-A-CAR
OXFORDSHIRE CC,"CHILDRENS, YOUNG PEOPLE AND FAMILIES","	LOOKED AFTER CITY 2",MATERIALS,08/05/2019,000008551190139,6.00,HOBBYCRAFT
OXFORDSHIRE CC,"CHILDRENS, YOUNG PEOPLE AND FAMILIES","	LOOKED AFTER CITY 2",OTHER TRANSPORT ARRANGEMENTS,08/05/2019,000008551190281,5.60,RINGGO
OXFORDSHIRE CC,ENTERPRISEVC,,CAR LEASING - PRIVATE RENTALS,08/05/2019,000008551190455,69.55,ENTERPRISE RENT-A-CAR
OXFORDSHIRE CC,ENTERPRISEVC,,CAR LEASING - PRIVATE RENTALS,08/05/2019,000008551190459,46.12,ENTERPRISE RENT-A-CAR
OXFORDSHIRE CC,"CHILDRENS, YOUNG PEOPLE AND FAMILIES","	SM QUALITY ASSURANCE",PAYMENTS TO TRANSPORT OPERATORS,08/05/2019,000008551190277,123.00,SOUTHERN RAILWAY WEB
OXFORDSHIRE CC,SOCIAL AND COMMUNITY SERVICES,CO PRODUCTION WORK,PRINTING,08/05/2019,000008551190101,81.76,VISTAPR VISTAPRINT.COM
OXFORDSHIRE CC,SOCIAL AND COMMUNITY SERVICES,ADULTS AT RISK,MATERIALS,08/05/2019,000008551190249,49.99,ARGOS RETAIL GROUP
OXFORDSHIRE CC,ENTERPRISEVC,,CAR LEASING - PRIVATE RENTALS,08/05/2019,000008551190487,69.55,ENTERPRISE RENT-A-CAR
OXFORDSHIRE CC,CORPORATE CORE,"	CC TRAINING",TRAINING RELATED EXPENDITURE,09/05/2019,000006336434424,35.30,WWW.GWR.COM
OXFORDSHIRE CC,CORPORATE CORE,"	CC TRAINING",TRAINING RELATED EXPENDITURE,09/05/2019,000006336434426,73.30,WWW.GWR.COM
OXFORDSHIRE CC,CORPORATE CORE,"	MAJOR PROGRAMMES",CATERING PROVISIONS,09/05/2019,000006336434462,28.00,WAITROSE 142
OXFORDSHIRE CC,CORPORATE CORE,"	MAJOR PROGRAMMES",CATERING PROVISIONS,09/05/2019,000006336434464,104.00,WAITROSE 142
OXFORDSHIRE CC,CORPORATE CORE,"	MAJOR PROGRAMMES",CATERING PROVISIONS,09/05/2019,000006336434466,-10.76,WAITROSE 142
OXFORDSHIRE CC,"CHILDRENS, YOUNG PEOPLE AND FAMILIES",ATV ADOPTION OXFORD,VEHICLE EQUIPMENT AND EXPENSES - OTHER,09/05/2019,000006336434514,10.00,SWINDON BOROUGH COUNCI
OXFORDSHIRE CC,"CHILDRENS, YOUNG PEOPLE AND FAMILIES",ATV ADOPTION OXFORD,NON-STAFF SUBSISTENCE AND EXPENSES,09/05/2019,000006336434516,25.82,TESCO STORE 2994
OXFORDSHIRE CC,"CHILDRENS, YOUNG PEOPLE AND FAMILIES",ATV ADOPTION OXFORD,CATERING PROVISIONS,09/05/2019,000006336434518,8.99,TESCO STORE 2994
OXFORDSHIRE CC,"CHILDRENS, YOUNG PEOPLE AND FAMILIES","	RIVERSIDE CENTRE",CATERING PROVISIONS,09/05/2019,000006336434356,13.66,TESCO STORES 4377
OXFORDSHIRE CC,"CHILDRENS, YOUNG PEOPLE AND FAMILIES","	RIVERSIDE CENTRE",RESIDENTIAL ACTIVITIES,09/05/2019,000006336434358,15.00,ROCKSTAR CLIMBING LTD
OXFORDSHIRE CC,"CHILDRENS, YOUNG PEOPLE AND FAMILIES",C&I NON PUBLIC FUND,CATERING PROVISIONS,09/05/2019,000006336434500,26.09,CO-OP GROUP 190441
OXFORDSHIRE CC,"CHILDRENS, YOUNG PEOPLE AND FAMILIES","	MUSIC UNALLOCABLE",OTHER TRANSPORT ARRANGEMENTS,09/05/2019,000006336434414,5.00,WESTGATE OXFORD CAR PA
OXFORDSHIRE CC,"CHILDRENS, YOUNG PEOPLE AND FAMILIES","	MUSIC UNALLOCABLE",OTHER TRANSPORT ARRANGEMENTS,09/05/2019,000006336434534,5.00,WESTGATE OXFORD CAR PA
OXFORDSHIRE CC,"CHILDRENS, YOUNG PEOPLE AND FAMILIES",MANAGEMENT,CATERING PROVISIONS,09/05/2019,000006336434402,25.87,MARKS&SPENCER PLC
OXFORDSHIRE CC,CORPORATE CORE,CENTRAL BUYING TEAM,VEHICLE FUEL,09/05/2019,000006336434580,20.02,TESCO PFS 3700
OXFORDSHIRE CC,SHARED SERVICES,SCHOOLS H&S,MATERIALS,09/05/2019,000006336434504,31.45,AMZNMKTPLACE
OXFORDSHIRE CC,CORPORATE CORE,,"SUPPLIES, STATIONERY AND MATERIALS",09/05/2019,000006336434572,305.41,LYRECO UK LTD
OXFORDSHIRE CC,ENVIRONMENT AND ECONOMY,COUNTY LIBRARY,GENERAL MAINTENANCE,09/05/2019,000006336434336,41.94, WOLSELEY UK
OXFORDSHIRE CC,CORPORATE CORE,,"SUPPLIES, STATIONERY AND MATERIALS",09/05/2019,000006336434570,25.94,LYRECO UK LTD
OXFORDSHIRE CC,ENVIRONMENT AND ECONOMY,HARD FM,EQUIPMENT,09/05/2019,000006336434328,31.26,WILTS ELECTRICAL
OXFORDSHIRE CC,ENVIRONMENT AND ECONOMY,HARD FM,GENERAL MAINTENANCE,09/05/2019,000006336434330,42.60, WOLSELEY UK
OXFORDSHIRE CC,ENVIRONMENT AND ECONOMY,HARD FM,HARDWARE AND CROCKERY,09/05/2019,000006336434332,54.81,SCREWFIX BICESTER
OXFORDSHIRE CC,ENVIRONMENT AND ECONOMY,HARD FM,EQUIPMENT,09/05/2019,000006336434334,85.70,WILTS ELECTRICAL
OXFORDSHIRE CC,ENVIRONMENT AND ECONOMY,HARD FM,EQUIPMENT,09/05/2019,000006336434326,22.19,W F SENATE
OXFORDSHIRE CC,SOCIAL AND COMMUNITY SERVICES,SCHOOLS FM,CATERING PROVISIONS,09/05/2019,000006336434382,67.74,LIDL GB  WITNEY
OXFORDSHIRE CC,"CHILDRENS, YOUNG PEOPLE AND FAMILIES",BULLINGDON PRISON,CATERING PROVISIONS,09/05/2019,000006336434532,95.16,MARTIN MCCOLL
OXFORDSHIRE CC,SOCIAL AND COMMUNITY SERVICES,"	CENTRAL LIBRARY",MATERIALS,09/05/2019,000006336434438,300.15,TIM'S NEWSAGENT
OXFORDSHIRE CC,SOCIAL AND COMMUNITY SERVICES,DIDOCT LIBRARY,MATERIALS,09/05/2019,000006336434530,19.90,BAKER ROSS
OXFORDSHIRE CC,SOCIAL AND COMMUNITY SERVICES,ABINGDON LIBRARY,"NEWSPAPERS, PERIODICALS AND PUBLICATIONS",09/05/2019,000006336434536,12.00,PPOINT_ ER GOFF
OXFORDSHIRE CC,SOCIAL AND COMMUNITY SERVICES,"	MUSEUMS COLLECTIONS",MATERIALS,09/05/2019,000006336434396,8.95,AMZN MKTP UK MN3HG3TX4
OXFORDSHIRE CC,SOCIAL AND COMMUNITY SERVICES,"	MUSEUMS COLLECTIONS",OTHER SERVICES,09/05/2019,000006336434446,118.50,WWW.PRESERVATIONEQUIPM
OXFORDSHIRE CC,ENVIRONMENT AND ECONOMY,"	E&I STAFF",HIRE OF ACCOMMODATION AND FACILITIES,09/05/2019,000006336434388,810.00,WWW.MALMAISON.COM
OXFORDSHIRE CC,CORPORATE CORE,"	CORPORATE FINANCE",PAYMENTS TO TRANSPORT OPERATORS,09/05/2019,000006336434444,73.30,WWW.GWR.COM
OXFORDSHIRE CC,SOCIAL AND COMMUNITY SERVICES,CSS - BANBURY,CATERING PROVISIONS,09/05/2019,000006336434234,6.00,CO-OPERATIVE FOOD
OXFORDSHIRE CC,SOCIAL AND COMMUNITY SERVICES,CSS - BANBURY,CATERING PROVISIONS,09/05/2019,000006336434232,52.89,TESCO STORE 2064
OXFORDSHIRE CC,SOCIAL AND COMMUNITY SERVICES,CSS - DIDCOT,CATERING PROVISIONS,09/05/2019,000006336434228,117.08,TESCO STORE 2919
OXFORDSHIRE CC,SOCIAL AND COMMUNITY SERVICES,CSS - DIDCOT,CATERING,09/05/2019,000006336434494,6.00,WILKO RETAIL LIMIT
OXFORDSHIRE CC,SOCIAL AND COMMUNITY SERVICES,CSS - OXFORD,"BOOKS, DVDS AND CDS",09/05/2019,000006336434324,47.26,PAYPAL  ULVERSCROFT
OXFORDSHIRE CC,"CHILDRENS, YOUNG PEOPLE AND FAMILIES","	RESIDENTIAL STRATEGY",CATERING,09/05/2019,000006336434278,7.44,MCDONALDS
OXFORDSHIRE CC,SOCIAL AND COMMUNITY SERVICES,WITNEY MOVE ON HOME,HIRED AND CONTRACTED SERVICES,09/05/2019,000006336434384,4.60,WITNEY LAKES RESOR
OXFORDSHIRE CC,SOCIAL AND COMMUNITY SERVICES,WITNEY MOVE ON HOME,HIRED AND CONTRACTED SERVICES,09/05/2019,000006336434386,10.00,WITNEY LAKES RESOR
OXFORDSHIRE CC,"CHILDRENS, YOUNG PEOPLE AND FAMILIES",WITNEY,CATERING PROVISIONS,09/05/2019,000006336434302,3.00,SAINSBURYS SACAT 0632
OXFORDSHIRE CC,"CHILDRENS, YOUNG PEOPLE AND FAMILIES",WITNEY,CATERING PROVISIONS,09/05/2019,000006336434362,25.35,SAINSBURYS SACAT 0632
OXFORDSHIRE CC,"CHILDRENS, YOUNG PEOPLE AND FAMILIES",DIDCOT MOVE-ON HOME,CATERING PROVISIONS,09/05/2019,000006336434506,26.80,SAINSBURYS 2067
OXFORDSHIRE CC,"CHILDRENS, YOUNG PEOPLE AND FAMILIES",THAME E&A HOME,CATERING PROVISIONS,09/05/2019,000006336434428,111.30,SAINSBURYS TO YOU 0600
OXFORDSHIRE CC,"CHILDRENS, YOUNG PEOPLE AND FAMILIES",THAME E&A HOME,OTHER TRANSPORT ARRANGEMENTS,09/05/2019,000006336434360,2.00,3C_ PRINCESS SQUARE MS
OXFORDSHIRE CC,"CHILDRENS, YOUNG PEOPLE AND FAMILIES",THAME E&A HOME,CATERING PROVISIONS,09/05/2019,000006336434236,12.33,SAINSBURYS SACAT 2096
OXFORDSHIRE CC,"CHILDRENS, YOUNG PEOPLE AND FAMILIES",THAME E&A HOME,CATERING PROVISIONS,09/05/2019,000006336434238,15.00,TESCO STORES 4480
OXFORDSHIRE CC,"CHILDRENS, YOUNG PEOPLE AND FAMILIES","	40 THE MOORS",OTHER TRANSPORT ARRANGEMENTS,09/05/2019,000006336434398,12.20,SUMUP   001TAXIS
OXFORDSHIRE CC,"CHILDRENS, YOUNG PEOPLE AND FAMILIES",DEPUTY DIRECTOR &MAN,PAYMENTS TO TRANSPORT OPERATORS,09/05/2019,000006336434390,80.55,WWW.GWR.COM
OXFORDSHIRE CC,"CHILDRENS, YOUNG PEOPLE AND FAMILIES",KINGFISHER,HIRE OF ACCOMMODATION AND FACILITIES,09/05/2019,000006336434496,292.00,TRAVELODGE
OXFORDSHIRE CC,"CHILDRENS, YOUNG PEOPLE AND FAMILIES",KINGFISHER,HIRE OF ACCOMMODATION AND FACILITIES,09/05/2019,000006336434498,195.25,TRAVELODGE
OXFORDSHIRE CC,"CHILDRENS, YOUNG PEOPLE AND FAMILIES",NTH EARLY HELP-WITNY,GAS,09/05/2019,000006336434230,41.98,ALLSTAR BUSINESS SOLUT
OXFORDSHIRE CC,ENTERPRISEVC,OTFC TEAM,CATERING PROVISIONS,09/05/2019,000006336434374,3.95,TESCO STORE 2994
OXFORDSHIRE CC,ENTERPRISEVC,,CAR LEASING - PRIVATE RENTALS,09/05/2019,000006336434582,107.44,ENTERPRISE RENT-A-CAR
OXFORDSHIRE CC,"CHILDRENS, YOUNG PEOPLE AND FAMILIES","	FAMILY SUPPORT S'TH2",CLIENT LODGINGS AND ACCOMMODATION,09/05/2019,000006336434252,70.00,THE GEORGE HOTEL
OXFORDSHIRE CC,"CHILDRENS, YOUNG PEOPLE AND FAMILIES","	LOOKED AFTER NORTH",OTHER TRANSPORT ARRANGEMENTS,09/05/2019,000006336434558,2.00,SEACOURT PARK AND RIDE
OXFORDSHIRE CC,"CHILDRENS, YOUNG PEOPLE AND FAMILIES","	LOOKED AFTER NORTH",CATERING,09/05/2019,000006336434574,2.95,COSTA CARTERTON
OXFORDSHIRE CC,"CHILDRENS, YOUNG PEOPLE AND FAMILIES","	LOOKED AFTER NORTH",CATERING PROVISIONS,09/05/2019,000006336434352,10.00,WM MORRISONS STORE
OXFORDSHIRE CC,"CHILDRENS, YOUNG PEOPLE AND FAMILIES","	LOOKED AFTER SOUTH",CATERING PROVISIONS,09/05/2019,000006336434560,1.00,WAITROSE 211
OXFORDSHIRE CC,"CHILDRENS, YOUNG PEOPLE AND FAMILIES","	LOOKED AFTER SOUTH",CATERING,09/05/2019,000006336434490,8.85,COSTA TEMPLAR SQUARE O
OXFORDSHIRE CC,"CHILDRENS, YOUNG PEOPLE AND FAMILIES","	LOOKED AFTER CITY 2",OTHER EXPENSES,09/05/2019,000006336434538,2.75,WILKO RETAIL LIMIT
OXFORDSHIRE CC,"CHILDRENS, YOUNG PEOPLE AND FAMILIES","	LEAVING CARE CITY 1",TELEPHONE - EQUIPMENT,09/05/2019,000006336434392,15.00,O2 COWLEY
OXFORDSHIRE CC,"CHILDRENS, YOUNG PEOPLE AND FAMILIES","	LEAVING CARE SOUTH",MATERIALS,09/05/2019,000006336434552,28.07,B&M RETAIL
OXFORDSHIRE CC,"CHILDRENS, YOUNG PEOPLE AND FAMILIES","	LEAVING CARE SOUTH",MATERIALS,09/05/2019,000006336434554,211.50,AO RETAIL LIMITED
OXFORDSHIRE CC,"CHILDRENS, YOUNG PEOPLE AND FAMILIES","	LEAVING CARE SOUTH",MATERIALS,09/05/2019,000006336434548,15.99,AMZNMKTPLACE
OXFORDSHIRE CC,"CHILDRENS, YOUNG PEOPLE AND FAMILIES","	LEAVING CARE SOUTH",MATERIALS,09/05/2019,000006336434550,18.89,AMAZON.CO.UK MN1AT1E24
OXFORDSHIRE CC,"CHILDRENS, YOUNG PEOPLE AND FAMILIES","	LEAVING CARE SOUTH",MATERIALS,09/05/2019,000006336434272,54.99,WWW.ARGOS.CO.UK
OXFORDSHIRE CC,"CHILDRENS, YOUNG PEOPLE AND FAMILIES","	LEAVING CARE SOUTH",MATERIALS,09/05/2019,000006336434274,91.94,WWW.ARGOS.CO.UK
OXFORDSHIRE CC,SOCIAL AND COMMUNITY SERVICES,VIVA,HARDWARE AND CROCKERY,09/05/2019,000006336434618,10.50,BICESTER GARDEN CENTRE
OXFORDSHIRE CC,SOCIAL AND COMMUNITY SERVICES,SERVICE IMPROVEMENT,CATERING PROVISIONS,09/05/2019,000006336434354,14.10,B & M RETAIL
OXFORDSHIRE CC,CORPORATE CORE,"	CC TRAINING",TRAINING RELATED EXPENDITURE,10/05/2019,000008562208285,32.10,WWW.GWR.COM
OXFORDSHIRE CC,"CHILDRENS, YOUNG PEOPLE AND FAMILIES",ATV ADOPTION OXFORD,OTHER EXPENSES,10/05/2019,000008562208399,99.00,TRAVELODGE
OXFORDSHIRE CC,"CHILDRENS, YOUNG PEOPLE AND FAMILIES",ATV ADOPTION OXFORD,OTHER EXPENSES,10/05/2019,000008562208399,93.00,TRAVELODGE
OXFORDSHIRE CC,"CHILDRENS, YOUNG PEOPLE AND FAMILIES",ATV ADOPTION OXFORD,OTHER EXPENSES,10/05/2019,000008562208399,21.00,TRAVELODGE
OXFORDSHIRE CC,"CHILDRENS, YOUNG PEOPLE AND FAMILIES",ATV ADOPTION OXFORD,OTHER EXPENSES,10/05/2019,000008562208399,10.50,TRAVELODGE
OXFORDSHIRE CC,"CHILDRENS, YOUNG PEOPLE AND FAMILIES",ATV ADOPTION OXFORD,OTHER EXPENSES,10/05/2019,000008562208399,6.00,TRAVELODGE
OXFORDSHIRE CC,"CHILDRENS, YOUNG PEOPLE AND FAMILIES",ATV ADOPTION OXFORD,OTHER EXPENSES,10/05/2019,000008562208401,57.00,TRAVELODGE
OXFORDSHIRE CC,"CHILDRENS, YOUNG PEOPLE AND FAMILIES",ATV ADOPTION OXFORD,OTHER EXPENSES,10/05/2019,000008562208401,10.50,TRAVELODGE
OXFORDSHIRE CC,"CHILDRENS, YOUNG PEOPLE AND FAMILIES",ATV ADOPTION OXFORD,OTHER EXPENSES,10/05/2019,000008562208401,5.25,TRAVELODGE
OXFORDSHIRE CC,"CHILDRENS, YOUNG PEOPLE AND FAMILIES",ATV ADOPTION OXFORD,OTHER EXPENSES,10/05/2019,000008562208401,3.00,TRAVELODGE
OXFORDSHIRE CC,"CHILDRENS, YOUNG PEOPLE AND FAMILIES","	RIVERSIDE CENTRE",CATERING PROVISIONS,10/05/2019,000008562208467,10.90,TESCO STORES 4377
OXFORDSHIRE CC,"CHILDRENS, YOUNG PEOPLE AND FAMILIES","	RIVERSIDE CENTRE",HIRE OF EQUIPMENT,10/05/2019,000008562208469,499.00,APPLIED TRADING LTD
OXFORDSHIRE CC,"CHILDRENS, YOUNG PEOPLE AND FAMILIES","	RIVERSIDE CENTRE",HIRE OF EQUIPMENT,10/05/2019,000008562208471,121.04,APPLIED TRADING LTD
OXFORDSHIRE CC,"CHILDRENS, YOUNG PEOPLE AND FAMILIES",C&I NON PUBLIC FUND,CATERING PROVISIONS,10/05/2019,000008562208379,43.50,CO-OP GROUP 190441
OXFORDSHIRE CC,"CHILDRENS, YOUNG PEOPLE AND FAMILIES","	MUSIC UNALLOCABLE",EQUIPMENT,10/05/2019,000008562208413,121.25,MUSIC STORE PROFESSION
OXFORDSHIRE CC,ENVIRONMENT AND ECONOMY,"	KNIGHTS COURT",HARDWARE AND CROCKERY,10/05/2019,000008562208419,19.05,AMZNMKTPLACE
OXFORDSHIRE CC,ENVIRONMENT AND ECONOMY,"	KNIGHTS COURT",CATERING EQUIPMENT,10/05/2019,000008562208421,11.17,AMAZON.CO.UK MN87100U4
OXFORDSHIRE CC,CORPORATE CORE,,"SUPPLIES, STATIONERY AND MATERIALS",10/05/2019,000008562208439,244.39,LYRECO UK LTD
OXFORDSHIRE CC,ENVIRONMENT AND ECONOMY,HARD FM,GENERAL MAINTENANCE,10/05/2019,000008562208127,42.01,WOLSELEY UK
OXFORDSHIRE CC,ENVIRONMENT AND ECONOMY,HARD FM,HARDWARE AND CROCKERY,10/05/2019,000008562208131,7.60,WICKES OXFORD
OXFORDSHIRE CC,ENVIRONMENT AND ECONOMY,HARD FM,EQUIPMENT,10/05/2019,000008562208103,2.96,GAP-EDMUNDSON
OXFORDSHIRE CC,ENVIRONMENT AND ECONOMY,HARD FM,HARDWARE AND CROCKERY,10/05/2019,000008562208105,49.13,CITY ELECTRICAL FA
OXFORDSHIRE CC,ENVIRONMENT AND ECONOMY,HARD FM,HARDWARE AND CROCKERY,10/05/2019,000008562208107,13.10,SCREWFIX DIDCOT
OXFORDSHIRE CC,ENVIRONMENT AND ECONOMY,HARD FM,HARDWARE AND CROCKERY,10/05/2019,000008562208109,10.06,SCREWFIX BANBURY
OXFORDSHIRE CC,ENVIRONMENT AND ECONOMY,HARD FM,HARDWARE AND CROCKERY,10/05/2019,000008562208111,12.89,WICKES BANBURY
OXFORDSHIRE CC,ENVIRONMENT AND ECONOMY,HARD FM,HARDWARE AND CROCKERY,10/05/2019,000008562208113,126.16,BUILDBASE - OXFORD
OXFORDSHIRE CC,ENVIRONMENT AND ECONOMY,HARD FM,HARDWARE AND CROCKERY,10/05/2019,000008562208115,43.76,TRAVIS PERKINS
OXFORDSHIRE CC,ENVIRONMENT AND ECONOMY,HARD FM,FURNITURE,10/05/2019,000008562208117,450.00,REYNOLDS BLINDS
OXFORDSHIRE CC,ENVIRONMENT AND ECONOMY,HARD FM,HARDWARE AND CROCKERY,10/05/2019,000008562208119,15.40,WICKES OXFORD
OXFORDSHIRE CC,ENVIRONMENT AND ECONOMY,HARD FM,HARDWARE AND CROCKERY,10/05/2019,000008562208121,7.99,SCREWFIX OXFORD BOTLEY
OXFORDSHIRE CC,ENVIRONMENT AND ECONOMY,HARD FM,HARDWARE AND CROCKERY,10/05/2019,000008562208123,11.06,JEWSON LTD
OXFORDSHIRE CC,ENVIRONMENT AND ECONOMY,HARD FM,GENERAL MAINTENANCE,10/05/2019,000008562208125,63.48,WOLSELEY UK
OXFORDSHIRE CC,SOCIAL AND COMMUNITY SERVICES,SCHOOLS FM,CATERING PROVISIONS,10/05/2019,000008562208185,21.21,LIDL GB  WITNEY
OXFORDSHIRE CC,SOCIAL AND COMMUNITY SERVICES,SCHOOLS FM,CATERING PROVISIONS,10/05/2019,000008562208209,80.30,TESCO STORES 2008
OXFORDSHIRE CC,SOCIAL AND COMMUNITY SERVICES,"	LEARNING & ACCESS",VEHICLES REPAIRS AND MAINTENANCE,10/05/2019,000008562208221,20.00,ABBY TYRE
OXFORDSHIRE CC,CORPORATE CORE,HISTORY SERVICE,"BOOKS, DVDS AND CDS",10/05/2019,000008562208281,20.00,AMAZON.CO.UK MN9IG8ET4
OXFORDSHIRE CC,SOCIAL AND COMMUNITY SERVICES,WITNEY LIBRARY,MATERIALS,10/05/2019,000008562208447,186.75,AMZNMKTPLACE
OXFORDSHIRE CC,SOCIAL AND COMMUNITY SERVICES,WITNEY LIBRARY,"BOOKS, DVDS AND CDS",10/05/2019,000008562208449,79.35,AMZN MKTP UK MN4DD90G4
OXFORDSHIRE CC,SOCIAL AND COMMUNITY SERVICES,"	MUSEUMS COLLECTIONS",MATERIALS,10/05/2019,000008562208219,21.94,AMAZON.CO.UK MN0197EZ4
OXFORDSHIRE CC,ENVIRONMENT AND ECONOMY,"	E&I STAFF",MATERIALS,10/05/2019,000008562208205,24.99,ARGOS LTD
OXFORDSHIRE CC,CORPORATE CORE,"	CORPORATE FINANCE",PAYMENTS TO TRANSPORT OPERATORS,10/05/2019,000008562208307,50.10,WWW.GWR.COM
OXFORDSHIRE CC,CORPORATE CORE,"	CORPORATE FINANCE",STAFF SUBSISTENCE,10/05/2019,000008562208257,38.05,WWW.GWR.COM
OXFORDSHIRE CC,"CHILDRENS, YOUNG PEOPLE AND FAMILIES",ICT INFORMATION,IT SOFTWARE,10/05/2019,000008562208129,23.02,AXURE SOFTWARE
OXFORDSHIRE CC,"CHILDRENS, YOUNG PEOPLE AND FAMILIES",CSS - ABINGDON,MATERIALS,10/05/2019,000008562208133,55.00,ARGOS RETAIL GROUP
OXFORDSHIRE CC,SOCIAL AND COMMUNITY SERVICES,CSS BICESTER,HARDWARE AND CROCKERY,10/05/2019,000008562208061,19.80,WICKES BICESTER
OXFORDSHIRE CC,SOCIAL AND COMMUNITY SERVICES,CSS - DIDCOT,DOMESTIC AND CLEANING EQUIPMENT,10/05/2019,000008562208057,239.00,CURRYS ONLINE
OXFORDSHIRE CC,SOCIAL AND COMMUNITY SERVICES,CSS - DIDCOT,POSTAGE AND DELIVERY,10/05/2019,000008562208059,20.00,CURRYS SUPERSTORE
OXFORDSHIRE CC,SOCIAL AND COMMUNITY SERVICES,CSS - OXFORD,MATERIALS,10/05/2019,000008562208255,29.98,AMZN MKTP UK MN47A4E74
OXFORDSHIRE CC,SOCIAL AND COMMUNITY SERVICES,CSS WITNEY,MATERIALS,10/05/2019,000008562208329,6.87,AMZNMKTPLACE AMAZON.CO
OXFORDSHIRE CC,SOCIAL AND COMMUNITY SERVICES,CSS WITNEY,MATERIALS,10/05/2019,000008562208331,12.94,AMZNMKTPLACE AMAZON.CO
OXFORDSHIRE CC,SOCIAL AND COMMUNITY SERVICES,CSS WITNEY,MATERIALS,10/05/2019,000008562208333,6.08,AMZNMKTPLACE AMAZON.CO
OXFORDSHIRE CC,SOCIAL AND COMMUNITY SERVICES,CSS WITNEY,"BOOKS, DVDS AND CDS",10/05/2019,000008562208335,6.74,AMZN MKTP UK MN6RP8EO4
OXFORDSHIRE CC,"CHILDRENS, YOUNG PEOPLE AND FAMILIES","	RESIDENTIAL STRATEGY",CATERING,10/05/2019,000008562208081,4.60,SUBWAY
OXFORDSHIRE CC,"CHILDRENS, YOUNG PEOPLE AND FAMILIES","	RESIDENTIAL STRATEGY",CATERING,10/05/2019,000008562208083,30.60,HONGXIN
OXFORDSHIRE CC,"CHILDRENS, YOUNG PEOPLE AND FAMILIES",EYNSHAM,"BOOKS, DVDS AND CDS",10/05/2019,000008562208495,10.00,ARGOS RETAIL GROUP
OXFORDSHIRE CC,"CHILDRENS, YOUNG PEOPLE AND FAMILIES",EYNSHAM,CATERING PROVISIONS,10/05/2019,000008562208143,12.00,SAINSBURYS 0632
OXFORDSHIRE CC,"CHILDRENS, YOUNG PEOPLE AND FAMILIES",WITNEY,CATERING PROVISIONS,10/05/2019,000008562208093,1.80,SAINSBURYS SACAT 0632
OXFORDSHIRE CC,"CHILDRENS, YOUNG PEOPLE AND FAMILIES",WITNEY,CATERING PROVISIONS,10/05/2019,000008562208095,1.75,SAINSBURYS SACAT 0632
OXFORDSHIRE CC,"CHILDRENS, YOUNG PEOPLE AND FAMILIES",WITNEY,CATERING PROVISIONS,10/05/2019,000008562208097,26.15,SAINSBURYS 0632
OXFORDSHIRE CC,"CHILDRENS, YOUNG PEOPLE AND FAMILIES",DIDCOT MOVE-ON HOME,CATERING PROVISIONS,10/05/2019,000008562208387,4.40,SAINSBURYS 2067
OXFORDSHIRE CC,"CHILDRENS, YOUNG PEOPLE AND FAMILIES",DIDCOT MOVE-ON HOME,CATERING PROVISIONS,10/05/2019,000008562208389,50.08,TK MAXX
OXFORDSHIRE CC,"CHILDRENS, YOUNG PEOPLE AND FAMILIES",DIDCOT MOVE-ON HOME,CATERING,10/05/2019,000008562208391,6.78,MCDONALDS
OXFORDSHIRE CC,"CHILDRENS, YOUNG PEOPLE AND FAMILIES",DIDCOT MOVE-ON HOME,CATERING PROVISIONS,10/05/2019,000008562208207,20.91,TESCO STORE 2413
OXFORDSHIRE CC,"CHILDRENS, YOUNG PEOPLE AND FAMILIES","	MALTFIELD HOUSE",CATERING PROVISIONS,10/05/2019,000008562208315,7.73,CO-OP GROUP 350035
OXFORDSHIRE CC,"CHILDRENS, YOUNG PEOPLE AND FAMILIES","	MALTFIELD HOUSE",CATERING PROVISIONS,10/05/2019,000008562208317,-20.00,SAINSBURYS
OXFORDSHIRE CC,"CHILDRENS, YOUNG PEOPLE AND FAMILIES",THAME E&A HOME,MATERIALS,10/05/2019,000008562208071,118.99,WWW.JOHNLEWIS.COM
OXFORDSHIRE CC,"CHILDRENS, YOUNG PEOPLE AND FAMILIES",THAME E&A HOME,CATERING PROVISIONS,10/05/2019,000008562208149,43.78,ASDA SUPERSTORE
OXFORDSHIRE CC,"CHILDRENS, YOUNG PEOPLE AND FAMILIES","	40 THE MOORS",OTHER TRANSPORT ARRANGEMENTS,10/05/2019,000008562208369,6.00,WORCESTER STREET CAR P
OXFORDSHIRE CC,"CHILDRENS, YOUNG PEOPLE AND FAMILIES","	40 THE MOORS",OTHER TRANSPORT ARRANGEMENTS,10/05/2019,000008562208223,17.60,THE OXFORDSHIRE TAXI C
OXFORDSHIRE CC,"CHILDRENS, YOUNG PEOPLE AND FAMILIES",HOUSE PROJECT,IT SERVICES,10/05/2019,000008562208159,"1,182.00",KNOWLEDGE TREE
OXFORDSHIRE CC,"CHILDRENS, YOUNG PEOPLE AND FAMILIES",CNTL EARLY HELP-RHIL,MATERIALS,10/05/2019,000008562208367,199.99,WWW.ARGOS.CO.UK
OXFORDSHIRE CC,"CHILDRENS, YOUNG PEOPLE AND FAMILIES",C&F - TF CONTRIB,PAYMENTS TO TRANSPORT OPERATORS,10/05/2019,000008562208487,6.80,WWW.GWR.COM
OXFORDSHIRE CC,"CHILDRENS, YOUNG PEOPLE AND FAMILIES",C&F - TF CONTRIB,PAYMENTS TO TRANSPORT OPERATORS,10/05/2019,000008562208489,6.80,WWW.GWR.COM
OXFORDSHIRE CC,SOCIAL AND COMMUNITY SERVICES,"	MTFC",OTHER TRANSPORT ARRANGEMENTS,10/05/2019,000008562208305,1.00,CAR PARK CHARGES
OXFORDSHIRE CC,SOCIAL AND COMMUNITY SERVICES,"	MTFC",VEHICLE FUEL,10/05/2019,000008562208301,3.17,BP CANNON POOL S/SERVE
OXFORDSHIRE CC,SOCIAL AND COMMUNITY SERVICES,"	MTFC",VEHICLE FUEL,10/05/2019,000008562208301,.85,BP CANNON POOL S/SERVE
OXFORDSHIRE CC,SOCIAL AND COMMUNITY SERVICES,"	MTFC",CATERING,10/05/2019,000008562208303,3.35,COSTA COFFEE
OXFORDSHIRE CC,ENTERPRISEVC,OTFC TEAM,CATERING PROVISIONS,10/05/2019,000008562208183,7.45,GREEN DRAGON ECO FARM
OXFORDSHIRE CC,"CHILDRENS, YOUNG PEOPLE AND FAMILIES","	FAM SUPP SOUTH",LAUNDRY AND DRY CLEANING,10/05/2019,000008562208085,110.00,TIMPSON LTD
OXFORDSHIRE CC,"CHILDRENS, YOUNG PEOPLE AND FAMILIES","	FAM SUPP CITY 1",MATERIALS,10/05/2019,000008562208365,42.99,ARGOS RETAIL GROUP
OXFORDSHIRE CC,"CHILDRENS, YOUNG PEOPLE AND FAMILIES",FAMILY SUPPORT 2,PAYMENTS TO TRANSPORT OPERATORS,10/05/2019,000008562208445,45.00,WWW.GWR.COM
OXFORDSHIRE CC,"CHILDRENS, YOUNG PEOPLE AND FAMILIES",NTH FAM SUPRT-BCSTR,PAYMENTS TO TRANSPORT OPERATORS,10/05/2019,000008562208165,9.50,WWW.GWR.COM
OXFORDSHIRE CC,"CHILDRENS, YOUNG PEOPLE AND FAMILIES",NTH FAM SUPRT-BCSTR,PAYMENTS TO TRANSPORT OPERATORS,10/05/2019,000008562208167,5.40,WWW.GWR.COM
OXFORDSHIRE CC,"CHILDRENS, YOUNG PEOPLE AND FAMILIES",NTH FAM SUPRT-BCSTR,PAYMENTS TO TRANSPORT OPERATORS,10/05/2019,000008562208169,144.75,WWW.GWR.COM
OXFORDSHIRE CC,"CHILDRENS, YOUNG PEOPLE AND FAMILIES","	LOOKED AFTER NORTH",VEHICLE FUEL,10/05/2019,000008562208429,9.41,TEX PARKVIEWPETROL
OXFORDSHIRE CC,"CHILDRENS, YOUNG PEOPLE AND FAMILIES","	LOOKED AFTER NORTH",VEHICLE FUEL,10/05/2019,000008562208431,2.34,TEX PARKVIEWPETROL
OXFORDSHIRE CC,"CHILDRENS, YOUNG PEOPLE AND FAMILIES","	LOOKED AFTER NORTH",CATERING,10/05/2019,000008562208441,3.55,STARBUCKS COFFEE
OXFORDSHIRE CC,"CHILDRENS, YOUNG PEOPLE AND FAMILIES","	LOOKED AFTER NORTH",CATERING PROVISIONS,10/05/2019,000008562208443,1.50,WM MORRISONS STORE
OXFORDSHIRE CC,SOCIAL AND COMMUNITY SERVICES,LOOKED AFTER NORTH,OTHER TRANSPORT ARRANGEMENTS,10/05/2019,000008562208077,2.00,3C_ BASINGSTOKE AND DE
OXFORDSHIRE CC,"CHILDRENS, YOUNG PEOPLE AND FAMILIES","	LOOKED AFTER SOUTH",MATERIALS,10/05/2019,000008562208433,199.99,AMZNMKTPLACE
OXFORDSHIRE CC,"CHILDRENS, YOUNG PEOPLE AND FAMILIES","	LOOKED AFTER SOUTH",MATERIALS,10/05/2019,000008562208435,378.00,AO RETAIL LIMITED
OXFORDSHIRE CC,"CHILDRENS, YOUNG PEOPLE AND FAMILIES","	LOOKED AFTER SOUTH",MATERIALS,10/05/2019,000008562208437,25.00,AO RETAIL LIMITED
OXFORDSHIRE CC,"CHILDRENS, YOUNG PEOPLE AND FAMILIES","	LOOKED AFTER SOUTH",OTHER TRANSPORT ARRANGEMENTS,10/05/2019,000008562208089,77.00,STAGECOACH SERVICE
OXFORDSHIRE CC,"CHILDRENS, YOUNG PEOPLE AND FAMILIES","	LOOKED AFTER SOUTH",ENTERTAINMENT EXPENSES,10/05/2019,000008562208091,20.97,VUE CINEMAS
OXFORDSHIRE CC,"CHILDRENS, YOUNG PEOPLE AND FAMILIES","	LOOKED AFTER SOUTH",PAYMENTS TO TRANSPORT OPERATORS,10/05/2019,000008562208451,86.10,TRAINLINE
OXFORDSHIRE CC,"CHILDRENS, YOUNG PEOPLE AND FAMILIES","	LEAVING CARE NORTH",MATERIALS,10/05/2019,000008562208135,13.95,AMZNMKTPLACE AMAZON.CO
OXFORDSHIRE CC,"CHILDRENS, YOUNG PEOPLE AND FAMILIES","	LEAVING CARE SOUTH",PAYMENT TO GOVERNMENT DEPARTMENTS,10/05/2019,000008562208425,60.00,HMCTS-TV031
OXFORDSHIRE CC,"CHILDRENS, YOUNG PEOPLE AND FAMILIES","	LEAVING CARE SOUTH",OTHER TRANSPORT ARRANGEMENTS,10/05/2019,000008562208497,3.00,FB UNIT TRUST
OXFORDSHIRE CC,"CHILDRENS, YOUNG PEOPLE AND FAMILIES","	LEAVING CARE SOUTH",OTHER EXPENSES,10/05/2019,000008562208499,119.97,ARGOS LTD
OXFORDSHIRE CC,"CHILDRENS, YOUNG PEOPLE AND FAMILIES","	LEAVING CARE SOUTH",OTHER EXPENSES,10/05/2019,000008562208501,11.95,WILKO RETAIL LIMIT
OXFORDSHIRE CC,"CHILDRENS, YOUNG PEOPLE AND FAMILIES","	LEAVING CARE SOUTH",OTHER EXPENSES,10/05/2019,000008562208173,102.00,WWW.ARGOS.CO.UK
OXFORDSHIRE CC,"CHILDRENS, YOUNG PEOPLE AND FAMILIES","	LEAVING CARE SOUTH",OTHER EXPENSES,10/05/2019,000008562208175,182.94,WWW.ARGOS.CO.UK
OXFORDSHIRE CC,"CHILDRENS, YOUNG PEOPLE AND FAMILIES","	LEAVING CARE CITY 2",OTHER EXPENSES,10/05/2019,000008562208273,50.00,DFS TRADING LTD
OXFORDSHIRE CC,SOCIAL AND COMMUNITY SERVICES,VIVA,MATERIALS,10/05/2019,000008562208483,39.99,AMZNMKTPLACE
OXFORDSHIRE CC,ENTERPRISEVC,OPERATIONAL COSTS,PAYMENTS TO TRANSPORT OPERATORS,10/05/2019,000008562208177,61.36,TRAINLINE.COM
OXFORDSHIRE CC,CORPORATE CORE,SNR LEADERSHIP TEAM,PAYMENTS TO TRANSPORT OPERATORS,10/05/2019,000008562208485,119.00,WWW.GWR.COM
OXFORDSHIRE CC,CORPORATE CORE,"	COMMUNICATIONS",MATERIALS,13/05/2019,000006326306450,392.42,LINKEDIN 4641028473 LN
OXFORDSHIRE CC,"CHILDRENS, YOUNG PEOPLE AND FAMILIES",ATV ADOPTION OXFORD,OTHER EXPENSES,13/05/2019,000006326306336,85.00,DASHWOOD APARTMENT
OXFORDSHIRE CC,"CHILDRENS, YOUNG PEOPLE AND FAMILIES",MANAGEMENT RECHARGES,HIRED AND CONTRACTED SERVICES,13/05/2019,000006326306334,190.00,FUNTIME BOUNCE
OXFORDSHIRE CC,ENVIRONMENT AND ECONOMY,EET SERVICE,"SUPPLIES, STATIONERY AND MATERIALS",13/05/2019,000006326306422,59.00,EB  THE THRIVING CHILD
OXFORDSHIRE CC,"CHILDRENS, YOUNG PEOPLE AND FAMILIES","	NCS",IT SOFTWARE,13/05/2019,000006326305878,18.10,FASTSPRING
OXFORDSHIRE CC,"CHILDRENS, YOUNG PEOPLE AND FAMILIES",C&I NON PUBLIC FUND,VEHICLE FUEL,13/05/2019,000006326306308,50.00,LOCKS GARAGE
OXFORDSHIRE CC,CORPORATE CORE,"	PERSONNEL","PUBLICITY, PROMOTIONS AND ADVERTISEMENT",13/05/2019,000006326306050,400.00,FACEBK RKVFLKJH72
OXFORDSHIRE CC,CORPORATE CORE,"	PERSONNEL","PUBLICITY, PROMOTIONS AND ADVERTISEMENT",13/05/2019,000006326306052,68.67,FACEBK TSB8GKEH72
OXFORDSHIRE CC,CORPORATE CORE,HEALTH & SAFETY,OTHER TRAINING COURSES AND QUALIFICATION,13/05/2019,000006326306164,"3,224.36",EEF LTD
OXFORDSHIRE CC,ENVIRONMENT AND ECONOMY,COUNTY LIBRARY,GENERAL MAINTENANCE,13/05/2019,000006326305934,28.46,WOLSELEY UK
OXFORDSHIRE CC,CORPORATE CORE,,"SUPPLIES, STATIONERY AND MATERIALS",13/05/2019,000006326306408,-139.32,LYRECO UK LTD
OXFORDSHIRE CC,ENVIRONMENT AND ECONOMY,HARD FM,GENERAL MAINTENANCE,13/05/2019,000006326305904,118.36,WOLSELEY UK
OXFORDSHIRE CC,ENVIRONMENT AND ECONOMY,HARD FM,VEHICLE FUEL,13/05/2019,000006326305906,11.00,TESCO PFS 3827
OXFORDSHIRE CC,ENVIRONMENT AND ECONOMY,HARD FM,HARDWARE AND CROCKERY,13/05/2019,000006326305908,10.17,SCREWFIX ABINGDON
OXFORDSHIRE CC,ENVIRONMENT AND ECONOMY,HARD FM,HARDWARE AND CROCKERY,13/05/2019,000006326305910,9.99,SCREWFIX ABINGDON
OXFORDSHIRE CC,ENVIRONMENT AND ECONOMY,HARD FM,HARDWARE AND CROCKERY,13/05/2019,000006326305912,16.98,SCREWFIX DIDCOT
OXFORDSHIRE CC,ENVIRONMENT AND ECONOMY,HARD FM,VEHICLE FUEL,13/05/2019,000006326305914,12.00,TESCO PFS 3920
OXFORDSHIRE CC,ENVIRONMENT AND ECONOMY,HARD FM,HARDWARE AND CROCKERY,13/05/2019,000006326305916,21.35,SCREWFIX BANBURY
OXFORDSHIRE CC,ENVIRONMENT AND ECONOMY,HARD FM,HARDWARE AND CROCKERY,13/05/2019,000006326305918,46.32,B & Q 1156
OXFORDSHIRE CC,ENVIRONMENT AND ECONOMY,HARD FM,HARDWARE AND CROCKERY,13/05/2019,000006326305920,197.71,HOWDENS - ABINGDON D59
OXFORDSHIRE CC,ENVIRONMENT AND ECONOMY,HARD FM,HARDWARE AND CROCKERY,13/05/2019,000006326305922,14.38,CITY PLUMBING
OXFORDSHIRE CC,ENVIRONMENT AND ECONOMY,HARD FM,MATERIALS,13/05/2019,000006326305924,7.99,AMAZON PRIME MN5TJ50U4
OXFORDSHIRE CC,ENVIRONMENT AND ECONOMY,HARD FM,GENERAL MAINTENANCE,13/05/2019,000006326305926,127.84,WOLSELEY UK
OXFORDSHIRE CC,ENVIRONMENT AND ECONOMY,HARD FM,HARDWARE AND CROCKERY,13/05/2019,000006326305928,9.91,CITY PLUMBING
OXFORDSHIRE CC,ENVIRONMENT AND ECONOMY,HARD FM,HARDWARE AND CROCKERY,13/05/2019,000006326305932,9.04,WICKES OXFORD
OXFORDSHIRE CC,"CHILDRENS, YOUNG PEOPLE AND FAMILIES",KIDLINGTON LIBRARY,"SUPPLIES, STATIONERY AND MATERIALS",13/05/2019,000006326306360,50.00,WWW.DENTAL-AESTHIC
OXFORDSHIRE CC,CORPORATE CORE,HISTORY SERVICE,"BOOKS, DVDS AND CDS",13/05/2019,000006326306160,21.43,AMAZON.CO.UK MN5QU91M4
OXFORDSHIRE CC,CORPORATE CORE,LIBRARY COLLECTIONS,"NEWSPAPERS, PERIODICALS AND PUBLICATIONS",13/05/2019,000006326306082,991.19,BOLINDA PUBLISHING
OXFORDSHIRE CC,CORPORATE CORE,,"SUPPLIES, STATIONERY AND MATERIALS",13/05/2019,000006326306406,324.18,LYRECO UK LTD
OXFORDSHIRE CC,ENVIRONMENT AND ECONOMY,"	BRIDGES GENERAL",HARDWARE AND CROCKERY,13/05/2019,000006326306128,129.00,HOMEBASE LTD
OXFORDSHIRE CC,ENVIRONMENT AND ECONOMY,"	ROW MAINT",EQUIPMENT,13/05/2019,000006326306114,97.18,RADIODETECTION LTD
OXFORDSHIRE CC,ENVIRONMENT AND ECONOMY,THE RIDGEWAY,CATERING PROVISIONS,13/05/2019,000006326306084,2.00,SAINSBURYS 0739
OXFORDSHIRE CC,SOCIAL AND COMMUNITY SERVICES,"	PUBLIC HEALTH GENERA",PURCHASE OF IT EQUIPMENT,13/05/2019,000006326306366,66.00,PAYPAL  RESOURCEMAN
OXFORDSHIRE CC,CORPORATE CORE,"	CORPORATE FINANCE",PAYMENTS TO TRANSPORT OPERATORS,13/05/2019,000006326306212,200.40,WWW.GWR.COM
OXFORDSHIRE CC,"CHILDRENS, YOUNG PEOPLE AND FAMILIES",ICT INFORMATION,IT SOFTWARE,13/05/2019,000006326305930,101.67,FSPRG.UK
OXFORDSHIRE CC,ENVIRONMENT AND ECONOMY,"	COUNTY PRINT FINSHRS",MATERIALS,13/05/2019,000006326305942,3.70,HALFORDS 0988
OXFORDSHIRE CC,ENVIRONMENT AND ECONOMY,"	COUNTY PRINT FINSHRS",CATERING,13/05/2019,000006326305944,54.04,BOOKER LIMITED OXFORD
OXFORDSHIRE CC,"CHILDRENS, YOUNG PEOPLE AND FAMILIES",CSS - ABINGDON,MATERIALS,13/05/2019,000006326305938,90.57,BAKER ROSS
OXFORDSHIRE CC,SOCIAL AND COMMUNITY SERVICES,CSS - ABINGDON,CATERING PROVISIONS,13/05/2019,000006326305864,20.75,PPOINT_ ER GOFF
OXFORDSHIRE CC,SOCIAL AND COMMUNITY SERVICES,CSS - ABINGDON,CATERING PROVISIONS,13/05/2019,000006326305866,9.51,WAITROSE 211
OXFORDSHIRE CC,SOCIAL AND COMMUNITY SERVICES,CSS - BANBURY,MATERIALS,13/05/2019,000006326306298,46.00,TIMPSON GROUP PLC
OXFORDSHIRE CC,SOCIAL AND COMMUNITY SERVICES,CSS BICESTER,CATERING PROVISIONS,13/05/2019,000006326305788,15.00,TESCO STORES 4480
OXFORDSHIRE CC,SOCIAL AND COMMUNITY SERVICES,CSS BICESTER,MATERIALS,13/05/2019,000006326305952,21.00,POUNDLAND LTD 1505
OXFORDSHIRE CC,SOCIAL AND COMMUNITY SERVICES,CSS - DIDCOT,CATERING PROVISIONS,13/05/2019,000006326305854,6.00,TESCO STORE 2413
OXFORDSHIRE CC,SOCIAL AND COMMUNITY SERVICES,CSS - DIDCOT,CATERING PROVISIONS,13/05/2019,000006326305860,29.30,CHURCHILLS
OXFORDSHIRE CC,SOCIAL AND COMMUNITY SERVICES,CSS - DIDCOT,FIXTURES & FITTINGS,13/05/2019,000006326305862,11.99,TRUE MOBILITY
OXFORDSHIRE CC,SOCIAL AND COMMUNITY SERVICES,CSS WALLINGFORD,CATERING PROVISIONS,13/05/2019,000006326306002,28.18,CROWMARSH VILLAGE STOR
OXFORDSHIRE CC,"CHILDRENS, YOUNG PEOPLE AND FAMILIES",CSS WALLINGFORD,CATERING PROVISIONS,13/05/2019,000006326305868,6.90,WAITROSE 675
OXFORDSHIRE CC,SOCIAL AND COMMUNITY SERVICES,CSS WITNEY,MATERIALS,13/05/2019,000006326306264,16.31,AMZNMKTPLACE AMAZON.CO
OXFORDSHIRE CC,SOCIAL AND COMMUNITY SERVICES,CSS WANTAGE,CATERING PROVISIONS,13/05/2019,000006326306266,131.56,ASDA GROCERIES ONLINE
OXFORDSHIRE CC,SOCIAL AND COMMUNITY SERVICES,CSS WANTAGE,CATERING PROVISIONS,13/05/2019,000006326306268,-17.20,ASDA GROCERIES ONLINE
OXFORDSHIRE CC,"CHILDRENS, YOUNG PEOPLE AND FAMILIES","	RESIDENTIAL STRATEGY",CATERING PROVISIONS,13/05/2019,000006326305838,.85,SAINSBURYS SACAT0884
OXFORDSHIRE CC,"CHILDRENS, YOUNG PEOPLE AND FAMILIES","	RESIDENTIAL STRATEGY",CLOTHING AND UNIFORMS,13/05/2019,000006326305840,3.00,PRIMARK
OXFORDSHIRE CC,"CHILDRENS, YOUNG PEOPLE AND FAMILIES",EYNSHAM,MATERIALS,13/05/2019,000006326305954,.59,CARD FACTORY
OXFORDSHIRE CC,"CHILDRENS, YOUNG PEOPLE AND FAMILIES",EYNSHAM,DAY ACTIVITIES,13/05/2019,000006326305956,5.30,HACKETT S FOOD AND DRI
OXFORDSHIRE CC,"CHILDRENS, YOUNG PEOPLE AND FAMILIES",EYNSHAM,CATERING PROVISIONS,13/05/2019,000006326306416,16.85,SAINSBURYS SACAT 0632
OXFORDSHIRE CC,"CHILDRENS, YOUNG PEOPLE AND FAMILIES",EYNSHAM,CATERING PROVISIONS,13/05/2019,000006326306418,1.50,CO-OPERATIVE FOOD
OXFORDSHIRE CC,"CHILDRENS, YOUNG PEOPLE AND FAMILIES",EYNSHAM,CATERING,13/05/2019,000006326306452,129.49,TESCO STORES 2008
OXFORDSHIRE CC,"CHILDRENS, YOUNG PEOPLE AND FAMILIES",EYNSHAM,CATERING,13/05/2019,000006326306454,-4.73,TESCO STORES 2008
OXFORDSHIRE CC,"CHILDRENS, YOUNG PEOPLE AND FAMILIES",WITNEY,CATERING PROVISIONS,13/05/2019,000006326306066,50.92,SAINSBURYS SACAT 0632
OXFORDSHIRE CC,"CHILDRENS, YOUNG PEOPLE AND FAMILIES",WITNEY,CATERING PROVISIONS,13/05/2019,000006326306068,2.15,SAINSBURYS 0632
OXFORDSHIRE CC,"CHILDRENS, YOUNG PEOPLE AND FAMILIES",WITNEY,CATERING PROVISIONS,13/05/2019,000006326306392,6.00,MARKS&SPENCER PLC SACA
OXFORDSHIRE CC,"CHILDRENS, YOUNG PEOPLE AND FAMILIES",WITNEY,VEHICLES REPAIRS AND MAINTENANCE,13/05/2019,000006326306394,6.72,SERVICECARE SUPPRT SVS
OXFORDSHIRE CC,"CHILDRENS, YOUNG PEOPLE AND FAMILIES",WITNEY,CATERING,13/05/2019,000006326305982,35.00,FRANKIE & BENNYS 5260
OXFORDSHIRE CC,"CHILDRENS, YOUNG PEOPLE AND FAMILIES",DIDCOT MOVE-ON HOME,CATERING PROVISIONS,13/05/2019,000006326306054,29.00,SAINSBURYS SACAT 2067
OXFORDSHIRE CC,"CHILDRENS, YOUNG PEOPLE AND FAMILIES",DIDCOT MOVE-ON HOME,MATERIALS,13/05/2019,000006326306056,16.00,ARGOS LTD
OXFORDSHIRE CC,"CHILDRENS, YOUNG PEOPLE AND FAMILIES",DIDCOT MOVE-ON HOME,CATERING PROVISIONS,13/05/2019,000006326306058,10.80,SAINSBURYS 2067
OXFORDSHIRE CC,"CHILDRENS, YOUNG PEOPLE AND FAMILIES",DIDCOT MOVE-ON HOME,CATERING PROVISIONS,13/05/2019,000006326306060,4.75,SAINSBURYS SACAT 2067
OXFORDSHIRE CC,"CHILDRENS, YOUNG PEOPLE AND FAMILIES",DIDCOT MOVE-ON HOME,CATERING PROVISIONS,13/05/2019,000006326306062,46.00,SAINSBURYS 2067
OXFORDSHIRE CC,"CHILDRENS, YOUNG PEOPLE AND FAMILIES",DIDCOT MOVE-ON HOME,CATERING PROVISIONS,13/05/2019,000006326306358,45.25,SAINSBURYS 2067
OXFORDSHIRE CC,SOCIAL AND COMMUNITY SERVICES,DIDCOT MOVE-ON HOME,CATERING,13/05/2019,000006326305966,6.75,COSTA @ TESCO
OXFORDSHIRE CC,SOCIAL AND COMMUNITY SERVICES,DIDCOT MOVE-ON HOME,CATERING PROVISIONS,13/05/2019,000006326305962,25.27,TESCO STORE 2413
OXFORDSHIRE CC,SOCIAL AND COMMUNITY SERVICES,DIDCOT MOVE-ON HOME,CATERING PROVISIONS,13/05/2019,000006326305964,30.25,SAINSBURYS SACAT 2067
OXFORDSHIRE CC,"CHILDRENS, YOUNG PEOPLE AND FAMILIES","	MALTFIELD HOUSE",TELEPHONE - EQUIPMENT,13/05/2019,000006326306150,10.00,GIFFGAFF
OXFORDSHIRE CC,"CHILDRENS, YOUNG PEOPLE AND FAMILIES","	MALTFIELD HOUSE",TELEPHONE - EQUIPMENT,13/05/2019,000006326306202,10.00,GIFFGAFF
OXFORDSHIRE CC,"CHILDRENS, YOUNG PEOPLE AND FAMILIES",THAME E&A HOME,DRUGS AND MEDICAL SUPPLIES,13/05/2019,000006326305812,16.13,SUPERDRUG STORES PLC
OXFORDSHIRE CC,"CHILDRENS, YOUNG PEOPLE AND FAMILIES",THAME E&A HOME,CATERING PROVISIONS,13/05/2019,000006326305814,1.98,CO-OPERATIVE FOOD
OXFORDSHIRE CC,"CHILDRENS, YOUNG PEOPLE AND FAMILIES",THAME E&A HOME,CATERING PROVISIONS,13/05/2019,000006326305816,42.99,MARKS&SPENCER PLC
OXFORDSHIRE CC,"CHILDRENS, YOUNG PEOPLE AND FAMILIES",THAME E&A HOME,CATERING,13/05/2019,000006326305818,57.94,PIZZA HUT 251
OXFORDSHIRE CC,"CHILDRENS, YOUNG PEOPLE AND FAMILIES",THAME E&A HOME,MATERIALS,13/05/2019,000006326305820,14.25,M & S SIMPLY FOOD
OXFORDSHIRE CC,"CHILDRENS, YOUNG PEOPLE AND FAMILIES",THAME E&A HOME,MATERIALS,13/05/2019,000006326305822,3.50,WH SMITH TRAVEL
OXFORDSHIRE CC,"CHILDRENS, YOUNG PEOPLE AND FAMILIES",THAME E&A HOME,VEHICLE FUEL,13/05/2019,000006326306030,9.26,BP FAMILY FARM CONNECT
OXFORDSHIRE CC,"CHILDRENS, YOUNG PEOPLE AND FAMILIES",THAME E&A HOME,CATERING,13/05/2019,000006326306032,1.98,MCDONALDS
OXFORDSHIRE CC,"CHILDRENS, YOUNG PEOPLE AND FAMILIES",THAME E&A HOME,CATERING,13/05/2019,000006326306034,37.08,OXY ORIENTAL
OXFORDSHIRE CC,"CHILDRENS, YOUNG PEOPLE AND FAMILIES",THAME E&A HOME,ENTERTAINMENT EXPENSES,13/05/2019,000006326306036,20.10,BRITISH MOTOR INDU
OXFORDSHIRE CC,"CHILDRENS, YOUNG PEOPLE AND FAMILIES",THAME E&A HOME,ENTERTAINMENT EXPENSES,13/05/2019,000006326306038,9.00,BRITISH MTR IND HR
OXFORDSHIRE CC,"CHILDRENS, YOUNG PEOPLE AND FAMILIES",THAME E&A HOME,CATERING PROVISIONS,13/05/2019,000006326306040,1.25,TESCO STORES 4338
OXFORDSHIRE CC,"CHILDRENS, YOUNG PEOPLE AND FAMILIES",THAME E&A HOME,DRUGS AND MEDICAL SUPPLIES,13/05/2019,000006326306042,7.00,SUPERDRUG STORES PLC
OXFORDSHIRE CC,"CHILDRENS, YOUNG PEOPLE AND FAMILIES",THAME E&A HOME,CATERING,13/05/2019,000006326306178,17.50,KASPAS DIDCOT
OXFORDSHIRE CC,"CHILDRENS, YOUNG PEOPLE AND FAMILIES",THAME E&A HOME,CATERING PROVISIONS,13/05/2019,000006326306180,179.00,TESCO STORES 2008
OXFORDSHIRE CC,"CHILDRENS, YOUNG PEOPLE AND FAMILIES",THAME E&A HOME,CATERING PROVISIONS,13/05/2019,000006326306182,7.50,TESCO STORES 2008
OXFORDSHIRE CC,"CHILDRENS, YOUNG PEOPLE AND FAMILIES",THAME E&A HOME,CATERING PROVISIONS,13/05/2019,000006326306184,44.00,WAITROSE 211
OXFORDSHIRE CC,"CHILDRENS, YOUNG PEOPLE AND FAMILIES",THAME E&A HOME,OTHER TRANSPORT ARRANGEMENTS,13/05/2019,000006326306186,4.30,PARKING CHARGE
OXFORDSHIRE CC,"CHILDRENS, YOUNG PEOPLE AND FAMILIES",THAME E&A HOME,MATERIALS,13/05/2019,000006326306046,7.99,AMAZON PRIME MN1YV41Y4
OXFORDSHIRE CC,"CHILDRENS, YOUNG PEOPLE AND FAMILIES",THAME E&A HOME,MATERIALS,13/05/2019,000006326306048,7.95,AMAZON.CO.UK MN8MZ91S4
OXFORDSHIRE CC,"CHILDRENS, YOUNG PEOPLE AND FAMILIES",THAME E&A HOME,CATERING,13/05/2019,000006326305958,81.52,TGI FRIDAY'S
OXFORDSHIRE CC,"CHILDRENS, YOUNG PEOPLE AND FAMILIES","	40 THE MOORS",CATERING,13/05/2019,000006326305842,16.25,KFC - CORBY
OXFORDSHIRE CC,"CHILDRENS, YOUNG PEOPLE AND FAMILIES","	40 THE MOORS",CATERING,13/05/2019,000006326305844,5.16,KFC - CORBY
OXFORDSHIRE CC,"CHILDRENS, YOUNG PEOPLE AND FAMILIES","	40 THE MOORS",CATERING,13/05/2019,000006326305846,3.08,KFC - CORBY
OXFORDSHIRE CC,"CHILDRENS, YOUNG PEOPLE AND FAMILIES","	40 THE MOORS",CATERING,13/05/2019,000006326305848,14.16,MCDONALDS
OXFORDSHIRE CC,"CHILDRENS, YOUNG PEOPLE AND FAMILIES","	40 THE MOORS",CATERING PROVISIONS,13/05/2019,000006326305850,35.45,SAINSBURYS 0631
OXFORDSHIRE CC,"CHILDRENS, YOUNG PEOPLE AND FAMILIES","	40 THE MOORS",PAYMENTS TO VOLUNTARY BODIES,13/05/2019,000006326305852,27.00,ADRENALINE ALLEY
OXFORDSHIRE CC,"CHILDRENS, YOUNG PEOPLE AND FAMILIES","	40 THE MOORS",OTHER EXPENSES,13/05/2019,000006326306386,27.00,IZ  SKY CARS
OXFORDSHIRE CC,"CHILDRENS, YOUNG PEOPLE AND FAMILIES","	40 THE MOORS",OTHER EXPENSES,13/05/2019,000006326306388,13.50,JS SPORTS BAR
OXFORDSHIRE CC,"CHILDRENS, YOUNG PEOPLE AND FAMILIES","	40 THE MOORS",OTHER EXPENSES,13/05/2019,000006326306390,25.40,SUMUP   TAXI 001
OXFORDSHIRE CC,"CHILDRENS, YOUNG PEOPLE AND FAMILIES","	40 THE MOORS",CATERING PROVISIONS,13/05/2019,000006326306282,28.90,SAINSBURYS 0631
OXFORDSHIRE CC,"CHILDRENS, YOUNG PEOPLE AND FAMILIES","	40 THE MOORS",CATERING,13/05/2019,000006326306294,29.80,OFF THE HOOK KIDLINGTO
OXFORDSHIRE CC,"CHILDRENS, YOUNG PEOPLE AND FAMILIES","	40 THE MOORS",OTHER TRANSPORT ARRANGEMENTS,13/05/2019,000006326306296,45.00,PP 001TAXIS
OXFORDSHIRE CC,"CHILDRENS, YOUNG PEOPLE AND FAMILIES",HOUSE PROJECT,CATERING PROVISIONS,13/05/2019,000006326306400,5.20,ASDA STORES 4920
OXFORDSHIRE CC,SOCIAL AND COMMUNITY SERVICES,ICS ADMIN,CATERING PROVISIONS,13/05/2019,000006326306116,26.00,WAITROSE 479
OXFORDSHIRE CC,"CHILDRENS, YOUNG PEOPLE AND FAMILIES",CNTL EARLY HELP-RHIL,CATERING PROVISIONS,13/05/2019,000006326306172,4.80,TESCO STORE 2990
OXFORDSHIRE CC,"CHILDRENS, YOUNG PEOPLE AND FAMILIES",CNTL ERLY HELP-BBLEY,CATERING PROVISIONS,13/05/2019,000006326306426,4.40,TESCO STORE 2990
OXFORDSHIRE CC,"CHILDRENS, YOUNG PEOPLE AND FAMILIES",CNTL EARLY HELP-BRTN,OTHER EXPENSES,13/05/2019,000006326306280,119.99,ARGOS RETAIL GROUP
OXFORDSHIRE CC,"CHILDRENS, YOUNG PEOPLE AND FAMILIES",C&F - TF CONTRIB,PAYMENTS TO TRANSPORT OPERATORS,13/05/2019,000006326306446,17.20,WWW.GWR.COM
OXFORDSHIRE CC,"CHILDRENS, YOUNG PEOPLE AND FAMILIES",C&F - TF CONTRIB,PAYMENTS TO TRANSPORT OPERATORS,13/05/2019,000006326306448,174.75,WWW.GWR.COM
OXFORDSHIRE CC,"CHILDRENS, YOUNG PEOPLE AND FAMILIES","	FAM SUPP CITY 1",PAYMENTS TO TRANSPORT OPERATORS,13/05/2019,000006326305994,133.60,TRAINLINE
OXFORDSHIRE CC,"CHILDRENS, YOUNG PEOPLE AND FAMILIES",FAMILY SUPPORT 2,MATERIALS,13/05/2019,000006326306420,22.92,WWW.ARGOS.CO.UK
OXFORDSHIRE CC,"CHILDRENS, YOUNG PEOPLE AND FAMILIES","	FAMILY SUPPORT CITY3",OTHER TRANSPORT ARRANGEMENTS,13/05/2019,000006326306278,24.37,TRAINLINE
OXFORDSHIRE CC,"CHILDRENS, YOUNG PEOPLE AND FAMILIES",NORTH FSS- BANBURY,HIRE OF ACCOMMODATION AND FACILITIES,13/05/2019,000006326306044,350.00,EXPEDIA 7433658057777
OXFORDSHIRE CC,"CHILDRENS, YOUNG PEOPLE AND FAMILIES","	FAMILY SUPPORT S'TH2",DAY ACTIVITIES,13/05/2019,000006326305810,63.00,WWW.ROVESFARM.CO.UK
OXFORDSHIRE CC,"CHILDRENS, YOUNG PEOPLE AND FAMILIES","	LOOKED AFTER NORTH",OTHER TRANSPORT ARRANGEMENTS,13/05/2019,000006326305950,4.00,OXPENS CAR PARK
OXFORDSHIRE CC,"CHILDRENS, YOUNG PEOPLE AND FAMILIES","	LOOKED AFTER SOUTH",REGISTRATION AND INSPECTION FEES,13/05/2019,000006326305996,14.00,GEN REGISTER OFFICE
OXFORDSHIRE CC,"CHILDRENS, YOUNG PEOPLE AND FAMILIES","	LOOKED AFTER SOUTH",CATERING PROVISIONS,13/05/2019,000006326305876,10.00,TESCO STORES 2038
OXFORDSHIRE CC,"CHILDRENS, YOUNG PEOPLE AND FAMILIES","	LOOKED AFTER CITY 2",OTHER TRANSPORT ARRANGEMENTS,13/05/2019,000006326306362,6.80,GWR OXFORD SST
OXFORDSHIRE CC,"CHILDRENS, YOUNG PEOPLE AND FAMILIES","	SM QUALITY ASSURANCE",HIRE OF ACCOMMODATION AND FACILITIES,13/05/2019,000006326305888,58.00,B.COM 845600-NY9T5 FID
OXFORDSHIRE CC,"CHILDRENS, YOUNG PEOPLE AND FAMILIES","	SM QUALITY ASSURANCE",PAYMENTS TO TRANSPORT OPERATORS,13/05/2019,000006326305890,83.50,TRAINLINE
OXFORDSHIRE CC,"CHILDRENS, YOUNG PEOPLE AND FAMILIES","	SM QUALITY ASSURANCE",PAYMENTS TO TRANSPORT OPERATORS,13/05/2019,000006326305874,21.05,TRAINLINE
OXFORDSHIRE CC,"CHILDRENS, YOUNG PEOPLE AND FAMILIES","	LEAVING CARE NORTH",CATERING PROVISIONS,13/05/2019,000006326306222,15.00,SAINSBURYS SACAT 0642
OXFORDSHIRE CC,"CHILDRENS, YOUNG PEOPLE AND FAMILIES","	LEAVING CARE NORTH",MATERIALS,13/05/2019,000006326306224,82.94,WWW.ARGOS.CO.UK
OXFORDSHIRE CC,"CHILDRENS, YOUNG PEOPLE AND FAMILIES","	LEAVING CARE NORTH",CATERING PROVISIONS,13/05/2019,000006326306226,34.65,ASDA GROCERIES ONLINE
OXFORDSHIRE CC,"CHILDRENS, YOUNG PEOPLE AND FAMILIES","	LEAVING CARE NORTH",OTHER TRANSPORT ARRANGEMENTS,13/05/2019,000006326306228,67.96,WWW.STORAGEBASE.COM
OXFORDSHIRE CC,"CHILDRENS, YOUNG PEOPLE AND FAMILIES","	LEAVING CARE CITY 2",OTHER EXPENSES,13/05/2019,000006326306148,154.50,TVLICENSING.CO.UK
OXFORDSHIRE CC,SOCIAL AND COMMUNITY SERVICES,VIVA,MATERIALS,13/05/2019,000006326306444,-114.48,AMZ AMAZON.CO.UK
OXFORDSHIRE CC,ENTERPRISEVC,OPERATIONAL COSTS,CATERING PROVISIONS,13/05/2019,000006326305998,11.05,SAINSBURYS 0730
OXFORDSHIRE CC,ENTERPRISEVC,OPERATIONAL COSTS,CATERING,13/05/2019,000006326306000,9.72,ART CAFE
OXFORDSHIRE CC,CORPORATE CORE,"	COMMUNICATIONS",PAYMENTS TO TRANSPORT OPERATORS,14/05/2019,000006333399158,13.00,WWW.GWR.COM
OXFORDSHIRE CC,"CHILDRENS, YOUNG PEOPLE AND FAMILIES",ADMINISTRATION,PAYMENTS TO TRANSPORT OPERATORS,14/05/2019,000006333398652,18.80,TRAINLINE
OXFORDSHIRE CC,"CHILDRENS, YOUNG PEOPLE AND FAMILIES",STEP INTO TRAINING,"SUPPLIES, STATIONERY AND MATERIALS",14/05/2019,000006333399028,92.48,AMZNMKTPLACE AMAZON.CO
OXFORDSHIRE CC,"CHILDRENS, YOUNG PEOPLE AND FAMILIES",VULNERABLE LEARNERS,"BOOKS, DVDS AND CDS",14/05/2019,000006333399030,114.63,WWW.PRESCHOOL.ORG.UK
OXFORDSHIRE CC,"CHILDRENS, YOUNG PEOPLE AND FAMILIES","	MUSIC UNALLOCABLE",OTHER TRANSPORT ARRANGEMENTS,14/05/2019,000006333399048,5.00,WESTGATE OXFORD CAR PA
OXFORDSHIRE CC,CORPORATE CORE,HEALTH & SAFETY,OTHER TRAINING COURSES AND QUALIFICATION,14/05/2019,000006333398914,"7,420.84",EEF LTD
OXFORDSHIRE CC,ENVIRONMENT AND ECONOMY,COUNTY LIBRARY,GENERAL MAINTENANCE,14/05/2019,000006333398738,57.66,WOLSELEY UK
OXFORDSHIRE CC,ENVIRONMENT AND ECONOMY,"	MOUNT HOUSE","BOOKS, DVDS AND CDS",14/05/2019,000006333398938,16.99,AMZN MKTP UK MN5LL3XW4
OXFORDSHIRE CC,ENVIRONMENT AND ECONOMY,HARD FM,GENERAL MAINTENANCE,14/05/2019,000006333398722,11.72,WOLSELEY UK
OXFORDSHIRE CC,ENVIRONMENT AND ECONOMY,HARD FM,HARDWARE AND CROCKERY,14/05/2019,000006333398724,119.99,SCREWFIX WITNEY
OXFORDSHIRE CC,ENVIRONMENT AND ECONOMY,HARD FM,EQUIPMENT,14/05/2019,000006333398726,106.50,WILTS ELECTRICAL
OXFORDSHIRE CC,ENVIRONMENT AND ECONOMY,HARD FM,HARDWARE AND CROCKERY,14/05/2019,000006333398728,26.00,WICKES OXFORD
OXFORDSHIRE CC,ENVIRONMENT AND ECONOMY,HARD FM,HARDWARE AND CROCKERY,14/05/2019,000006333398730,314.75,SCREWFIX OXFORD
OXFORDSHIRE CC,CORPORATE CORE,SCHOOLS FM,CATERING PROVISIONS,14/05/2019,000006333398776,26.00,TESCO STORE 2413
OXFORDSHIRE CC,SOCIAL AND COMMUNITY SERVICES,SCHOOLS FM,CAR LEASING - PRIVATE RENTALS,14/05/2019,000006333398806,93.47,BURNT TREE GROUP L
OXFORDSHIRE CC,SOCIAL AND COMMUNITY SERVICES,"	LEARNING & ACCESS",MATERIALS,14/05/2019,000006333398824,41.40,AMZNMKTPLACE AMAZON.CO
OXFORDSHIRE CC,ENVIRONMENT AND ECONOMY,"	TVERC",PAYMENTS TO TRANSPORT OPERATORS,14/05/2019,000006333399046,58.10,RAILEASY WEB SITE
OXFORDSHIRE CC,CORPORATE CORE,LIBRARY COLLECTIONS,"NEWSPAPERS, PERIODICALS AND PUBLICATIONS",14/05/2019,000006333398826,47.62,GUARDIAN NEWS & MEDIA
OXFORDSHIRE CC,CORPORATE CORE,LIBRARY COLLECTIONS,"NEWSPAPERS, PERIODICALS AND PUBLICATIONS",14/05/2019,000006333398828,47.62,GUARDIAN NEWS & MEDIA
OXFORDSHIRE CC,CORPORATE CORE,LIBRARY COLLECTIONS,"NEWSPAPERS, PERIODICALS AND PUBLICATIONS",14/05/2019,000006333398830,47.62,GUARDIAN NEWS & MEDIA
OXFORDSHIRE CC,CORPORATE CORE,LIBRARY COLLECTIONS,"NEWSPAPERS, PERIODICALS AND PUBLICATIONS",14/05/2019,000006333398832,47.62,GUARDIAN NEWS & MEDIA
OXFORDSHIRE CC,CORPORATE CORE,LIBRARY COLLECTIONS,"NEWSPAPERS, PERIODICALS AND PUBLICATIONS",14/05/2019,000006333398834,47.62,GUARDIAN NEWS & MEDIA
OXFORDSHIRE CC,CORPORATE CORE,LIBRARY COLLECTIONS,"NEWSPAPERS, PERIODICALS AND PUBLICATIONS",14/05/2019,000006333398836,47.62,GUARDIAN NEWS & MEDIA
OXFORDSHIRE CC,CORPORATE CORE,LIBRARY COLLECTIONS,"NEWSPAPERS, PERIODICALS AND PUBLICATIONS",14/05/2019,000006333398838,47.62,GUARDIAN NEWS & MEDIA
OXFORDSHIRE CC,CORPORATE CORE,LIBRARY COLLECTIONS,"NEWSPAPERS, PERIODICALS AND PUBLICATIONS",14/05/2019,000006333398840,47.62,GUARDIAN NEWS & MEDIA
OXFORDSHIRE CC,ENVIRONMENT AND ECONOMY,READER SERV ADULTS,HIRE OF ACCOMMODATION AND FACILITIES,14/05/2019,000006333399000,235.00,HOTEL IBIS
OXFORDSHIRE CC,ENVIRONMENT AND ECONOMY,READER SERV ADULTS,HIRE OF ACCOMMODATION AND FACILITIES,14/05/2019,000006333399002,180.00,HOTEL IBIS
OXFORDSHIRE CC,ENVIRONMENT AND ECONOMY,S38 INSPECT & OTHER,PAYMENTS TO TRANSPORT OPERATORS,14/05/2019,000006333399076,84.66,TRAINLINE.COM
OXFORDSHIRE CC,ENVIRONMENT AND ECONOMY,S38 INSPECT & OTHER,PAYMENTS TO TRANSPORT OPERATORS,14/05/2019,000006333399084,105.67,TRAINLINE.COM
OXFORDSHIRE CC,ENVIRONMENT AND ECONOMY,"	ROW MAINT",EQUIPMENT,14/05/2019,000006333398688,21.98,WWW.LIFESYSTEMS.CO.UK
OXFORDSHIRE CC,ENVIRONMENT AND ECONOMY,"	ROW MAINT",EQUIPMENT,14/05/2019,000006333398684,35.72,CHAIN REACTION CYCLES
OXFORDSHIRE CC,ENVIRONMENT AND ECONOMY,"	ROW MAINT",MATERIALS,14/05/2019,000006333398686,75.02,OXON FASTENING SYSTEMS
OXFORDSHIRE CC,ENVIRONMENT AND ECONOMY,"	NAT TRAILS GENERAL",VEHICLE FUEL,14/05/2019,000006333398694,152.40,ALLSTAR BUSINESS SOLUT
OXFORDSHIRE CC,ENVIRONMENT AND ECONOMY,THE RIDGEWAY,OTHER TRANSPORT ARRANGEMENTS,14/05/2019,000006333398842,4.30,PARKING CHARGE
OXFORDSHIRE CC,ENVIRONMENT AND ECONOMY,"	R & A STAFF & OPS",PAYMENTS TO TRANSPORT OPERATORS,14/05/2019,000006333398888,11.90,CROSS COUNTRY TRAINS
OXFORDSHIRE CC,ENVIRONMENT AND ECONOMY,"	R & A STAFF & OPS",PAYMENTS TO TRANSPORT OPERATORS,14/05/2019,000006333398890,15.50,CROSS COUNTRY TRAINS
OXFORDSHIRE CC,CORPORATE CORE,ICT OPERATIONS & MAI,PURCHASE OF IT EQUIPMENT,14/05/2019,000006333399058,19.87,GITHUB.COM
OXFORDSHIRE CC,ENVIRONMENT AND ECONOMY,"	COUNTY PRINT FINSHRS",CATERING PROVISIONS,14/05/2019,000006333398700,192.60,MILK&MORE
OXFORDSHIRE CC,SOCIAL AND COMMUNITY SERVICES,CSS - BANBURY,CATERING PROVISIONS,14/05/2019,000006333398620,48.04,SAINSBURYS TO YOU 0642
OXFORDSHIRE CC,SOCIAL AND COMMUNITY SERVICES,CSS - BANBURY,MATERIALS,14/05/2019,000006333398998,5.90,AMZN MKTP UK MN3427PI4
OXFORDSHIRE CC,SOCIAL AND COMMUNITY SERVICES,CSS BICESTER,CATERING PROVISIONS,14/05/2019,000006333398744,74.05,SAINSBURYS (2243)
OXFORDSHIRE CC,SOCIAL AND COMMUNITY SERVICES,CSS BICESTER,CATERING PROVISIONS,14/05/2019,000006333398622,1.50,TESCO STORES 4480
OXFORDSHIRE CC,SOCIAL AND COMMUNITY SERVICES,CSS - DIDCOT,FURNITURE,14/05/2019,000006333398674,289.00,VARIER FURNITURE AS GB
OXFORDSHIRE CC,SOCIAL AND COMMUNITY SERVICES,CSS - DIDCOT,CATERING PROVISIONS,14/05/2019,000006333398682,32.00,SAINSBURYS SACAT 2067
OXFORDSHIRE CC,SOCIAL AND COMMUNITY SERVICES,CSS - DIDCOT,MATERIALS,14/05/2019,000006333399004,185.00,ARGOS RETAIL GROUP
OXFORDSHIRE CC,SOCIAL AND COMMUNITY SERVICES,CSS - DIDCOT,MATERIALS,14/05/2019,000006333399006,213.00,ARGOS RETAIL GROUP
OXFORDSHIRE CC,SOCIAL AND COMMUNITY SERVICES,CSS - DIDCOT,MATERIALS,14/05/2019,000006333399008,-213.00,ARGOS RETAIL GROUP
OXFORDSHIRE CC,SOCIAL AND COMMUNITY SERVICES,CSS - OXFORD,MATERIALS,14/05/2019,000006333398756,10.75,ALDI STORES 775-142
OXFORDSHIRE CC,SOCIAL AND COMMUNITY SERVICES,CSS - OXFORD,VEHICLE EQUIPMENT AND EXPENSES - OTHER,14/05/2019,000006333398720,7.99,AMAZON PRIME MN4IS7GR4
OXFORDSHIRE CC,SOCIAL AND COMMUNITY SERVICES,CSS - OXFORD,MATERIALS,14/05/2019,000006333398886,7.99,AMAZON PRIME MN1YO3GE4
OXFORDSHIRE CC,SOCIAL AND COMMUNITY SERVICES,CSS WALLINGFORD,CATERING PROVISIONS,14/05/2019,000006333398782,1.59,WAITROSE 675
OXFORDSHIRE CC,"CHILDRENS, YOUNG PEOPLE AND FAMILIES",CSS WALLINGFORD,CATERING PROVISIONS,14/05/2019,000006333398696,14.20,SAVAGES (BLEWBURY) LTD
OXFORDSHIRE CC,"CHILDRENS, YOUNG PEOPLE AND FAMILIES",CSS WALLINGFORD,VEHICLE FUEL,14/05/2019,000006333398698,22.00,TESCO PFS 3968
OXFORDSHIRE CC,SOCIAL AND COMMUNITY SERVICES,CSS WITNEY,"BOOKS, DVDS AND CDS",14/05/2019,000006333398954,9.32,AMZN MKTP UK MN0DX0G14
OXFORDSHIRE CC,SOCIAL AND COMMUNITY SERVICES,CSS WITNEY,CATERING PROVISIONS,14/05/2019,000006333398956,133.95,TESCO STORES 2008
OXFORDSHIRE CC,"CHILDRENS, YOUNG PEOPLE AND FAMILIES",EYNSHAM,OTHER TRANSPORT ARRANGEMENTS,14/05/2019,000006333399042,9.00,OXPENS CAR PARK
OXFORDSHIRE CC,"CHILDRENS, YOUNG PEOPLE AND FAMILIES",EYNSHAM,CATERING,14/05/2019,000006333398670,81.97,TESCO STORES 2008
OXFORDSHIRE CC,"CHILDRENS, YOUNG PEOPLE AND FAMILIES",EYNSHAM,CATERING PROVISIONS,14/05/2019,000006333399104,4.69,CO-OPERATIVE FOOD
OXFORDSHIRE CC,"CHILDRENS, YOUNG PEOPLE AND FAMILIES",WITNEY,CATERING PROVISIONS,14/05/2019,000006333398708,9.90,SAINSBURYS SACAT 0632
OXFORDSHIRE CC,SOCIAL AND COMMUNITY SERVICES,DIDCOT MOVE-ON HOME,CATERING PROVISIONS,14/05/2019,000006333398758,21.44,TESCO STORE 2413
OXFORDSHIRE CC,SOCIAL AND COMMUNITY SERVICES,DIDCOT MOVE-ON HOME,CATERING,14/05/2019,000006333398760,6.50,COSTA @ TESCO
OXFORDSHIRE CC,SOCIAL AND COMMUNITY SERVICES,DIDCOT MOVE-ON HOME,CATERING,14/05/2019,000006333398762,11.40,COSTA COFFEE 43037200
OXFORDSHIRE CC,SOCIAL AND COMMUNITY SERVICES,DIDCOT MOVE-ON HOME,MATERIALS,14/05/2019,000006333398764,61.39,B & M RETAIL
OXFORDSHIRE CC,"CHILDRENS, YOUNG PEOPLE AND FAMILIES",DIDCOT MOVE-ON HOME,CATERING PROVISIONS,14/05/2019,000006333399020,18.05,SAINSBURYS SACAT 2067
OXFORDSHIRE CC,"CHILDRENS, YOUNG PEOPLE AND FAMILIES",DIDCOT MOVE-ON HOME,CATERING PROVISIONS,14/05/2019,000006333399022,1.10,SAINSBURYS SACAT 2067
OXFORDSHIRE CC,"CHILDRENS, YOUNG PEOPLE AND FAMILIES","	MALTFIELD HOUSE",OTHER TRANSPORT ARRANGEMENTS,14/05/2019,000006333398946,560.40,THE OXFORDSHIRE TAXI C
OXFORDSHIRE CC,"CHILDRENS, YOUNG PEOPLE AND FAMILIES","	MALTFIELD HOUSE",CATERING PROVISIONS,14/05/2019,000006333398948,5.39,CO-OP GROUP 350035
OXFORDSHIRE CC,"CHILDRENS, YOUNG PEOPLE AND FAMILIES",THAME E&A HOME,OTHER TRANSPORT ARRANGEMENTS,14/05/2019,000006333398690,9.00,WESTGATE OXFORD CAR PA
OXFORDSHIRE CC,"CHILDRENS, YOUNG PEOPLE AND FAMILIES",THAME E&A HOME,CATERING PROVISIONS,14/05/2019,000006333399094,14.74,OXFORD PEARTREE STARBU
OXFORDSHIRE CC,"CHILDRENS, YOUNG PEOPLE AND FAMILIES",THAME E&A HOME,CATERING,14/05/2019,000006333398704,8.30,PRINCES FISH AND CHIPS
OXFORDSHIRE CC,"CHILDRENS, YOUNG PEOPLE AND FAMILIES",THAME E&A HOME,CATERING PROVISIONS,14/05/2019,000006333398706,32.18,ASDA SUPERSTORE
OXFORDSHIRE CC,"CHILDRENS, YOUNG PEOPLE AND FAMILIES",THAME E&A HOME,MATERIALS,14/05/2019,000006333398624,17.55,LUSH UK
OXFORDSHIRE CC,"CHILDRENS, YOUNG PEOPLE AND FAMILIES",THAME E&A HOME,OTHER TRANSPORT ARRANGEMENTS,14/05/2019,000006333398626,3.00,WESTGATE OXFORD CAR PA
OXFORDSHIRE CC,"CHILDRENS, YOUNG PEOPLE AND FAMILIES",THAME E&A HOME,CATERING,14/05/2019,000006333398628,24.10,THE TROUT
OXFORDSHIRE CC,"CHILDRENS, YOUNG PEOPLE AND FAMILIES",THAME E&A HOME,CATERING,14/05/2019,000006333398630,6.75,THE TROUT
OXFORDSHIRE CC,"CHILDRENS, YOUNG PEOPLE AND FAMILIES",THAME E&A HOME,MATERIALS,14/05/2019,000006333398632,47.00,J D SPORTS FASHION
OXFORDSHIRE CC,"CHILDRENS, YOUNG PEOPLE AND FAMILIES",THAME E&A HOME,CATERING PROVISIONS,14/05/2019,000006333398922,115.40,SAINSBURYS TO YOU 0600
OXFORDSHIRE CC,"CHILDRENS, YOUNG PEOPLE AND FAMILIES",THAME E&A HOME,OTHER TRANSPORT ARRANGEMENTS,14/05/2019,000006333398924,7.30,GLOUCESTER STREET CAR
OXFORDSHIRE CC,"CHILDRENS, YOUNG PEOPLE AND FAMILIES","	40 THE MOORS",CATERING PROVISIONS,14/05/2019,000006333399160,66.98,TALMAGES
OXFORDSHIRE CC,"CHILDRENS, YOUNG PEOPLE AND FAMILIES","	40 THE MOORS",CATERING,14/05/2019,000006333399062,126.40,SAINSBURYS (2243)
OXFORDSHIRE CC,"CHILDRENS, YOUNG PEOPLE AND FAMILIES","	40 THE MOORS",TELEPHONE - EQUIPMENT,14/05/2019,000006333398996,35.00,WWW.THREE.CO.UK
OXFORDSHIRE CC,"CHILDRENS, YOUNG PEOPLE AND FAMILIES","	40 THE MOORS",MATERIALS,14/05/2019,000006333398992,7.99,AMAZON PRIME MN9MW6GP4
OXFORDSHIRE CC,"CHILDRENS, YOUNG PEOPLE AND FAMILIES","	40 THE MOORS",DRUGS AND MEDICAL SUPPLIES,14/05/2019,000006333398994,9.82,SUPERDRUG STORES PLC
OXFORDSHIRE CC,"CHILDRENS, YOUNG PEOPLE AND FAMILIES","	FOSTER CARE RECRUIT",MATERIALS,14/05/2019,000006333398902,42.89,AMZNMKTPLACE
OXFORDSHIRE CC,"CHILDRENS, YOUNG PEOPLE AND FAMILIES",SPECIAL GUARDIANSHIP,PAYMENTS TO TRANSPORT OPERATORS,14/05/2019,000006333399034,74.79,TRAINLINE
OXFORDSHIRE CC,"CHILDRENS, YOUNG PEOPLE AND FAMILIES",KINGFISHER,OTHER SERVICES,14/05/2019,000006333398634,36.33,ACORN HOUSE VETERINARY
OXFORDSHIRE CC,"CHILDRENS, YOUNG PEOPLE AND FAMILIES","	FPT CITY",PAYMENTS TO TRANSPORT OPERATORS,14/05/2019,000006333398844,25.20,WWW.GWR.COM
OXFORDSHIRE CC,"CHILDRENS, YOUNG PEOPLE AND FAMILIES","	FPT CITY",PAYMENTS TO TRANSPORT OPERATORS,14/05/2019,000006333398846,14.10,WWW.SOUTHWESTTRAINS.CO
OXFORDSHIRE CC,SOCIAL AND COMMUNITY SERVICES,"	MTFC",CATERING PROVISIONS,14/05/2019,000006333398934,2.30,SAINSBURYS 2244
OXFORDSHIRE CC,SOCIAL AND COMMUNITY SERVICES,FAM SUPP CITY 1,HIRE OF ACCOMMODATION AND FACILITIES,14/05/2019,000006333399096,72.00,HOLIDAY INN EXPRSS
OXFORDSHIRE CC,"CHILDRENS, YOUNG PEOPLE AND FAMILIES","	FAM SUPP CITY 1",CATERING PROVISIONS,14/05/2019,000006333398990,53.13,MILK&MORE
OXFORDSHIRE CC,"CHILDRENS, YOUNG PEOPLE AND FAMILIES",NORTH FSS- BANBURY,REGISTRATION AND INSPECTION FEES,14/05/2019,000006333398814,2.26,PAYPAL  ROYAL MAIL
OXFORDSHIRE CC,"CHILDRENS, YOUNG PEOPLE AND FAMILIES",NTH FAM SUPRT-BCSTR,PAYMENTS TO TRANSPORT OPERATORS,14/05/2019,000006333399154,175.40,WWW.GWR.COM
OXFORDSHIRE CC,"CHILDRENS, YOUNG PEOPLE AND FAMILIES","	LOOKED AFTER CITY 1",CLOTHING AND UNIFORMS,14/05/2019,000006333398710,17.00,MATALAN
OXFORDSHIRE CC,"CHILDRENS, YOUNG PEOPLE AND FAMILIES","	LOOKED AFTER SOUTH",CATERING PROVISIONS,14/05/2019,000006333398702,23.95,TESCO STORES 2008
OXFORDSHIRE CC,"CHILDRENS, YOUNG PEOPLE AND FAMILIES","	LOOKED AFTER SOUTH",CATERING,14/05/2019,000006333399110,6.37,MCDONALDS
OXFORDSHIRE CC,SOCIAL AND COMMUNITY SERVICES,LOOKED AFTER SOUTH,POSTAGE AND DELIVERY,14/05/2019,000006333398646,6.60,POST OFFICE COUNTER
OXFORDSHIRE CC,SOCIAL AND COMMUNITY SERVICES,LOOKED AFTER SOUTH,POSTAGE AND DELIVERY,14/05/2019,000006333398648,1.90,POST OFFICE COUNTER
OXFORDSHIRE CC,"CHILDRENS, YOUNG PEOPLE AND FAMILIES","	LOOKED AFTER CITY 2",CATERING,14/05/2019,000006333398928,6.50,GELATO
OXFORDSHIRE CC,"CHILDRENS, YOUNG PEOPLE AND FAMILIES","	LOOKED AFTER CITY 2",HIRE OF ACCOMMODATION AND FACILITIES,14/05/2019,000006333398930,184.00,HOLIDAY INN EXPRSS
OXFORDSHIRE CC,"CHILDRENS, YOUNG PEOPLE AND FAMILIES","	LEAVING CARE NORTH",CATERING PROVISIONS,14/05/2019,000006333399106,24.99,TESCO STORES 4480
OXFORDSHIRE CC,"CHILDRENS, YOUNG PEOPLE AND FAMILIES","	LEAVING CARE NORTH",CATERING PROVISIONS,14/05/2019,000006333399108,6.90,TESCO STORES 4480
OXFORDSHIRE CC,"CHILDRENS, YOUNG PEOPLE AND FAMILIES","	LEAVING CARE SOUTH",CATERING,14/05/2019,000006333399056,9.77,MCDONALDS
OXFORDSHIRE CC,SOCIAL AND COMMUNITY SERVICES,SERVICE IMPROVEMENT,CATERING PROVISIONS,14/05/2019,000006333398766,7.39,TESCO STORE 2413
OXFORDSHIRE CC,CORPORATE CORE,"	COMMUNICATIONS",PHOTOCOPYING,15/05/2019,000006338657774,29.00,STK SHUTTERSTOCK
OXFORDSHIRE CC,CORPORATE CORE,"	COMMUNICATIONS","PUBLICITY, PROMOTIONS AND ADVERTISEMENT",15/05/2019,000006338657782,500.00,FACEBK  5SRLJLW9Z2
OXFORDSHIRE CC,"CHILDRENS, YOUNG PEOPLE AND FAMILIES","	NCS",MATERIALS,15/05/2019,000006338656784,23.36,MAILCHIMP    MONTHLY
OXFORDSHIRE CC,"CHILDRENS, YOUNG PEOPLE AND FAMILIES",C&I BASE CHERWELL,"BOOKS, DVDS AND CDS",15/05/2019,000006338657406,295.80,AMZN MKTP UK MN7XE8XF4
OXFORDSHIRE CC,"CHILDRENS, YOUNG PEOPLE AND FAMILIES","	HEARING IMPAIRMENT",POSTAGE AND DELIVERY,15/05/2019,000006338657146,1.90,POST OFFICE COUNTER
OXFORDSHIRE CC,"CHILDRENS, YOUNG PEOPLE AND FAMILIES",CHILD PROTECTION,CATERING,15/05/2019,000006338657460,112.20,DEVOUR VERSATILE CATER
OXFORDSHIRE CC,"CHILDRENS, YOUNG PEOPLE AND FAMILIES",CHILD PROTECTION,CATERING,15/05/2019,000006338657464,153.00,DEVOUR VERSATILE CATER
OXFORDSHIRE CC,ENVIRONMENT AND ECONOMY,"	COUNTY HALL",MATERIALS,15/05/2019,000006338657194,15.38,AMZNMKTPLACE
OXFORDSHIRE CC,ENVIRONMENT AND ECONOMY,COUNTY LIBRARY,GENERAL MAINTENANCE,15/05/2019,000006338656888,57.16,WOLSELEY UK
OXFORDSHIRE CC,ENVIRONMENT AND ECONOMY,COUNTY LIBRARY,GENERAL MAINTENANCE,15/05/2019,000006338656892,28.16,WOLSELEY UK
OXFORDSHIRE CC,ENVIRONMENT AND ECONOMY,COUNTY LIBRARY,HARDWARE AND CROCKERY,15/05/2019,000006338656900,89.99,SCREWFIX OXFORD
OXFORDSHIRE CC,ENVIRONMENT AND ECONOMY,HARD FM,EQUIPMENT,15/05/2019,000006338656854,64.10,NEWEY & EYRE
OXFORDSHIRE CC,ENVIRONMENT AND ECONOMY,HARD FM,HARDWARE AND CROCKERY,15/05/2019,000006338656858,93.80,BUILDBASE - OXFORD
OXFORDSHIRE CC,ENVIRONMENT AND ECONOMY,HARD FM,EQUIPMENT,15/05/2019,000006338656864,244.56,BSS OXFORD
OXFORDSHIRE CC,ENVIRONMENT AND ECONOMY,HARD FM,HARDWARE AND CROCKERY,15/05/2019,000006338656870,85.43,CITY PLUMBING
OXFORDSHIRE CC,ENVIRONMENT AND ECONOMY,HARD FM,MATERIALS,15/05/2019,000006338656874,12.88,TOOLSTATION LTD
OXFORDSHIRE CC,ENVIRONMENT AND ECONOMY,HARD FM,EQUIPMENT,15/05/2019,000006338656834,15.46,W F SENATE
OXFORDSHIRE CC,ENVIRONMENT AND ECONOMY,HARD FM,HARDWARE AND CROCKERY,15/05/2019,000006338656840,15.49,SCREWFIX ABINGDON
OXFORDSHIRE CC,ENVIRONMENT AND ECONOMY,HARD FM,HARDWARE AND CROCKERY,15/05/2019,000006338656842,24.99,SCREWFIX ABINGDON
OXFORDSHIRE CC,ENVIRONMENT AND ECONOMY,HARD FM,HARDWARE AND CROCKERY,15/05/2019,000006338656850,13.99,SCREWFIX BICESTER
OXFORDSHIRE CC,SOCIAL AND COMMUNITY SERVICES,SCHOOLS FM,CATERING PROVISIONS,15/05/2019,000006338657068,10.15,SAINSBURYS SACAT 0730
OXFORDSHIRE CC,SOCIAL AND COMMUNITY SERVICES,SCHOOLS FM,CATERING PROVISIONS,15/05/2019,000006338657072,6.96,CO-OPERATIVE FOOD
OXFORDSHIRE CC,CORPORATE CORE,OPERATIONS,EQUIPMENT,15/05/2019,000006338657166,27.72,AMAZON.CO.UK MN36K5VF4
OXFORDSHIRE CC,ENVIRONMENT AND ECONOMY,"	MUSEUM DEV OFFICER",OTHER TRANSPORT ARRANGEMENTS,15/05/2019,000006338657538,4.00,3C_ OXFORDSHIRE COUNTY
OXFORDSHIRE CC,ENVIRONMENT AND ECONOMY,"	MUSEUM DEV OFFICER",PAYMENTS TO TRANSPORT OPERATORS,15/05/2019,000006338657544,70.50,OXFORD PARKWAY SSTP
OXFORDSHIRE CC,ENVIRONMENT AND ECONOMY,"	WASTE MNGMNT GEN",EQUIPMENT,15/05/2019,000006338657168,130.80,WWW.THERMOMETER-POINT.
OXFORDSHIRE CC,ENVIRONMENT AND ECONOMY,"	WASTE MNGMNT GEN","PUBLICITY, PROMOTIONS AND ADVERTISEMENT",15/05/2019,000006338657170,184.66,WWW.LETSRECYCLE.COM
OXFORDSHIRE CC,ENVIRONMENT AND ECONOMY,"	E&I STAFF",PAYMENTS TO TRANSPORT OPERATORS,15/05/2019,000006338657476,32.10,WWW.GWR.COM
OXFORDSHIRE CC,ENVIRONMENT AND ECONOMY,"	E&I STAFF",ENTERTAINMENT EXPENSES,15/05/2019,000006338657474,313.65,OXFORD CASTLE UNLOCKED
OXFORDSHIRE CC,ENVIRONMENT AND ECONOMY,"	E&I STAFF",HIRE OF ACCOMMODATION AND FACILITIES,15/05/2019,000006338657054,890.00,OXFORD THAMES HOTEL
OXFORDSHIRE CC,ENTERPRISEVC,BUSINESS SYST STAFF,PAYMENT TO GOVERNMENT DEPARTMENTS,15/05/2019,000006338657064,15.00,PAYPAL  HOUSELORDSP
OXFORDSHIRE CC,SOCIAL AND COMMUNITY SERVICES,"	OXF. EMPLOYMENT SERV",MATERIALS,15/05/2019,000006338657156,106.98,CURRYS ONLINE
OXFORDSHIRE CC,SOCIAL AND COMMUNITY SERVICES,CSS - BANBURY,MATERIALS,15/05/2019,000006338657468,53.04,BALL COLEGRAVE GBP
OXFORDSHIRE CC,SOCIAL AND COMMUNITY SERVICES,CSS BICESTER,MATERIALS,15/05/2019,000006338656622,5.99,AMZNMKTPLACE
OXFORDSHIRE CC,SOCIAL AND COMMUNITY SERVICES,CSS BICESTER,"BOOKS, DVDS AND CDS",15/05/2019,000006338656628,2.99,AMZN MKTP UK MN3M75V44
OXFORDSHIRE CC,SOCIAL AND COMMUNITY SERVICES,CSS - DIDCOT,MATERIALS,15/05/2019,000006338656768,52.56,WWW.EARLYYEARSRESOURCE
OXFORDSHIRE CC,SOCIAL AND COMMUNITY SERVICES,CSS - DIDCOT,DOMESTIC AND CLEANING EQUIPMENT,15/05/2019,000006338656770,299.00,CURRYS ONLINE
OXFORDSHIRE CC,SOCIAL AND COMMUNITY SERVICES,CSS - OXFORD,CATERING PROVISIONS,15/05/2019,000006338656922,4.56,ALDI STORES 775-142
OXFORDSHIRE CC,SOCIAL AND COMMUNITY SERVICES,CSS - OXFORD,MATERIALS,15/05/2019,000006338656930,19.40,ALDI STORES 775-142
OXFORDSHIRE CC,SOCIAL AND COMMUNITY SERVICES,CSS WALLINGFORD,CATERING PROVISIONS,15/05/2019,000006338656986,3.98,WAITROSE 675
OXFORDSHIRE CC,SOCIAL AND COMMUNITY SERVICES,CSS WANTAGE,CATERING PROVISIONS,15/05/2019,000006338657392,16.00,SAINSBURYS SACAT 2244
OXFORDSHIRE CC,SOCIAL AND COMMUNITY SERVICES,CSS WANTAGE,MATERIALS,15/05/2019,000006338657396,10.00,SAINSBURYS SACAT 2244
OXFORDSHIRE CC,SOCIAL AND COMMUNITY SERVICES,CSS WANTAGE,CATERING PROVISIONS,15/05/2019,000006338657400,-1.68,ASDA GROCERIES ONLINE
OXFORDSHIRE CC,SOCIAL AND COMMUNITY SERVICES,CSS WANTAGE,DAY ACTIVITIES,15/05/2019,000006338656670,3.00,ASDA STORES 5123
OXFORDSHIRE CC,SOCIAL AND COMMUNITY SERVICES,FLEET OPERATIONS,PAYMENTS TO HEALTH AUTHORITIES,15/05/2019,000006338657756,622.80,WINDMILL SPECIAL NEEDS
OXFORDSHIRE CC,"CHILDRENS, YOUNG PEOPLE AND FAMILIES","	OSCB",MATERIALS,15/05/2019,000006338656766,7.99,AMAZON PRIME MN81Z5XE4
OXFORDSHIRE CC,"CHILDRENS, YOUNG PEOPLE AND FAMILIES","	RESIDENTIAL STRATEGY",MATERIALS,15/05/2019,000006338656780,6.73,BERINSFIELD SHOP
OXFORDSHIRE CC,"CHILDRENS, YOUNG PEOPLE AND FAMILIES",EYNSHAM,VEHICLE FUEL,15/05/2019,000006338657618,3.60,TESCO PFS 2488
OXFORDSHIRE CC,"CHILDRENS, YOUNG PEOPLE AND FAMILIES",EYNSHAM,MATERIALS,15/05/2019,000006338657654,9.99,AMZNMKTPLACE AMAZON.CO
OXFORDSHIRE CC,"CHILDRENS, YOUNG PEOPLE AND FAMILIES",EYNSHAM,"BOOKS, DVDS AND CDS",15/05/2019,000006338657660,8.99,AMZN MKTP UK MN5VC8XO4
OXFORDSHIRE CC,"CHILDRENS, YOUNG PEOPLE AND FAMILIES",WITNEY,PROFESSIONAL SUBSCRIPTIONS,15/05/2019,000006338657604,60.00,WEST OXFORDSHIRE D
OXFORDSHIRE CC,"CHILDRENS, YOUNG PEOPLE AND FAMILIES",WITNEY,CATERING PROVISIONS,15/05/2019,000006338656954,12.75,SAINSBURYS SACAT 0632
OXFORDSHIRE CC,SOCIAL AND COMMUNITY SERVICES,DIDCOT MOVE-ON HOME,CATERING PROVISIONS,15/05/2019,000006338656934,8.60,SAINSBURYS SACAT 2067
OXFORDSHIRE CC,SOCIAL AND COMMUNITY SERVICES,DIDCOT MOVE-ON HOME,CATERING,15/05/2019,000006338656938,9.15,COSTA COFFEE 43042160
OXFORDSHIRE CC,"CHILDRENS, YOUNG PEOPLE AND FAMILIES",THAME E&A HOME,CATERING PROVISIONS,15/05/2019,000006338656690,12.70,WAITROSE 206
OXFORDSHIRE CC,"CHILDRENS, YOUNG PEOPLE AND FAMILIES",THAME E&A HOME,VEHICLE FUEL,15/05/2019,000006338656696,2.99,CO-OPERATIVE FOOD
OXFORDSHIRE CC,"CHILDRENS, YOUNG PEOPLE AND FAMILIES",THAME E&A HOME,CATERING PROVISIONS,15/05/2019,000006338656632,28.55,SAINSBURYS 2096
OXFORDSHIRE CC,"CHILDRENS, YOUNG PEOPLE AND FAMILIES",THAME E&A HOME,"SUPPLIES, STATIONERY AND MATERIALS",15/05/2019,000006338656686,12.06,PAPERSTONE LIMITED
OXFORDSHIRE CC,"CHILDRENS, YOUNG PEOPLE AND FAMILIES",THAME E&A HOME,MATERIALS,15/05/2019,000006338656678,12.99,AMZNMKTPLACE AMAZON.CO
OXFORDSHIRE CC,"CHILDRENS, YOUNG PEOPLE AND FAMILIES",THAME E&A HOME,MATERIALS,15/05/2019,000006338656682,8.28,ROBERT DYAS HOLDNG LTD
OXFORDSHIRE CC,"CHILDRENS, YOUNG PEOPLE AND FAMILIES","	40 THE MOORS",CATERING PROVISIONS,15/05/2019,000006338657568,145.25,SAINSBURYS 0631
OXFORDSHIRE CC,"CHILDRENS, YOUNG PEOPLE AND FAMILIES","	40 THE MOORS",CATERING,15/05/2019,000006338657570,5.08,MCDONALDS
OXFORDSHIRE CC,"CHILDRENS, YOUNG PEOPLE AND FAMILIES","	40 THE MOORS",MATERIALS,15/05/2019,000006338657578,57.00,SPORTSDIRECT.COM
OXFORDSHIRE CC,"CHILDRENS, YOUNG PEOPLE AND FAMILIES","	40 THE MOORS",MATERIALS,15/05/2019,000006338657574,100.98,SPORTSDIRECT.COM
OXFORDSHIRE CC,"CHILDRENS, YOUNG PEOPLE AND FAMILIES","	FOSTER CARE RECRUIT",MATERIALS,15/05/2019,000006338657234,7.96,AMZNMKTPLACE
OXFORDSHIRE CC,"CHILDRENS, YOUNG PEOPLE AND FAMILIES","	ADOPTION",CATERING PROVISIONS,15/05/2019,000006338657312,4.80,SAINSBURYS 0632
OXFORDSHIRE CC,"CHILDRENS, YOUNG PEOPLE AND FAMILIES",DEPUTY DIRECTOR &MAN,CATERING PROVISIONS,15/05/2019,000006338657116,18.30,MARKS&SPENCER PLC
OXFORDSHIRE CC,"CHILDRENS, YOUNG PEOPLE AND FAMILIES",KINGFISHER,CATERING,15/05/2019,000006338657340,2.95,COSTA COFFEE
OXFORDSHIRE CC,"CHILDRENS, YOUNG PEOPLE AND FAMILIES",KINGFISHER,"SUPPLIES, STATIONERY AND MATERIALS",15/05/2019,000006338657344,68.71,EB  INTERRUPTED CHILDH
OXFORDSHIRE CC,"CHILDRENS, YOUNG PEOPLE AND FAMILIES",KINGFISHER,OTHER TRANSPORT ARRANGEMENTS,15/05/2019,000006338657348,4.00,OXPENS CAR PARK
OXFORDSHIRE CC,"CHILDRENS, YOUNG PEOPLE AND FAMILIES",KINGFISHER,VEHICLE FUEL,15/05/2019,000006338657498,44.09,LEICESTER FOREST
OXFORDSHIRE CC,"CHILDRENS, YOUNG PEOPLE AND FAMILIES",CNTL EARLY HELP-RHIL,MATERIALS,15/05/2019,000006338657466,172.94,WWW.ARGOS.CO.UK
OXFORDSHIRE CC,"CHILDRENS, YOUNG PEOPLE AND FAMILIES",CNTL EARLY HELP-RHIL,CATERING PROVISIONS,15/05/2019,000006338657678,3.00,SAINSBURYS SACAT 0600
OXFORDSHIRE CC,"CHILDRENS, YOUNG PEOPLE AND FAMILIES",CNTL EARLY HELP-RHIL,MATERIALS,15/05/2019,000006338657682,92.94,WWW.ARGOS.CO.UK
OXFORDSHIRE CC,"CHILDRENS, YOUNG PEOPLE AND FAMILIES",CNTL EARLY HELP-RHIL,MATERIALS,15/05/2019,000006338657684,157.96,WWW.ARGOS.CO.UK
OXFORDSHIRE CC,"CHILDRENS, YOUNG PEOPLE AND FAMILIES",CNTL ERLY HELP-BBLEY,CATERING PROVISIONS,15/05/2019,000006338657692,4.36,TESCO STORE 2990
OXFORDSHIRE CC,"CHILDRENS, YOUNG PEOPLE AND FAMILIES",C&F - TF CONTRIB,PAYMENTS TO TRANSPORT OPERATORS,15/05/2019,000006338657766,6.80,WWW.GWR.COM
OXFORDSHIRE CC,"CHILDRENS, YOUNG PEOPLE AND FAMILIES",C&F - TF CONTRIB,PAYMENTS TO TRANSPORT OPERATORS,15/05/2019,000006338657770,7.50,WWW.GWR.COM
OXFORDSHIRE CC,SOCIAL AND COMMUNITY SERVICES,"	MTFC",CATERING PROVISIONS,15/05/2019,000006338657310,5.19,TESCO STORE 2994
OXFORDSHIRE CC,ENTERPRISEVC,OTFC TEAM,CATERING,15/05/2019,000006338657010,3.50,IZ  TUMBLING BAY CAFE
OXFORDSHIRE CC,"CHILDRENS, YOUNG PEOPLE AND FAMILIES","	FAM SUPP SOUTH",PAYMENTS TO TRANSPORT OPERATORS,15/05/2019,000006338656978,136.34,TRAINLINE.COM
OXFORDSHIRE CC,"CHILDRENS, YOUNG PEOPLE AND FAMILIES","	FAM SUPP SOUTH",OTHER SERVICES,15/05/2019,000006338656982,11.00,OXFORDSHIRE CC MOTO1
OXFORDSHIRE CC,"CHILDRENS, YOUNG PEOPLE AND FAMILIES","	FAM SUPP CITY 1",DRUGS AND MEDICAL SUPPLIES,15/05/2019,000006338657672,10.99,LLOYDS AT SAINSBURYS
OXFORDSHIRE CC,"CHILDRENS, YOUNG PEOPLE AND FAMILIES","	FAMILY SUPPORT CITY3",CATERING,15/05/2019,000006338656734,6.00,CAFE LOCO TRADING
OXFORDSHIRE CC,"CHILDRENS, YOUNG PEOPLE AND FAMILIES","	FAMILY SUPPORT CITY3",OTHER TRANSPORT ARRANGEMENTS,15/05/2019,000006338656736,7.00,WESTGATE OXFORD CAR PA
OXFORDSHIRE CC,"CHILDRENS, YOUNG PEOPLE AND FAMILIES",NTH FAM SUPRT-BCSTR,PAYMENTS TO TRANSPORT OPERATORS,15/05/2019,000006338656958,95.90,WWW.GWR.COM
OXFORDSHIRE CC,"CHILDRENS, YOUNG PEOPLE AND FAMILIES","	LOOKED AFTER NORTH",CATERING,15/05/2019,000006338657622,4.81,MCDONALDS
OXFORDSHIRE CC,"CHILDRENS, YOUNG PEOPLE AND FAMILIES","	LOOKED AFTER CITY 2",MATERIALS,15/05/2019,000006338657214,4.76,CARD FACTORY
OXFORDSHIRE CC,"CHILDRENS, YOUNG PEOPLE AND FAMILIES","	LOOKED AFTER CITY 2",PAYMENTS TO TRANSPORT OPERATORS,15/05/2019,000006338657224,76.30,GWR DIDCOT PKWY TO
OXFORDSHIRE CC,"CHILDRENS, YOUNG PEOPLE AND FAMILIES","	LOOKED AFTER CITY 2",OTHER TRANSPORT ARRANGEMENTS,15/05/2019,000006338657230,6.40,APCOA CONNECT - FGW
OXFORDSHIRE CC,"CHILDRENS, YOUNG PEOPLE AND FAMILIES","	SM QUALITY ASSURANCE",PAYMENTS TO TRANSPORT OPERATORS,15/05/2019,000006338656818,-22.10,TRAINLINE
OXFORDSHIRE CC,"CHILDRENS, YOUNG PEOPLE AND FAMILIES","	SM QUALITY ASSURANCE",PAYMENTS TO TRANSPORT OPERATORS,15/05/2019,000006338656824,-20.90,TRAINLINE
OXFORDSHIRE CC,"CHILDRENS, YOUNG PEOPLE AND FAMILIES","	LEAVING CARE NORTH",OTHER TRANSPORT ARRANGEMENTS,15/05/2019,000006338656904,5.00,WESTGATE OXFORD CAR PA
OXFORDSHIRE CC,"CHILDRENS, YOUNG PEOPLE AND FAMILIES","	LEAVING CARE NORTH",CLOTHING AND UNIFORMS,15/05/2019,000006338657666,31.30,PRIMARK 693
OXFORDSHIRE CC,"CHILDRENS, YOUNG PEOPLE AND FAMILIES","	LEAVING CARE SOUTH",CLOTHING AND UNIFORMS,15/05/2019,000006338657586,50.00,PRIMARK 693
OXFORDSHIRE CC,"CHILDRENS, YOUNG PEOPLE AND FAMILIES","	LEAVING CARE SOUTH",CLOTHING AND UNIFORMS,15/05/2019,000006338657594,108.93,WWW.BIGDUDECLOTHING.CO
OXFORDSHIRE CC,"CHILDRENS, YOUNG PEOPLE AND FAMILIES","	LEAVING CARE SOUTH",PAYMENT TO GOVERNMENT DEPARTMENTS,15/05/2019,000006338656746,45.25,GEN REGISTER OFFICE
OXFORDSHIRE CC,"CHILDRENS, YOUNG PEOPLE AND FAMILIES","	LEAVING CARE CITY 2",FURNITURE,15/05/2019,000006338657208,418.00,DFS TRADING LIMITED
OXFORDSHIRE CC,SOCIAL AND COMMUNITY SERVICES,ADULT SERVICES IMPROVEMENT BOARD,CATERING PROVISIONS,15/05/2019,000006338656942,308.45,THE REGAL CINEMA
OXFORDSHIRE CC,CORPORATE CORE,OTHER,INSURANCE ADMIN HOLD,15/05/2019,000006338657630,224.00,ZURICH INSURANCE P
OXFORDSHIRE CC,ENTERPRISEVC,,CAR LEASING - PRIVATE RENTALS,16/05/2019,000006344501302,52.75,ENTERPRISE RENT-A-CAR
OXFORDSHIRE CC,"CHILDRENS, YOUNG PEOPLE AND FAMILIES",ATV ADOPTION OXFORD,OTHER EXPENSES,16/05/2019,000006344501170,153.00,DASHWOODAPARTMENT
OXFORDSHIRE CC,"CHILDRENS, YOUNG PEOPLE AND FAMILIES","	DIRECTOR'S OFFICE",PAYMENTS TO TRANSPORT OPERATORS,16/05/2019,000006344501332,-75.70,WWW.GWR.COM
OXFORDSHIRE CC,"CHILDRENS, YOUNG PEOPLE AND FAMILIES","	MUSIC UNALLOCABLE","BOOKS, DVDS AND CDS",16/05/2019,000006344500866,120.49,AMAZON.CO.UK MN3I25VU4
OXFORDSHIRE CC,ENTERPRISEVC,,CAR LEASING - PRIVATE RENTALS,16/05/2019,000006344501258,31.66,ENTERPRISE RENT-A-CAR
OXFORDSHIRE CC,ENTERPRISEVC,,CAR LEASING - PRIVATE RENTALS,16/05/2019,000006344501250,411.60,ENTERPRISE RENT-A-CAR
OXFORDSHIRE CC,ENTERPRISEVC,,CAR LEASING - PRIVATE RENTALS,16/05/2019,000006344501268,415.97,ENTERPRISE RENT-A-CAR
OXFORDSHIRE CC,ENTERPRISEVC,,CAR LEASING - PRIVATE RENTALS,16/05/2019,000006344501270,411.60,ENTERPRISE RENT-A-CAR
OXFORDSHIRE CC,ENTERPRISEVC,,CAR LEASING - PRIVATE RENTALS,16/05/2019,000006344501274,411.60,ENTERPRISE RENT-A-CAR
OXFORDSHIRE CC,ENTERPRISEVC,,CAR LEASING - PRIVATE RENTALS,16/05/2019,000006344501290,415.97,ENTERPRISE RENT-A-CAR
OXFORDSHIRE CC,ENVIRONMENT AND ECONOMY,"	COUNTY HALL",MATERIALS,16/05/2019,000006344500876,25.88,AMZNMKTPLACE
OXFORDSHIRE CC,ENVIRONMENT AND ECONOMY,"	COUNTY HALL",MATERIALS,16/05/2019,000006344500880,9.10,AMZNMKTPLACE
OXFORDSHIRE CC,ENVIRONMENT AND ECONOMY,COUNTY LIBRARY,GENERAL MAINTENANCE,16/05/2019,000006344500620,46.07,WOLSELEY UK
OXFORDSHIRE CC,CORPORATE CORE,,"SUPPLIES, STATIONERY AND MATERIALS",16/05/2019,000006344501238,7.20,LYRECO UK LTD
OXFORDSHIRE CC,CORPORATE CORE,,"SUPPLIES, STATIONERY AND MATERIALS",16/05/2019,000006344501242,150.91,LYRECO UK LTD
OXFORDSHIRE CC,ENVIRONMENT AND ECONOMY,HARD FM,EQUIPMENT,16/05/2019,000006344500584,84.00,W F SENATE
OXFORDSHIRE CC,ENVIRONMENT AND ECONOMY,HARD FM,EQUIPMENT,16/05/2019,000006344500588,34.91,WILTS ELECTRICAL
OXFORDSHIRE CC,ENVIRONMENT AND ECONOMY,HARD FM,GENERAL MAINTENANCE,16/05/2019,000006344500592,131.36,WOLSELEY UK
OXFORDSHIRE CC,ENVIRONMENT AND ECONOMY,HARD FM,EQUIPMENT,16/05/2019,000006344500596,213.36,GREENHAM TRADING LTD
OXFORDSHIRE CC,ENVIRONMENT AND ECONOMY,HARD FM,HARDWARE AND CROCKERY,16/05/2019,000006344500600,85.01,BUILDBASE - OXFORD
OXFORDSHIRE CC,ENVIRONMENT AND ECONOMY,HARD FM,HARDWARE AND CROCKERY,16/05/2019,000006344500604,119.99,SCREWFIX OXFORD
OXFORDSHIRE CC,ENVIRONMENT AND ECONOMY,HARD FM,HARDWARE AND CROCKERY,16/05/2019,000006344500614,15.00,BUILDBASE - OXFORD
OXFORDSHIRE CC,ENVIRONMENT AND ECONOMY,"	TVERC",IT SERVICES,16/05/2019,000006344501202,7.99,DROPBOX PVDK4RF7B998
OXFORDSHIRE CC,ENVIRONMENT AND ECONOMY,BERINSFIELD LIBRARY,MATERIALS,16/05/2019,000006344501106,59.99,AMZNMKTPLACE
OXFORDSHIRE CC,CORPORATE CORE,READING SERV. ADULTS,PAYMENTS TO TRANSPORT OPERATORS,16/05/2019,000006344500770,70.50,WWW.CHILTERNRAILWAYS.C
OXFORDSHIRE CC,ENVIRONMENT AND ECONOMY,"	MUSEUM DEV OFFICER",OTHER TRANSPORT ARRANGEMENTS,16/05/2019,000006344501166,2.00,HANBOROUGH STN
OXFORDSHIRE CC,ENVIRONMENT AND ECONOMY,MUSEUM CAFE,EQUIPMENT,16/05/2019,000006344500970,153.97,VERY
OXFORDSHIRE CC,ENVIRONMENT AND ECONOMY,S38 INSPECT & OTHER,PAYMENTS TO TRANSPORT OPERATORS,16/05/2019,000006344500774,39.73,TRAINLINE.COM
OXFORDSHIRE CC,ENVIRONMENT AND ECONOMY,S38 INSPECT & OTHER,PAYMENTS TO TRANSPORT OPERATORS,16/05/2019,000006344500778,68.38,TRAINLINE.COM
OXFORDSHIRE CC,ENVIRONMENT AND ECONOMY,S38 INSPECT & OTHER,"SUPPLIES, STATIONERY AND MATERIALS",16/05/2019,000006344500782,418.80,WWW.THEWATERFRONT.CO.U
OXFORDSHIRE CC,ENVIRONMENT AND ECONOMY,"	NAT TRAILS GENERAL",CATERING PROVISIONS,16/05/2019,000006344500544,7.79,CO-OPERATIVE FOOD
OXFORDSHIRE CC,ENVIRONMENT AND ECONOMY,P&S OPERATIONAL REV,"SUPPLIES, STATIONERY AND MATERIALS",16/05/2019,000006344501228,357.60,WWW.PMGLTD.CO.UK
OXFORDSHIRE CC,CORPORATE CORE,"	LEGAL SERVICES",STAFF SUBSISTENCE,16/05/2019,000006344500936,62.20,WWW.GWR.COM
OXFORDSHIRE CC,CORPORATE CORE,"	LEGAL SERVICES",STAFF SUBSISTENCE,16/05/2019,000006344500940,75.70,WWW.GWR.COM
OXFORDSHIRE CC,SOCIAL AND COMMUNITY SERVICES,CSS - BANBURY,CATERING PROVISIONS,16/05/2019,000006344500438,12.10,TESCO-STORES-5812
OXFORDSHIRE CC,SOCIAL AND COMMUNITY SERVICES,CSS - DIDCOT,MATERIALS,16/05/2019,000006344501126,168.95,WWW.ARGOS.CO.UK
OXFORDSHIRE CC,"CHILDRENS, YOUNG PEOPLE AND FAMILIES",CSS - DIDCOT,MATERIALS,16/05/2019,000006344500558,1.25,TESCO STORE 2413
OXFORDSHIRE CC,SOCIAL AND COMMUNITY SERVICES,CSS - OXFORD,EQUIPMENT,16/05/2019,000006344500872,310.92,TALMAGES
OXFORDSHIRE CC,ENVIRONMENT AND ECONOMY,"	FLEET OPERATIONS",ROAD FUND LICENCES AND MOTS,16/05/2019,000006344501034,262.50,DVLA VEHICLE TAX
OXFORDSHIRE CC,ENVIRONMENT AND ECONOMY,"	FLEET OPERATIONS",ROAD FUND LICENCES AND MOTS,16/05/2019,000006344501030,262.50,DVLA VEHICLE TAX
OXFORDSHIRE CC,"CHILDRENS, YOUNG PEOPLE AND FAMILIES","	RESIDENTIAL STRATEGY",CATERING,16/05/2019,000006344500526,4.80,SUBWAY
OXFORDSHIRE CC,"CHILDRENS, YOUNG PEOPLE AND FAMILIES","	RESIDENTIAL STRATEGY",CATERING,16/05/2019,000006344500552,17.95,KASPAS DIDCOT
OXFORDSHIRE CC,"CHILDRENS, YOUNG PEOPLE AND FAMILIES","	RESIDENTIAL STRATEGY",CATERING,16/05/2019,000006344500554,7.89,MCDONALDS
OXFORDSHIRE CC,"CHILDRENS, YOUNG PEOPLE AND FAMILIES",EYNSHAM,BIRTHDAY ALLOWANCE,16/05/2019,000006344501388,8.50,TESCO PFS 2488
OXFORDSHIRE CC,"CHILDRENS, YOUNG PEOPLE AND FAMILIES",EYNSHAM,MATERIALS,16/05/2019,000006344501110,5.00,MILLETS
OXFORDSHIRE CC,"CHILDRENS, YOUNG PEOPLE AND FAMILIES",EYNSHAM,DRUGS AND MEDICAL SUPPLIES,16/05/2019,000006344500530,9.00,LLOYDS PHARMACY
OXFORDSHIRE CC,"CHILDRENS, YOUNG PEOPLE AND FAMILIES",WITNEY,"BOOKS, DVDS AND CDS",16/05/2019,000006344500744,9.00,SAINSBURYS 0632
OXFORDSHIRE CC,"CHILDRENS, YOUNG PEOPLE AND FAMILIES",WITNEY,CATERING PROVISIONS,16/05/2019,000006344500740,26.35,SAINSBURYS SACAT 0632
OXFORDSHIRE CC,"CHILDRENS, YOUNG PEOPLE AND FAMILIES",DIDCOT MOVE-ON HOME,CLOTHING AND UNIFORMS,16/05/2019,000006344501146,44.95,H & M
OXFORDSHIRE CC,"CHILDRENS, YOUNG PEOPLE AND FAMILIES",DIDCOT MOVE-ON HOME,CATERING PROVISIONS,16/05/2019,000006344501150,-50.08,TK MAXX
OXFORDSHIRE CC,"CHILDRENS, YOUNG PEOPLE AND FAMILIES",DIDCOT MOVE-ON HOME,CLOTHING AND UNIFORMS,16/05/2019,000006344501156,-44.95,H & M
OXFORDSHIRE CC,"CHILDRENS, YOUNG PEOPLE AND FAMILIES",DIDCOT MOVE-ON HOME,MATERIALS,16/05/2019,000006344500702,17.98,ARGOS LTD
OXFORDSHIRE CC,"CHILDRENS, YOUNG PEOPLE AND FAMILIES",DIDCOT MOVE-ON HOME,CATERING PROVISIONS,16/05/2019,000006344500734,39.80,SAINSBURYS 2067
OXFORDSHIRE CC,"CHILDRENS, YOUNG PEOPLE AND FAMILIES","	MALTFIELD HOUSE",CATERING PROVISIONS,16/05/2019,000006344501136,8.95,ASDA SUPERSTORE
OXFORDSHIRE CC,"CHILDRENS, YOUNG PEOPLE AND FAMILIES","	MALTFIELD HOUSE",CATERING,16/05/2019,000006344501006,6.10,MARKS&SPENCER PLC SF
OXFORDSHIRE CC,"CHILDRENS, YOUNG PEOPLE AND FAMILIES",THAME E&A HOME,"BOOKS, DVDS AND CDS",16/05/2019,000006344500466,17.49,AMZN MKTP UK MN32C5VB4
OXFORDSHIRE CC,"CHILDRENS, YOUNG PEOPLE AND FAMILIES",THAME E&A HOME,MATERIALS,16/05/2019,000006344500536,129.92,WWW.ARGOS.CO.UK
OXFORDSHIRE CC,"CHILDRENS, YOUNG PEOPLE AND FAMILIES",THAME E&A HOME,CATERING PROVISIONS,16/05/2019,000006344500708,2.80,ONE STOP 1021
OXFORDSHIRE CC,"CHILDRENS, YOUNG PEOPLE AND FAMILIES",THAME E&A HOME,CATERING,16/05/2019,000006344500710,10.68,MCDONALDS
OXFORDSHIRE CC,"CHILDRENS, YOUNG PEOPLE AND FAMILIES",THAME E&A HOME,CATERING PROVISIONS,16/05/2019,000006344500608,16.45,TESCO STORES 4338
OXFORDSHIRE CC,"CHILDRENS, YOUNG PEOPLE AND FAMILIES",THAME E&A HOME,CATERING,16/05/2019,000006344500610,9.55,COSTA COFFEE 43041630
OXFORDSHIRE CC,"CHILDRENS, YOUNG PEOPLE AND FAMILIES",THAME E&A HOME,CATERING PROVISIONS,16/05/2019,000006344500630,6.25,SAINSBURYS SACAT 2096
OXFORDSHIRE CC,"CHILDRENS, YOUNG PEOPLE AND FAMILIES",THAME E&A HOME,CATERING PROVISIONS,16/05/2019,000006344500946,7.00,COSTA THAME
OXFORDSHIRE CC,"CHILDRENS, YOUNG PEOPLE AND FAMILIES","	40 THE MOORS",OTHER TRANSPORT ARRANGEMENTS,16/05/2019,000006344501088,30.00,BANBURY EXECUTIVE TRAV
OXFORDSHIRE CC,"CHILDRENS, YOUNG PEOPLE AND FAMILIES","	40 THE MOORS",CLOTHING AND UNIFORMS,16/05/2019,000006344501090,79.99,ZALANDO UK
OXFORDSHIRE CC,"CHILDRENS, YOUNG PEOPLE AND FAMILIES","	40 THE MOORS",CATERING PROVISIONS,16/05/2019,000006344501096,23.30,TESCO STORE 2788
OXFORDSHIRE CC,"CHILDRENS, YOUNG PEOPLE AND FAMILIES","	40 THE MOORS",CATERING PROVISIONS,16/05/2019,000006344501100,3.10,TESCO STORE 2788
OXFORDSHIRE CC,"CHILDRENS, YOUNG PEOPLE AND FAMILIES",HOUSE PROJECT,CATERING,16/05/2019,000006344501234,6.50,COSTA TEMPLAR SQUARE O
OXFORDSHIRE CC,ENTERPRISEVC,,CAR LEASING - PRIVATE RENTALS,16/05/2019,000006344501294,43.18,ENTERPRISE RENT-A-CAR
OXFORDSHIRE CC,ENTERPRISEVC,,CAR LEASING - PRIVATE RENTALS,16/05/2019,000006344501314,85.79,ENTERPRISE RENT-A-CAR
OXFORDSHIRE CC,"CHILDRENS, YOUNG PEOPLE AND FAMILIES",NTH EARLY HELP-BCSTR,MATERIALS,16/05/2019,000006344500660,112.94,WWW.ARGOS.CO.UK
OXFORDSHIRE CC,"CHILDRENS, YOUNG PEOPLE AND FAMILIES",NTH EARLY HELP-BCSTR,MATERIALS,16/05/2019,000006344500662,158.00,WWW.ARGOS.CO.UK
OXFORDSHIRE CC,"CHILDRENS, YOUNG PEOPLE AND FAMILIES",CNTL EARLY HELP-RHIL,CATERING PROVISIONS,16/05/2019,000006344500926,5.38,CO-OPERATIVE FOOD
OXFORDSHIRE CC,"CHILDRENS, YOUNG PEOPLE AND FAMILIES",CNTL EARLY HELP-RHIL,MATERIALS,16/05/2019,000006344500678,29.99,ARGOS RETAIL GROUP
OXFORDSHIRE CC,"CHILDRENS, YOUNG PEOPLE AND FAMILIES",C&F - TF CONTRIB,PAYMENTS TO TRANSPORT OPERATORS,16/05/2019,000006344501378,33.75,WWW.GWR.COM
OXFORDSHIRE CC,"CHILDRENS, YOUNG PEOPLE AND FAMILIES",C&F - TF CONTRIB,CATERING PROVISIONS,16/05/2019,000006344501382,6.00,CO-OPERATIVE FOOD
OXFORDSHIRE CC,SOCIAL AND COMMUNITY SERVICES,"	MTFC",CATERING,16/05/2019,000006344500974,2.98,BURGER KING
OXFORDSHIRE CC,ENTERPRISEVC,,CAR LEASING - PRIVATE RENTALS,16/05/2019,000006344501298,130.15,ENTERPRISE RENT-A-CAR
OXFORDSHIRE CC,"CHILDRENS, YOUNG PEOPLE AND FAMILIES","	FAMILY SUPPORT CITY3",OTHER TRANSPORT ARRANGEMENTS,16/05/2019,000006344501054,-30.75,GWR DELAY REPAY
OXFORDSHIRE CC,"CHILDRENS, YOUNG PEOPLE AND FAMILIES","	FAMILY SUPPORT CITY3",OTHER TRANSPORT ARRANGEMENTS,16/05/2019,000006344500500,3.70,OXFORD BUS COMPANY
OXFORDSHIRE CC,ENTERPRISEVC,,CAR LEASING - PRIVATE RENTALS,16/05/2019,000006344501310,134.51,ENTERPRISE RENT-A-CAR
OXFORDSHIRE CC,"CHILDRENS, YOUNG PEOPLE AND FAMILIES",NORTH FSS- BANBURY,HIRE OF ACCOMMODATION AND FACILITIES,16/05/2019,000006344500728,350.00,EXPEDIA 7434908277717
OXFORDSHIRE CC,"CHILDRENS, YOUNG PEOPLE AND FAMILIES","	FAMILY SUPPORT S'TH2",CLIENT LODGINGS AND ACCOMMODATION,16/05/2019,000006344500462,70.00,THE GEORGE HOTEL
OXFORDSHIRE CC,"CHILDRENS, YOUNG PEOPLE AND FAMILIES","	LOOKED AFTER NORTH",CLOTHING AND UNIFORMS,16/05/2019,000006344501364,45.10,MATALAN
OXFORDSHIRE CC,"CHILDRENS, YOUNG PEOPLE AND FAMILIES","	LOOKED AFTER NORTH",CATERING PROVISIONS,16/05/2019,000006344501366,16.95,ASDA STORES 4478
OXFORDSHIRE CC,"CHILDRENS, YOUNG PEOPLE AND FAMILIES","	LOOKED AFTER NORTH",VEHICLE FUEL,16/05/2019,000006344501370,34.26,ESSO ERMONT WAY SSTN
OXFORDSHIRE CC,ENTERPRISEVC,,CAR LEASING - PRIVATE RENTALS,16/05/2019,000006344501306,61.86,ENTERPRISE RENT-A-CAR
OXFORDSHIRE CC,"CHILDRENS, YOUNG PEOPLE AND FAMILIES","	LOOKED AFTER CITY 1",OTHER TRANSPORT ARRANGEMENTS,16/05/2019,000006344500756,73.77,TRAINLINE
OXFORDSHIRE CC,"CHILDRENS, YOUNG PEOPLE AND FAMILIES","	LOOKED AFTER CITY 1",PAYMENTS TO TRANSPORT OPERATORS,16/05/2019,000006344500762,73.77,TRAINLINE
OXFORDSHIRE CC,"CHILDRENS, YOUNG PEOPLE AND FAMILIES","	LOOKED AFTER CITY 1",PAYMENTS TO TRANSPORT OPERATORS,16/05/2019,000006344500766,82.05,TRAINLINE
OXFORDSHIRE CC,ENTERPRISEVC,,CAR LEASING - PRIVATE RENTALS,16/05/2019,000006344501264,26.38,ENTERPRISE RENT-A-CAR
OXFORDSHIRE CC,"CHILDRENS, YOUNG PEOPLE AND FAMILIES","	LOOKED AFTER CITY 1",PAYMENT TO GOVERNMENT DEPARTMENTS,16/05/2019,000006344500716,54.00,HM PASSPORT OFFICE
OXFORDSHIRE CC,"CHILDRENS, YOUNG PEOPLE AND FAMILIES","	LOOKED AFTER CITY 1",EDUCATIONAL AND VOCATIONAL TRAINING ,16/05/2019,000006344500724,11.00,OXFORDSHIRE CC MOTO1
OXFORDSHIRE CC,ENTERPRISEVC,,CAR LEASING - PRIVATE RENTALS,16/05/2019,000006344501278,43.18,ENTERPRISE RENT-A-CAR
OXFORDSHIRE CC,"CHILDRENS, YOUNG PEOPLE AND FAMILIES","	LOOKED AFTER SOUTH",POSTAGE AND DELIVERY,16/05/2019,000006344501318,6.60,POST OFFICE COUNTER
OXFORDSHIRE CC,"CHILDRENS, YOUNG PEOPLE AND FAMILIES","	LOOKED AFTER CITY 2",PAYMENTS TO TRANSPORT OPERATORS,16/05/2019,000006344500698,6.80,GWR DIDCOT PKWY TO
OXFORDSHIRE CC,"CHILDRENS, YOUNG PEOPLE AND FAMILIES","	LOOKED AFTER CITY 2",CATERING PROVISIONS,16/05/2019,000006344500994,7.78,OXFORD PEARTREE KFC
OXFORDSHIRE CC,"CHILDRENS, YOUNG PEOPLE AND FAMILIES","	LOOKED AFTER CITY 2",OTHER EXPENSES,16/05/2019,000006344500896,50.00,THOMAS CARR @ THE OLIV
OXFORDSHIRE CC,"CHILDRENS, YOUNG PEOPLE AND FAMILIES","	SM QUALITY ASSURANCE",PAYMENTS TO TRANSPORT OPERATORS,16/05/2019,000006344500572,106.00,TRAINLINE
OXFORDSHIRE CC,"CHILDRENS, YOUNG PEOPLE AND FAMILIES","	LEAVING CARE NORTH",EDUCATIONAL AND VOCATIONAL TRAINING ,16/05/2019,000006344501214,22.00,OXFORDSHIRE CC MOTO1
OXFORDSHIRE CC,"CHILDRENS, YOUNG PEOPLE AND FAMILIES","	LEAVING CARE CITY 1",DISABILITY AIDS AND EQUIPMENT,16/05/2019,000006344501218,45.97,FEELGOODCONTACTS.COM
OXFORDSHIRE CC,"CHILDRENS, YOUNG PEOPLE AND FAMILIES","	LEAVING CARE SOUTH",PAYMENT TO GOVERNMENT DEPARTMENTS,16/05/2019,000006344500504,-38.75,GEN REGISTER OFFICE
OXFORDSHIRE CC,CORPORATE CORE,SNR LEADERSHIP TEAM,PAYMENTS TO TRANSPORT OPERATORS,16/05/2019,000006344501372,63.30,WWW.GWR.COM
OXFORDSHIRE CC,SOCIAL AND COMMUNITY SERVICES,UASC 16&17,PAYMENTS TO TRANSPORT OPERATORS,16/05/2019,000006344500636,6.70,GWR OXFORD TO
OXFORDSHIRE CC,SOCIAL AND COMMUNITY SERVICES,UASC 16&17,CATERING PROVISIONS,16/05/2019,000006344500632,23.10,SAINSBURYS 2067
OXFORDSHIRE CC,SOCIAL AND COMMUNITY SERVICES,UASC 16&17,PAYMENTS TO TRANSPORT OPERATORS,16/05/2019,000006344500638,11.70,GWR OXFORD TO
OXFORDSHIRE CC,ENTERPRISEVC,,CAR LEASING - PRIVATE RENTALS,16/05/2019,000006344501254,88.78,ENTERPRISE RENT-A-CAR
OXFORDSHIRE CC,CORPORATE CORE,,"SUPPLIES, STATIONERY AND MATERIALS",17/05/2019,000006350138720,234.97,LYRECO UK LTD
OXFORDSHIRE CC,ENVIRONMENT AND ECONOMY,SCH&SOC CARE TRANSP,PAYMENTS TO HEALTH AUTHORITIES,17/05/2019,000006350138602,622.80,WINDMILL SPECIAL NEEDS
OXFORDSHIRE CC,CORPORATE CORE,"	COMMUNICATIONS",IT SOFTWARE,17/05/2019,000006350138754,20.13,ZAPIER.COM/CHARGE
OXFORDSHIRE CC,"CHILDRENS, YOUNG PEOPLE AND FAMILIES",ATV ADOPTION OXFORD,OTHER EXPENSES,17/05/2019,000006350138680,162.00,DASHWOODAPARTMENT
OXFORDSHIRE CC,"CHILDRENS, YOUNG PEOPLE AND FAMILIES","	RIVERSIDE CENTRE","SUPPLIES, STATIONERY AND MATERIALS",17/05/2019,000006350138576,6.00,JOHN MUIR TRUST-DOM
OXFORDSHIRE CC,"CHILDRENS, YOUNG PEOPLE AND FAMILIES","	RIVERSIDE CENTRE",PAYMENT TO GOVERNMENT DEPARTMENTS,17/05/2019,000006350138748,167.50,DVLA VEHICLE TAX
OXFORDSHIRE CC,"CHILDRENS, YOUNG PEOPLE AND FAMILIES",0-5 STDS & PROGRESS,"SUPPLIES, STATIONERY AND MATERIALS",17/05/2019,000006350138672,13.99,123 INK CARTRIDGES
OXFORDSHIRE CC,"CHILDRENS, YOUNG PEOPLE AND FAMILIES",0-5 STDS & PROGRESS,"BOOKS, DVDS AND CDS",17/05/2019,000006350138674,64.00,AMAZON.CO.UK MN8847VP4
OXFORDSHIRE CC,"CHILDRENS, YOUNG PEOPLE AND FAMILIES","	SEN/ICT EQUIPMENT",PURCHASE OF IT EQUIPMENT,17/05/2019,000006350138600,73.74,AMZ URBAN ARMOR GEAR
OXFORDSHIRE CC,"CHILDRENS, YOUNG PEOPLE AND FAMILIES","	SENSS TRAINING",EDUCATIONAL AND VOCATIONAL TRAINING ,17/05/2019,000006350138518,55.00,EB  AUTISM RESEARCH-DI
OXFORDSHIRE CC,CORPORATE CORE,CENTRAL BUYING TEAM,VEHICLE FUEL,17/05/2019,000006350138724,18.42,TESCO PFS 3700
OXFORDSHIRE CC,ENVIRONMENT AND ECONOMY,HOLDING CODE FOR REA,MATERIALS,17/05/2019,000006350138346,44.54,BRADY
OXFORDSHIRE CC,ENVIRONMENT AND ECONOMY,"	COUNTY HALL",MATERIALS,17/05/2019,000006350138530,11.90,AMZNMKTPLACE
OXFORDSHIRE CC,ENVIRONMENT AND ECONOMY,"	COUNTY HALL","BOOKS, DVDS AND CDS",17/05/2019,000006350138532,9.58,AMZN MKTP UK MN2RQ3MD4
OXFORDSHIRE CC,ENVIRONMENT AND ECONOMY,"	COUNTY HALL",MATERIALS,17/05/2019,000006350138534,9.03,AMZNMKTPLACE
OXFORDSHIRE CC,ENVIRONMENT AND ECONOMY,HARD FM,EQUIPMENT,17/05/2019,000006350138376,34.92,WILTS ELECTRICAL
OXFORDSHIRE CC,ENVIRONMENT AND ECONOMY,HARD FM,EQUIPMENT,17/05/2019,000006350138378,61.74,WILTS ELECTRICAL
OXFORDSHIRE CC,ENVIRONMENT AND ECONOMY,HARD FM,EQUIPMENT,17/05/2019,000006350138380,31.58,WILTS ELECTRICAL
OXFORDSHIRE CC,ENVIRONMENT AND ECONOMY,HARD FM,EQUIPMENT,17/05/2019,000006350138374,57.54,WILTS ELECTRICAL
OXFORDSHIRE CC,ENVIRONMENT AND ECONOMY,HARD FM,MATERIALS,17/05/2019,000006350138382,78.66,AMAZON.CO.UK MN0ZY45O4
OXFORDSHIRE CC,ENVIRONMENT AND ECONOMY,HARD FM,HARDWARE AND CROCKERY,17/05/2019,000006350138384,51.99,SCREWFIX OXFORD
OXFORDSHIRE CC,CORPORATE CORE,HISTORY SERVICE,FURNITURE,17/05/2019,000006350138568,14.46,AMAZON.CO.UK MN7GB6M44
OXFORDSHIRE CC,SOCIAL AND COMMUNITY SERVICES,"	CENTRAL LIBRARY",MATERIALS,17/05/2019,000006350138584,11.40,EXTRA ELECTRICAL HARD
OXFORDSHIRE CC,SOCIAL AND COMMUNITY SERVICES,DIDOCT LIBRARY,CATERING PROVISIONS,17/05/2019,000006350138688,108.27,PPOINT_ TWYFORD C S LT
OXFORDSHIRE CC,SOCIAL AND COMMUNITY SERVICES,ABINGDON LIBRARY,CATERING PROVISIONS,17/05/2019,000006350138694,169.42,LIDL GB OXFORD
OXFORDSHIRE CC,SOCIAL AND COMMUNITY SERVICES,ABINGDON LIBRARY,CATERING PROVISIONS,17/05/2019,000006350138696,66.47,LIDL GB OXFORD
OXFORDSHIRE CC,SOCIAL AND COMMUNITY SERVICES,ABINGDON LIBRARY,CATERING PROVISIONS,17/05/2019,000006350138698,33.36,ALDI STORES 775-141
OXFORDSHIRE CC,CORPORATE CORE,OPERATIONS,EQUIPMENT,17/05/2019,000006350138524,30.78,AMZNMKTPLACE AMAZON.CO
OXFORDSHIRE CC,ENVIRONMENT AND ECONOMY,S38 INSPECT & OTHER,PAYMENTS TO TRANSPORT OPERATORS,17/05/2019,000006350138480,33.53,TRAINLINE
OXFORDSHIRE CC,ENVIRONMENT AND ECONOMY,S38 INSPECT & OTHER,PAYMENTS TO TRANSPORT OPERATORS,17/05/2019,000006350138482,58.61,TRAINLINE
OXFORDSHIRE CC,ENVIRONMENT AND ECONOMY,WASTE REDUCTION GEN,"PUBLICITY, PROMOTIONS AND ADVERTISEMENT",17/05/2019,000006350138390,281.76,SOMETHING DIFFEREN
OXFORDSHIRE CC,ENVIRONMENT AND ECONOMY,RESOURCE EFFICIENCY,FIXTURES & FITTINGS,17/05/2019,000006350138536,72.00,PAYPAL  CARBONTRUST
OXFORDSHIRE CC,ENVIRONMENT AND ECONOMY,"	BRIDGES GENERAL","BOOKS, DVDS AND CDS",17/05/2019,000006350138538,56.11,AMZN MKTP UK MN7U52MT4
OXFORDSHIRE CC,"CHILDRENS, YOUNG PEOPLE AND FAMILIES",CSS - ABINGDON,CATERING PROVISIONS,17/05/2019,000006350138388,83.35,TESCO STORES 2008
OXFORDSHIRE CC,SOCIAL AND COMMUNITY SERVICES,CSS - BANBURY,CATERING PROVISIONS,17/05/2019,000006350138488,3.64,TESCO STORE 2064
OXFORDSHIRE CC,SOCIAL AND COMMUNITY SERVICES,CSS - BANBURY,CATERING EQUIPMENT,17/05/2019,000006350138650,31.41,AMZN MKTP UK MN2XP2MK4
OXFORDSHIRE CC,SOCIAL AND COMMUNITY SERVICES,CSS BICESTER,CATERING PROVISIONS,17/05/2019,000006350138360,38.40,MARTIN MCCOLL
OXFORDSHIRE CC,SOCIAL AND COMMUNITY SERVICES,CSS - DIDCOT,VEHICLE EQUIPMENT AND EXPENSES - OTHER,17/05/2019,000006350138656,79.92,24MXSEINTERNET
OXFORDSHIRE CC,SOCIAL AND COMMUNITY SERVICES,CSS - DIDCOT,DOMESTIC AND CLEANING EQUIPMENT,17/05/2019,000006350138298,-239.00,CURRYS ONLINE
OXFORDSHIRE CC,SOCIAL AND COMMUNITY SERVICES,CSS - OXFORD,EQUIPMENT,17/05/2019,000006350138526,"2,770.80",EXTRASPACE INDUSTRIES
OXFORDSHIRE CC,SOCIAL AND COMMUNITY SERVICES,CSS - OXFORD,VEHICLE EQUIPMENT AND EXPENSES - OTHER,17/05/2019,000006350138372,15.98,AMZNMKTPLACE
OXFORDSHIRE CC,SOCIAL AND COMMUNITY SERVICES,CSS - OXFORD,CATERING PROVISIONS,17/05/2019,000006350138394,7.21,ALDI STORES 775-142
OXFORDSHIRE CC,SOCIAL AND COMMUNITY SERVICES,CSS - OXFORD,CATERING PROVISIONS,17/05/2019,000006350138396,7.87,ALDI STORES 775-142
OXFORDSHIRE CC,SOCIAL AND COMMUNITY SERVICES,CSS WITNEY,GAS,17/05/2019,000006350138302,455.51,ALLSTAR BUSINESS SOLUT
OXFORDSHIRE CC,SOCIAL AND COMMUNITY SERVICES,FLEET OPERATIONS,PAYMENTS TO HEALTH AUTHORITIES,17/05/2019,000006350138752,-622.80,WINDMILL SPECIAL NEEDS
OXFORDSHIRE CC,"CHILDRENS, YOUNG PEOPLE AND FAMILIES","	OSCB",CATERING PROVISIONS,17/05/2019,000006350138340,4.10,MARKS&SPENCER PLC
OXFORDSHIRE CC,"CHILDRENS, YOUNG PEOPLE AND FAMILIES","	RESIDENTIAL STRATEGY",MATERIALS,17/05/2019,000006350138348,3.10,BERINSFIELD SHOP
OXFORDSHIRE CC,"CHILDRENS, YOUNG PEOPLE AND FAMILIES","	RESIDENTIAL STRATEGY",HIRE OF ACCOMMODATION AND FACILITIES,17/05/2019,000006350138350,4.40,HOLT HOTEL
OXFORDSHIRE CC,"CHILDRENS, YOUNG PEOPLE AND FAMILIES","	RESIDENTIAL STRATEGY",HIRE OF ACCOMMODATION AND FACILITIES,17/05/2019,000006350138352,41.70,HOLT HOTEL
OXFORDSHIRE CC,"CHILDRENS, YOUNG PEOPLE AND FAMILIES","	RESIDENTIAL STRATEGY",HIRE OF ACCOMMODATION AND FACILITIES,17/05/2019,000006350138354,2.50,HOLT HOTEL
OXFORDSHIRE CC,"CHILDRENS, YOUNG PEOPLE AND FAMILIES",EYNSHAM,CATERING PROVISIONS,17/05/2019,000006350138722,18.75,TESCO STORES 4377
OXFORDSHIRE CC,"CHILDRENS, YOUNG PEOPLE AND FAMILIES",EYNSHAM,OTHER TRANSPORT ARRANGEMENTS,17/05/2019,000006350138704,6.00,GLOUCESTER STREET CAR
OXFORDSHIRE CC,SOCIAL AND COMMUNITY SERVICES,WITNEY MOVE ON HOME,CATERING PROVISIONS,17/05/2019,000006350138466,13.80,SAINSBURYS 0632
OXFORDSHIRE CC,"CHILDRENS, YOUNG PEOPLE AND FAMILIES",WITNEY,CATERING,17/05/2019,000006350138468,11.75,BIRDLAND CAFE
OXFORDSHIRE CC,"CHILDRENS, YOUNG PEOPLE AND FAMILIES",WITNEY,MATERIALS,17/05/2019,000006350138470,6.99,WWW.TREASURETRAILS.CO.
OXFORDSHIRE CC,"CHILDRENS, YOUNG PEOPLE AND FAMILIES",WITNEY,ENTERTAINMENT EXPENSES,17/05/2019,000006350138472,13.95,BIRDLAND
OXFORDSHIRE CC,"CHILDRENS, YOUNG PEOPLE AND FAMILIES",WITNEY,OTHER TRANSPORT ARRANGEMENTS,17/05/2019,000006350138474,1.30,COTSWOLD DISTRICT COUN
OXFORDSHIRE CC,"CHILDRENS, YOUNG PEOPLE AND FAMILIES",DIDCOT MOVE-ON HOME,CATERING PROVISIONS,17/05/2019,000006350138464,8.70,SAINSBURYS SACAT 2067
OXFORDSHIRE CC,"CHILDRENS, YOUNG PEOPLE AND FAMILIES",DIDCOT MOVE-ON HOME,CATERING PROVISIONS,17/05/2019,000006350138666,11.60,SAINSBURYS SACAT 2067
OXFORDSHIRE CC,"CHILDRENS, YOUNG PEOPLE AND FAMILIES",THAME E&A HOME,CATERING PROVISIONS,17/05/2019,000006350138444,3.70,TESCO STORE 2413
OXFORDSHIRE CC,"CHILDRENS, YOUNG PEOPLE AND FAMILIES",THAME E&A HOME,CATERING,17/05/2019,000006350138446,3.18,MCDONALDS
OXFORDSHIRE CC,"CHILDRENS, YOUNG PEOPLE AND FAMILIES",THAME E&A HOME,MATERIALS,17/05/2019,000006350138462,89.99,AMZNMKTPLACE AMAZON.CO
OXFORDSHIRE CC,"CHILDRENS, YOUNG PEOPLE AND FAMILIES",THAME E&A HOME,CATERING PROVISIONS,17/05/2019,000006350138416,8.50,TESCO STORE 2994
OXFORDSHIRE CC,"CHILDRENS, YOUNG PEOPLE AND FAMILIES",THAME E&A HOME,MATERIALS,17/05/2019,000006350138418,3.83,AMZNMKTPLACE AMAZON.CO
OXFORDSHIRE CC,"CHILDRENS, YOUNG PEOPLE AND FAMILIES",THAME E&A HOME,MATERIALS,17/05/2019,000006350138420,10.00,AMAZON.CO.UK MN2KX9M04
OXFORDSHIRE CC,"CHILDRENS, YOUNG PEOPLE AND FAMILIES",THAME E&A HOME,MATERIALS,17/05/2019,000006350138422,7.98,B&M RETAIL
OXFORDSHIRE CC,"CHILDRENS, YOUNG PEOPLE AND FAMILIES",THAME E&A HOME,CATERING PROVISIONS,17/05/2019,000006350138322,83.60,ASDA SUPERSTORE
OXFORDSHIRE CC,"CHILDRENS, YOUNG PEOPLE AND FAMILIES",HOUSE PROJECT,MATERIALS,17/05/2019,000006350138706,14.00,ARGOS RETAIL GROUP
OXFORDSHIRE CC,"CHILDRENS, YOUNG PEOPLE AND FAMILIES",KINGFISHER,VEHICLE FUEL,17/05/2019,000006350138596,45.59,SHELL COWLEY
OXFORDSHIRE CC,"CHILDRENS, YOUNG PEOPLE AND FAMILIES",KINGFISHER,CATERING,17/05/2019,000006350138658,5.68,FRANKIE & BENNYS 5829
OXFORDSHIRE CC,"CHILDRENS, YOUNG PEOPLE AND FAMILIES",CNTL EARLY HELP-RHIL,MATERIALS,17/05/2019,000006350138734,142.93,WWW.ARGOS.CO.UK
OXFORDSHIRE CC,"CHILDRENS, YOUNG PEOPLE AND FAMILIES",CNTL EARLY HELP-RHIL,MATERIALS,17/05/2019,000006350138736,99.99,WWW.ARGOS.CO.UK
OXFORDSHIRE CC,SOCIAL AND COMMUNITY SERVICES,"	MTFC",CATERING,17/05/2019,000006350138592,2.90,RUGRATS & HALF PINTS
OXFORDSHIRE CC,SOCIAL AND COMMUNITY SERVICES,"	MTFC",ENTERTAINMENT EXPENSES,17/05/2019,000006350138594,6.75,RUGRATS AND HALF PINTS
OXFORDSHIRE CC,"CHILDRENS, YOUNG PEOPLE AND FAMILIES",FAMILY SUPPORT 2,MATERIALS,17/05/2019,000006350138732,-103.94,WWW.ARGOS.CO.UK
OXFORDSHIRE CC,"CHILDRENS, YOUNG PEOPLE AND FAMILIES",FAMILY SUPPORT 2,MATERIALS,17/05/2019,000006350138726,103.94,WWW.ARGOS.CO.UK
OXFORDSHIRE CC,"CHILDRENS, YOUNG PEOPLE AND FAMILIES",FAMILY SUPPORT 2,MATERIALS,17/05/2019,000006350138728,75.00,WWW.ARGOS.CO.UK
OXFORDSHIRE CC,"CHILDRENS, YOUNG PEOPLE AND FAMILIES",FAMILY SUPPORT 2,MATERIALS,17/05/2019,000006350138730,103.94,WWW.ARGOS.CO.UK
OXFORDSHIRE CC,"CHILDRENS, YOUNG PEOPLE AND FAMILIES",NORTH FSS- WITNEY,PAYMENTS TO TRANSPORT OPERATORS,17/05/2019,000006350138300,79.40,WWW.GWR.COM
OXFORDSHIRE CC,"CHILDRENS, YOUNG PEOPLE AND FAMILIES","	FAMILY SUPPORT CITY3",CATERING,17/05/2019,000006350138334,3.29,TREATZ DESSERT PARLOUR
OXFORDSHIRE CC,"CHILDRENS, YOUNG PEOPLE AND FAMILIES","	FAMILY SUPPORT CITY3",OTHER TRANSPORT ARRANGEMENTS,17/05/2019,000006350138338,3.00,WEMBLEY PARK
OXFORDSHIRE CC,"CHILDRENS, YOUNG PEOPLE AND FAMILIES","	FAMILY SUPPORT CITY3",CATERING,17/05/2019,000006350138336,2.97,PRET A MANGER
OXFORDSHIRE CC,"CHILDRENS, YOUNG PEOPLE AND FAMILIES",NORTH FSS- BANBURY,HIRE OF ACCOMMODATION AND FACILITIES,17/05/2019,000006350138448,107.00,B.COM 310647-N9CAF THE
OXFORDSHIRE CC,"CHILDRENS, YOUNG PEOPLE AND FAMILIES",NORTH FSS- BANBURY,PAYMENT TO GOVERNMENT DEPARTMENTS,17/05/2019,000006350138450,38.00,GEN REGISTER OFFICE
OXFORDSHIRE CC,"CHILDRENS, YOUNG PEOPLE AND FAMILIES",NORTH FSS- BANBURY,REGISTRATION AND INSPECTION FEES,17/05/2019,000006350138452,1.90,PAYPAL  ROYAL MAIL
OXFORDSHIRE CC,"CHILDRENS, YOUNG PEOPLE AND FAMILIES",NORTH FSS- BANBURY,PAYMENTS TO TRANSPORT OPERATORS,17/05/2019,000006350138454,60.25,WWW.GWR.COM
OXFORDSHIRE CC,"CHILDRENS, YOUNG PEOPLE AND FAMILIES",NTH FAM SUPRT-BCSTR,PAYMENTS TO TRANSPORT OPERATORS,17/05/2019,000006350138424,9.50,WWW.GWR.COM
OXFORDSHIRE CC,SOCIAL AND COMMUNITY SERVICES,LOOKED AFTER NORTH,PRINTING,17/05/2019,000006350138586,1.26,BOOTS 0495
OXFORDSHIRE CC,SOCIAL AND COMMUNITY SERVICES,LOOKED AFTER NORTH,CATERING,17/05/2019,000006350138588,4.18,MCDONALDS
OXFORDSHIRE CC,"CHILDRENS, YOUNG PEOPLE AND FAMILIES","	LOOKED AFTER SOUTH",OTHER TRANSPORT ARRANGEMENTS,17/05/2019,000006350138428,70.80,WWW.GWR.COM
OXFORDSHIRE CC,"CHILDRENS, YOUNG PEOPLE AND FAMILIES","	LOOKED AFTER SOUTH",PAYMENTS TO TRANSPORT OPERATORS,17/05/2019,000006350138392,30.30,OXFORD PARKWAY SSTP
OXFORDSHIRE CC,SOCIAL AND COMMUNITY SERVICES,LOOKED AFTER SOUTH,PAYMENT TO GOVERNMENT DEPARTMENTS,17/05/2019,000006350138320,85.00,HM PASSPORT OFFICE
OXFORDSHIRE CC,"CHILDRENS, YOUNG PEOPLE AND FAMILIES","	LOOKED AFTER CITY 2",OTHER TRANSPORT ARRANGEMENTS,17/05/2019,000006350138552,6.40,APCOA CONNECT - FGW
OXFORDSHIRE CC,"CHILDRENS, YOUNG PEOPLE AND FAMILIES","	LOOKED AFTER CITY 2",PAYMENT TO GOVERNMENT DEPARTMENTS,17/05/2019,000006350138578,75.50,HM PASSPORT OFFICE
OXFORDSHIRE CC,"CHILDRENS, YOUNG PEOPLE AND FAMILIES","	LOOKED AFTER CITY 2",MATERIALS,17/05/2019,000006350138580,93.73,AMZNMKTPLACE AMAZON.CO
OXFORDSHIRE CC,"CHILDRENS, YOUNG PEOPLE AND FAMILIES","	LOOKED AFTER CITY 2",CATERING PROVISIONS,17/05/2019,000006350138582,3.45,COSTA KIDLINGTON
OXFORDSHIRE CC,"CHILDRENS, YOUNG PEOPLE AND FAMILIES","	LOOKED AFTER CITY 2",CATERING,17/05/2019,000006350138548,3.75,COSTA COFFEE 43043345
OXFORDSHIRE CC,"CHILDRENS, YOUNG PEOPLE AND FAMILIES","	LOOKED AFTER CITY 2",PAYMENTS TO TRANSPORT OPERATORS,17/05/2019,000006350138550,46.90,GWR DIDCOT PKWY TO
OXFORDSHIRE CC,"CHILDRENS, YOUNG PEOPLE AND FAMILIES","	LEAVING CARE SOUTH",MATERIALS,17/05/2019,000006350138700,44.99,JD SPORTS INTERNET
OXFORDSHIRE CC,"CHILDRENS, YOUNG PEOPLE AND FAMILIES","	LEAVING CARE CITY 2",CLOTHING AND UNIFORMS,17/05/2019,000006350138544,219.90,PRIMARK 440
OXFORDSHIRE CC,"CHILDRENS, YOUNG PEOPLE AND FAMILIES","	LEAVING CARE CITY 2",VEHICLE FUEL,17/05/2019,000006350138546,48.42,TESCO PAYAT PUMP 3700
OXFORDSHIRE CC,SOCIAL AND COMMUNITY SERVICES,ADULT SERVICES IMPROVEMENT BOARD,PAYMENTS TO TRANSPORT OPERATORS,17/05/2019,000006350138684,42.00,WWW.GWR.COM
OXFORDSHIRE CC,CORPORATE CORE,SNR LEADERSHIP TEAM,PAYMENTS TO TRANSPORT OPERATORS,17/05/2019,000006350138750,23.40,WWW.GWR.COM
OXFORDSHIRE CC,SOCIAL AND COMMUNITY SERVICES,UASC 16&17,PAYMENTS TO TRANSPORT OPERATORS,17/05/2019,000006350138406,31.40,GWR OXFORD TO
OXFORDSHIRE CC,CORPORATE CORE,MOTOR FLEET,MOTOR IF FEES,17/05/2019,000006350138708,79.20,SIDNEY H HOOPER & COMP
OXFORDSHIRE CC,CORPORATE CORE,,"SUPPLIES, STATIONERY AND MATERIALS",20/05/2019,000006357472412,198.08,LYRECO UK LTD
OXFORDSHIRE CC,CORPORATE CORE,,"SUPPLIES, STATIONERY AND MATERIALS",20/05/2019,000006357472414,-5.47,LYRECO UK LTD
OXFORDSHIRE CC,"CHILDRENS, YOUNG PEOPLE AND FAMILIES",MEMBERS ALLOWANCES,OTHER TRANSPORT ARRANGEMENTS,20/05/2019,000006357472036,7.00,OXPENS CAR PARK
OXFORDSHIRE CC,CORPORATE CORE,"	CHAIRMANS ALLOWANCE",CATERING PROVISIONS,20/05/2019,000006357472116,54.00,THE OXFORD WINE COMPAN
OXFORDSHIRE CC,CORPORATE CORE,"	COMMUNICATIONS",MATERIALS,20/05/2019,000006357472468,20.82,LINKEDIN-465 3177223
